Workbook

Sheet Presentación

Sheet Caracterización
A1: Datos Generales de las Comunidades a Calificar
A2: 🔍 ¿Qué hacer aquí? Ingresa la información general de caracterización de las comunidades energéticas que deseas evaluar y responde las preguntas que permitiran identificar fortalezas y debilidades de las comunidades. Importante: Diligencia únicamente las celdas sombreadas en azul/gris. Cuando hayas diligenciado toda la información ... ve a "Ahora califica las comunidades" Califica las comunidades en los indicadores para la priorización. Se recomienda solamente calificar las comunidades que obtuvieron más fortalezas, sin embargo queda a discresión del evaluador. 💡 Esta información es clave para la priorización posterior, por eso es muy importante que diligencies toda la información
A4: Nombre o Razón social de la entidad evaluadora | D4: =HYPERLINK("#'Calificación "&C5&"'!j7","Ahora califica las comunidades!") -> Ahora califica las comunidades!
A5: Seleccione el caracter de la empresa o institución evaluadora | C5: Pública
A7: Información básica de la comunidad | B7: Comunidad 1 | C7: Comunidad 2 | D7: Comunidad 3 | E7: Comunidad 4 | F7: Comunidad 5 | G7: Comunidad 6 | H7: Comunidad 7 | I7: Comunidad 8 | J7: Comunidad 9 | K7: Comunidad 10
B8: C1 | C8: C2 | D8: C3 | E8: C4 | F8: C5 | G8: C6 | H8: C7 | I8: C8 | J8: C9 | K8: C10
A9: Fecha de Registro
A10: Departamento (Selecciona la opción - Es obligatorio para priorizar) | B10: Tolima | C10: Bogotá, D.C | D10: Caldas | E10: Antioquia | F10: Antioquia | G10: La Guajira | H10: Norte de Santander | I10: Bogotá, D.C | J10: San Andrés y Providencia | K10: Valle del Cauca
A11: Nombre del Municipio (Selecciona la opción - Es obligatorio para priorizar) | B11: Casabianca | C11: Bogotá, D.C. | D11: La Dorada | E11: Maceo | F11: Abriaquí | G11: Riohacha | H11: Bochalema | I11: Bogotá, D.C. | J11: San Andrés | K11: Bugalagrande
A12: Número de Identificación | B12: =_xlfn.XLOOKUP(B11,'Consulta de Potencial'!$C$14:$C$1134,'Consulta de Potencial'!$A$14:$A$1134) -> 405 | C12: =_xlfn.XLOOKUP(C11,'Consulta de Potencial'!$C$14:$C$1134,'Consulta de Potencial'!$A$14:$A$1134) -> 337 | D12: =_xlfn.XLOOKUP(D11,'Consulta de Potencial'!$C$14:$C$1134,'Consulta de Potencial'!$A$14:$A$1134) -> 565 | E12: =_xlfn.XLOOKUP(E11,'Consulta de Potencial'!$C$14:$C$1134,'Consulta de Potencial'!$A$14:$A$1134) -> 741 | F12: =_xlfn.XLOOKUP(F11,'Consulta de Potencial'!$C$14:$C$1134,'Consulta de Potencial'!$A$14:$A$1134) -> 756 | G12: =_xlfn.XLOOKUP(G11,'Consulta de Potencial'!$C$14:$C$1134,'Consulta de Potencial'!$A$14:$A$1134) -> 1048 | H12: =_xlfn.XLOOKUP(H11,'Consulta de Potencial'!$C$14:$C$1134,'Consulta de Potencial'!$A$14:$A$1134) -> 842 | I12: =_xlfn.XLOOKUP(I11,'Consulta de Potencial'!$C$14:$C$1134,'Consulta de Potencial'!$A$14:$A$1134) -> 337 | J12: =_xlfn.XLOOKUP(J11,'Consulta de Potencial'!$C$14:$C$1134,'Consulta de Potencial'!$A$14:$A$1134) -> 1050 | K12: =_xlfn.XLOOKUP(K11,'Consulta de Potencial'!$C$14:$C$1134,'Consulta de Potencial'!$A$14:$A$1134) -> 247
A13: Nombre de lider o responsable de la Comunidad
A14: Correo Electrónico de Contacto
A15: Teléfono de Contacto
A16: Tipo de tarifa por usuario (Selecciona la opción) | B16: Residencial | C16: Residencial | D16: Residencial | E16: Residencial | F16: Residencial | G16: Residencial | H16: Residencial | I16: Residencial | J16: Residencial | K16: Residencial
A17: Si la opción es otra, indique el tipo de tarifa por usuario
A18: ¿Cómo está constituida la organización social/comunitaria? (Selecciona la opción) Asociación de Autoridades Tradicionales: Organización formada por líderes tradicionales que representan los usos y costumbres de comunidades indígenas. Asociación de Productores: Grupo organizado de personas que se unen para gestionar y promover actividades productivas específicas, como agrícolas o artesanales. Asociación de Usuarios: Entidad conformada por personas que comparten el uso de un servicio o recurso común, organizada para gestionar su acceso y uso. Cabildo: Estructura de gobierno tradicional indígena que administra los asuntos de una comunidad según su cultura y leyes propias. Consejo Comunitario: Organización afrodescendiente encargada de la administración colectiva de su territorio, reconocida por la ley en Colombia. Cooperativa: Organización autónoma de personas que se asocian voluntariamente para satisfacer necesidades comunes a través de una empresa conjunta y democráticamente gestionada. Corporación: Entidad jurídica sin ánimo de lucro que reúne a personas con intereses comunes para promover actividades culturales, sociales o económicas. Empresa Comunitaria Prestadora: Organización creada para prestar servicios públicos o comunitarios, gestionada por la comunidad local. Junta de Acción Comunal: Organización de base que representa y gestiona las necesidades de una comunidad en áreas urbanas o rurales. Resguardo: Territorio de propiedad colectiva administrado por comunidades indígenas bajo un sistema de autogobierno reconocido legalmente. | B18: Asociación de productores | C18: Seleccione... | D18: Seleccione... | E18: Seleccione... | F18: Seleccione... | G18: Seleccione... | H18: Seleccione... | I18: Seleccione... | J18: Seleccione... | K18: Seleccione...
A19: Estado actual de la comunidad energética (Resolución 40136 de 2024) (Selecciona la opción) Comunidades Energéticas Iniciales: Aquellas que suministren información del Contrato o convenio asociativo (Art. 3, numeral 1), cumpliendo con la información mínima indicada en dicho numeral. Comunidades Energéticas en Operación: Aquellas que suministren la información de todos los numerales del artículo 3 de la Resolución 40136 de 2024. | B19: Inicial | C19: En operación | D19: Seleccione... | E19: Seleccione... | F19: Seleccione... | G19: Seleccione... | H19: Seleccione... | I19: Seleccione... | J19: Seleccione... | K19: Seleccione...
A20: Tipo de energía a implementar en la comunidad (Selecciona la opción - Es obligatorio para priorizar) Biomasa vegetal: Energía obtenida de residuos o productos de origen vegetal, como madera, cáscaras y residuos agrícolas. Biomasa animal: Energía generada a partir de desechos orgánicos de origen animal, como estiércol o grasas. Eólica: Energía producida mediante la conversión del viento en electricidad utilizando aerogeneradores. Hídrica: Energía generada a partir del movimiento del agua, usualmente en ríos o embalses, mediante turbinas. Fotovoltaica: Energía eléctrica obtenida a partir de la conversión de la luz solar mediante paneles solares. Mixta: Sistema que combina dos o más tipos de energías renovables para optimizar la generación y el consumo energético. | B20: Biomasa vegetal | C20: Biomasa vegetal | D20: Biomasa vegetal | E20: Biomasa vegetal | F20: Biomasa vegetal | G20: Biomasa vegetal | H20: Biomasa vegetal | I20: Biomasa vegetal | J20: Biomasa vegetal | K20: Biomasa vegetal
A21: Actividad de la comunidad (ver definiciones del decreto 2236 de 2023) (Selecciona la opción) Autogeneración colectiva (AGRC): Actividad realizada por la comunidad energética que produce energía, principalmente, para atender su propia demanda de energía. En el evento en que se generen excedentes de energía a partir de tal actividad, estos podrán entregarse a la red, en los términos que establezca la Comisión de Regulación de Energía y Gas (CREG) para tal fin. Generación Distribuida Colectiva (GDC): Es la producción de energía eléctrica realizada por la comunidad energética, cerca de los centros de consumo, conectada a un sistema de distribución local (SDL) o a una microrred. La entrega de la energía al Sistema de Distribución Local (SDL) se rige bajo la regulación que establezca la Comisión de Regulación de Energía y Gas (CREG) para tal fin, dentro del plazo de tres (3) meses siguientes a la expedición del presente decreto. | B21: Autogeneración colectivo | C21: Seleccione... | D21: Seleccione... | E21: Seleccione... | F21: Seleccione... | G21: Seleccione... | H21: Seleccione... | I21: Seleccione... | J21: Seleccione... | K21: Seleccione...
A22: ¿Cuál es la capacidad estimada de generación de energía del proyecto? (Kwh)
A23: ¿Cuántos miembros tiene la comunidad?
A24: Cuota de autoconsumo comunitario (Es la proporción de la energía generada por la comunidad energética que se utiliza de manera compartida para satisfacer necesidades comunes, como alumbrado público, servicios colectivos o actividades productivas) Si es generación distribuida indique no aplica
A25: ¿A qué distancia en km se encuentra la comunidad o usuarios finales a la planta de generación de energía eléctrica? Mide la distancia física entre la zona donde está ubicada la comunidad energética y la planta. Esto permite comparar entre las comunidades.
A26: ¿A qué distancia en km se encuentra el punto de conexión de energía eléctrica a la planta de generación de energía eléctrica? Mide la distancia física entre la zona donde está ubicada la comunidad energética y la planta. (Se sugiere realizar consultas a entidades locales para conocer cual es la plant amás cercana)
A27: Características del área dónde se ubica la comunidad
A28: Descripción del área (Ha)
A29: Vereda/ Referencia de dónde de ubica el área
A30: Localización (Longitud x)
A31: Localización (Latitud y)
A32: ¿Cómo definiría la topografía del área donde se establecerá el proyecto? (Selecciona la opción) Plana: Terreno con poca o ninguna inclinación, ideal para construcción y fácil acceso. Ondulada: Terreno con inclinaciones suaves y áreas ligeramente elevadas o deprimidas. Empinada: Terreno con inclinaciones pronunciadas que dificultan el acceso y la construcción. | B32: Seleccione... | C32: Seleccione... | D32: Seleccione... | E32: Seleccione... | F32: Seleccione... | G32: Seleccione... | H32: Seleccione... | I32: Seleccione... | J32: Seleccione... | K32: Seleccione...
A33: ¿Qué uso de suelo tiene hoy el área ofertada? (Selecciona la opción) | B33: Rural | C33: Seleccione... | D33: Seleccione... | E33: Seleccione... | F33: Seleccione... | G33: Seleccione... | H33: Seleccione... | I33: Seleccione... | J33: Seleccione... | K33: Seleccione...
A34: Aspectos socioeconómicos y ambientales
A35: ¿Cuál es el ingreso promedio mensual de los hogares? SMMLV
A36: ¿La comunidad está en zona de áreas protegidas o reservas naturales? (Consulte mapa de potencial para seleccionar la opción) | B36: Sí está en área protegida | C36: No está en área protegida | D36: Seleccione ... | E36: Seleccione ... | F36: Sí está en área protegida | G36: Seleccione ... | H36: No está en área protegida | I36: Seleccione ... | J36: Seleccione ... | K36: Seleccione ...
A37: ¿La comunidad está en zona no interconectada ZNI?
A38: Estratificación (Variable incluida para focalizar a aquellas comunidades de zonas urbanas y centros poblados cuyos miembros se encuentren en estratificación 1, 2 y 3 cuando sea el caso, del territorio nacional) | B38: Seleccione... | C38: Seleccione... | D38: Seleccione... | E38: Seleccione... | F38: Seleccione... | G38: Seleccione... | H38: Seleccione... | I38: Seleccione... | J38: Seleccione... | K38: Seleccione...
A39: Aspectos financieros
A40: ¿Cuál es el costo total del proyecto? (COP) | B40: 50
A41: Nivel de inversión que puede aportar la comunidad (porcentaje del monto total del proyecto que puede aportar la comunidad) | B41: 0.00%
A42: Porcentaje de los costos de capital que se requiere sean cubiertos por donaciones y ayudas externas. (Porcentaje de los costos totales del proyecto cubiertos mediante apoyo externo, como donaciones.) Es un valor automático = 100% - Nivel de inversión que puede aportar la comunidad | B42: =100%-B41 -> 100.00%
A43: Fortalezas y Debilidades (selecciona SI o NO en cada pregunta para cada una de las comunidades
A44: Ambiental: ¿Se han realizado estudios de impacto ambiental para asegurar que la infraestructura no afecta negativamente al entorno natural? | B44: Si | C44: Si | D44: Si | E44: Si | F44: Si | G44: Si | H44: Si | I44: Si | J44: Si | K44: Si
A45: Ambiental: ¿La Comunidad Energética ya tiene identificado los permisos ambientales y la gestión administrativa que se requiere para la implementación del proyecto | B45: Si | C45: Si | D45: Si | E45: Si | F45: Si | G45: Si | H45: Si | I45: Si | J45: Si | K45: Si
A46: Económica: ¿Existe capacidad y disposición de los miembros de la comunidad para financiar parcialmente el proyecto? | B46: Si | C46: Si | D46: Si | E46: Si | F46: Si | G46: Si | H46: Si | I46: Si | J46: Si | K46: Si
A47: Económica: ¿La comunidad cuenta con algún ente financiador o acceso a recursos para llevar a cabo el proyecto de generación de energía? | B47: Si | C47: Si | D47: Si | E47: Si | F47: Si | G47: Si | H47: Si | I47: Si | J47: Si | K47: Si
A48: Social: ¿Hay disposición por parte de los miembros de la comunidad para participar en actividades de voluntariado relacionadas con el proyecto? | B48: Seleccione... | C48: Seleccione... | D48: Seleccione... | E48: Seleccione... | F48: Seleccione... | G48: Seleccione... | H48: Seleccione... | I48: Seleccione... | J48: Seleccione... | K48: Seleccione...
A49: Social: ¿La comunidad cuenta con experiencias previas que reflejen cohesión y organización social para implementar proyectos similares? (Identificar si existen iniciativas comunitarias previas y evaluar su éxito o las razones de su fracaso). | B49: Si | C49: Si | D49: Si | E49: Si | F49: Si | G49: Si | H49: Si | I49: Si | J49: Si | K49: Si
A50: Social: ¿La comunidad incluye poblaciones de especial protección constitucional* o comunidades étnicas? *Entre los grupos de especial protección se encuentran los niños, los ancianos, los disminuidos físicos, síquicos y sensoriales, las mujeres cabeza de familia, las personas desplazadas por la violencia, y aquellas que se encuentran en extrema pobreza . | B50: Si | C50: Si | D50: Si | E50: Si | F50: Si | G50: Si | H50: Si | I50: Si | J50: Si | K50: Si
A51: Social: ¿Se observa una activa participación femenina en las actividades comunitarias? | B51: Si | C51: Si | D51: Si | E51: Si | F51: Si | G51: Si | H51: Si | I51: Si | J51: Si | K51: Si
A52: Social: ¿Se han cuantificado los beneficios a los miembros de la comunidad, en términos de acceso a energía, generación de empleo o mejoras de infraestructura? | B52: Si | C52: Si | D52: Si | E52: Si | F52: Si | G52: Si | H52: Si | I52: Si | J52: Si | K52: Si
A53: Social: ¿Se tienen estructuradas actividades educativas sobre energías renovables, eficiencia energética y la importancia de la participación en el proyecto? | B53: Si | C53: Si | D53: Si | E53: Si | F53: Si | G53: Si | H53: Si | I53: Si | J53: Si | K53: Si
A54: Social: ¿Existe un sistema de gobernanza establecido y están definidos los mecanismos de participación en el área donde se implementará la comunidad energética? | B54: Si | C54: Si | D54: Si | E54: Si | F54: Si | G54: Si | H54: Si | I54: Si | J54: Si | K54: Si
A55: Social: ¿Están definidas las formas de distribución de la energía y las actividades de la Comunidad Energética, desde su uso hasta la distribución de los beneficios? | B55: Si | C55: Si | D55: Si | E55: Si | F55: Si | G55: Si | H55: Si | I55: Si | J55: Si | K55: Si
A56: Normativa: ¿Se dispone de una regulación adecuada para el almacenamiento de energía? | B56: Si | C56: Si | D56: Si | E56: Si | F56: Si | G56: Si | H56: Si | I56: Si | J56: Si | K56: Si
A57: Normativa: ¿Alguna institución externa apoya o respalda la comunidad en el desarrollo del proyecto? | B57: Si | C57: Si | D57: Si | E57: Si | F57: Si | G57: Si | H57: Si | I57: Si | J57: Si | K57: Si
A58: Normativa: ¿La comunidad tiene acceso a asesoramiento legal para cumplir con los trámites normativos? | B58: Si | C58: Si | D58: Si | E58: Si | F58: Si | G58: Si | H58: Si | I58: Si | J58: Si | K58: Si
A59: Normativa: ¿Se cuenta con permisos de uso de suelo y otros derechos para instalar las infraestructuras de generación de energía? | B59: Si | C59: Si | D59: Si | E59: Si | F59: Si | G59: Si | H59: Si | I59: Si | J59: Si | K59: Si
A60: Normativa: ¿La Comunidad Energética está o se encuentra en proceso de estar reconocida legalmente como entidad jurídica (asociación, cooperativa o consorcio)? | B60: Si | C60: Si | D60: Si | E60: Si | F60: Si | G60: Si | H60: Si | I60: Si | J60: Si | K60: Si
A61: Técnica: ¿El circuito de distribución local tiene capacidad para soportar la generación estimada (límite del 50%)? | B61: Si | C61: Si | D61: Si | E61: Si | F61: Si | G61: Si | H61: Si | I61: Si | J61: Si | K61: Si
A62: Técnica: ¿En la Comunidad se cuentan con espacios accesibles para la instalación de infraestructura requerida para la generación de energía? | B62: No | C62: Si | D62: No | E62: No | F62: No | G62: No | H62: No | I62: No | J62: No | K62: No
A63: Técnica: ¿Se han evaluado los posibles riesgos financieros, operativos y/o sociales que pueden afectar el funcionamiento de la Comunidad Energética? | B63: No sé | C63: No sé | D63: No sé | E63: No sé | F63: No sé | G63: No sé | H63: No sé | I63: No sé | J63: No sé | K63: No sé
A64: ¿La comunidad presenta deudas con la empresa prestadora de servicios públicos? | B64: No | C64: No | D64: Si | E64: No | F64: No | G64: No | H64: No | I64: No | J64: No | K64: No
A65: ¿La comunidad cuenta con vías de acceso adecuadas para el transporte de insumos y equipos necesarios para el proyecto? | B65: No | C65: No | D65: No | E65: No | F65: No | G65: No | H65: No | I65: No | J65: No | K65: No
A66: Especifique si las vías son pavimentadas, de tierra o trochas, y su estado actual.
A67: ¿Existen antecedentes o situaciones actuales de conflicto armado en la región que puedan afectar el desarrollo del proyecto? | B67: No | C67: No | D67: No | E67: No | F67: No | G67: No | H67: No | I67: No | J67: No | K67: No
A68: ¿La comunidad tiene acceso a internet de banda ancha o conexiones limitadas? | B68: No | C68: No | D68: No | E68: No | F68: No | G68: No | H68: No | I68: No | J68: No | K68: No
A69: Seleccione el tipo de acceso acceso residencial y comunitario).
A70: ¿Existe cobertura de señal celular en la comunidad para servicios básicos de comunicación? | B70: No | C70: No | D70: No | E70: No | F70: No | G70: No | H70: No | I70: No | J70: No | K70: No
A71: (Especificar si la cobertura incluye GSM únicamente o también acceso a datos móviles).
A72: Porcentaje Fortalezas | B72: =COUNTIF(B$44:B$71, "Si") / COUNTA(B$44:B$71) -> 68% | C72: =COUNTIF(C$44:C$71, "Si") / COUNTA(C$44:C$71) -> 72% | D72: =COUNTIF(D$44:D$71, "Si") / COUNTA(D$44:D$71) -> 72% | E72: 68% | F72: 68% | G72: 68% | H72: 68% | I72: 68% | J72: 68% | K72: 68%
A73: Porcentaje Debilidades | B73: =COUNTIF($B$44:$B$64, "No") / COUNTA($B$44:$B$64) -> 10% | C73: 10% | D73: 10% | E73: 10% | F73: 10% | G73: 10% | H73: 10% | I73: 10% | J73: 10% | K73: 10%
A74: Porcentaje Desconocimiento | B74: =COUNTIF(B$44:B$71, "No Sé") / COUNTA(B$44:B$71) -> 4% | C74: =COUNTIF(C$44:C$71, "No Sé") / COUNTA(C$44:C$71) -> 4% | D74: 4% | E74: 4% | F74: 4% | G74: 4% | H74: 4% | I74: 4% | J74: 4% | K74: 4%
A75: 🔍 ¿Cómo interpretar el resultado? Para las comunidades con color verde se recomienda continuar con la calificación, sin embargo queda a discresión de quien esta evaluando | B75: Verde: Más del 70% son fortalezas
B76: Amarillo: Más del 50% son fortalezas
B77: Rojo: Menos del 50% son fortalezas

Sheet Consulta de Rangos
A1: Consulta de Variables | AJ1: =_xlfn.XLOOKUP(B4,B8:B56,C8:J56) -> El periodo de tiempo necesario para que las ganancias acumuladas de un proyecto igualen el costo total de la inversión. | AK1: Obligatorio | AL1: Cuantitativa | AM1: Años | AN1: > 15 años | AO1: 10-15 años | AP1: 6-10 años | AQ1: < 6 años
A2: Bienvenido a la sección de consulta de indicadores de la herramienta. Aquí puedes obtener información detallada sobre cada una de ellas. Selecciona a continuación el tipo y el indicador de tu interés, la información correspondiente aparecerá automáticamente a continuación.
A3: Tipo de indicador | B3: Económico | E3: =HYPERLINK("#'Calificación "&Caracterización!$C$5&"'!j7","Regresa a la calificación") -> Regresa a la calificación
A4: Indicador | B4: Tiempo de retorno de la inversión
A5: ="El indicador: "&B4&", se define como: "&AJ1&CHAR(10)&"Se considera un indicador "&AK1&CHAR(10)&"Es una variable "&AL1&". Sus unidades son: "&AM1&CHAR(10)&"Los niveles de priorización son: "&CHAR(10)&G7&": "&AN1&CHAR(10)&H7&": "&AO1&CHAR(10)&I7&": "&AP1&CHAR(10)&J7&": "&AQ1 -> El indicador: Tiempo de retorno de la inversión, se define como: El periodo de tiempo necesario para que las ganancias acumuladas de un proyecto igualen el costo total de la inversión. Se considera un indicador Obligatorio Es una variable Cuantitativa. Sus unidades son: Años Los niveles de priorización son: 1 - Nivel Rojo: > 15 años 2 - Nivel Naranja: 10-15 años 3 - Nivel Amarillo: 6-10 años 4 - Nivel Verde: < 6 años
A7: Categoría | B7: Indicador / Criterios | C7: Definición | D7: Opcional/ Obligatoria | E7: Tipo de variable | F7: Unidades | G7: 1 - Nivel Rojo | H7: 2 - Nivel Naranja | I7: 3 - Nivel Amarillo | J7: 4 - Nivel Verde
A8: Ambiental | B8: EROI (tasa de retorno energético) | C8: Mide la relación entre la energía obtenida de un proyecto y la energía invertida para producirla. Un valor mayor indica mayor eficiencia energética. (Relación de energía generada/energía invertida) | D8: Opcional | E8: Cuantitativa | F8: Adimensional | G8: < 3 | H8: 3-5 | I8: 5-10 | J8: > 10 | AG8: =_xlfn.UNIQUE(A8:A51) -> Ambiental | AH8: =IF(B3="Seleccione…","",_xlfn._xlws.FILTER($B$8:$B$61,$A$8:$A$61=B3)) -> Ahorro monetario del usuario en la factura eléctrica
A9: Ambiental | B9: Reducción anual de gases de efecto invernadero | C9: Reducción estimada de gases de efecto invernadero (CO2e) que se espera reducir cada año debido al cambio en la fuene de energía. | D9: Opcional | E9: Cuantitativa | F9: Porcentaje (%) | G9: < 10% reducción | H9: 10%-20% reducción | I9: 20%-30% reducción | J9: > 30% reducción | AG9: Económico | AH9: Coste de generación de energía ($/MWh)
A10: Ambiental | B10: Territorios de alta dependencia de carbón térmico | C10: Variable incluida para focalizar aquellas comunidades ubicadas en entes territoriales cuya estructura económica muestre altos grados de dependencia de la explotación de carbón térmico, bien sea para la exportación de este mineral o para su uso interno en el país, conforme lo informado por la Unidad de Planeación Minero-Energética (UPME) en el portal del Sistema de Información Minero Colombiano (SIMCO). | D10: Opcional | E10: Cuantitativa | F10: Porcentaje (%) | G10: < 10% dependencia | H10: 10%-20% dependencia | I10: 20%-30% dependencia | J10: > 30% dependencia | AG10: Legislativo/ normativo | AH10: La comunidad realiza el pago por servicio de energía de manera cumplida
A11: Económico | B11: Ahorro monetario del usuario en la factura eléctrica | C11: Ahorros monetarios que experimenta el usuario final al formar parte de la Comunidad Energética (CEC) y consumir energía renovable. | D11: Obligatorio | E11: Cuantitativa | F11: Porcentaje (%) | G11: < 10% ahorro | H11: 10%-20% ahorro | I11: 20%-30% ahorro | J11: > 30% ahorro | AG11: Social | AH11: Tiempo de retorno de la inversión
A12: Económico | B12: Coste de generación de energía ($/MWh) | C12: Mide el costo promedio de producir energía eléctrica desde el Sistema Interconectado Nacional (SIN). Este costo incluye los gastos de inversión inicial, operación, mantenimiento y combustibles asociados a la generación de un megavatio-hora (MWh). | D12: Obligatorio | E12: Cuantitativa | F12: USD/MWh | G12: < 230 USD/MWh | H12: 230-250 USD/MWh | I12: 250-280 USD/MWh | J12: > 280 USD/MWh | AG12: Técnico | AH12: Tasa interna de rentabilidad (TIR)
A13: Económico | B13: La comunidad realiza el pago por servicio de energía de manera cumplida | C13: Porcentaje de usuarios de la comunidad energética que realizan el pago del servicio energético de manera regular y dentro de los plazos establecidos. | D13: Obligatorio | E13: Porcentual | F13: Porcentaje de Usuarios (%) | G13: > 60% | H13: 40%-60% | I13: 20%-40% | J13: < 20% | AG13: 0 | AH13: Identificación de fuentes de financiación alternativas viables
A14: Económico | B14: Tiempo de retorno de la inversión | C14: El periodo de tiempo necesario para que las ganancias acumuladas de un proyecto igualen el costo total de la inversión. | D14: Obligatorio | E14: Cuantitativa | F14: Años | G14: > 15 años | H14: 10-15 años | I14: 6-10 años | J14: < 6 años | AH14: Capacidad de cofinanciación local
A15: Económico | B15: Tasa interna de rentabilidad (TIR) | C15: Medida de la rentabilidad de una inversión. | D15: Obligatorio | E15: Cuantitativa | F15: Porcentaje (%) | G15: < 5% | H15: 5%-7% | I15: 7%-10% | J15: > 10% | AH15: Capacidad y voluntad de los miembros de la comunidad para financiar el proyecto
A16: Económico | B16: Identificación de fuentes de financiación alternativas viables | C16: Mide la existencia y diversidad de fuentes de financiación alternativas (subsidios, donaciones, préstamos) para el proyecto. | D16: Obligatorio | E16: Cualitativa | F16: Categórica | G16: No se han identificado fuentes alternativas viables. | H16: Identificación limitada con alta dependencia de una fuente. | I16: Identificación moderada con al menos dos fuentes viables. | J16: Identificación robusta con múltiples fuentes viables y diversificadas. | AH16: Costos energéticos promedio por usuario
A17: Económico | B17: Capacidad de cofinanciación local | C17: Evalúa el porcentaje de recursos que la comunidad puede aportar para financiar el proyecto. | D17: Obligatorio | E17: Cuantitativa | F17: Porcentaje (%) | G17: < 10% | H17: 10%-30% | I17: 30%-50% | J17: > 50%
A18: Económico | B18: Capacidad y voluntad de los miembros de la comunidad para financiar el proyecto | C18: Grado en que los miembros de la comunidad pueden y desean contribuir financieramente al proyecto. | D18: Opcional | E18: Cuantitativa | F18: % miembros de la comunidad | G18: < 15% | H18: 15%-30% | I18: 30%-50% | J18: > 50%
A19: Económico | B19: Costos energéticos promedio por usuario | C19: Promedio de gastos en energía por hogar en la comunidad evaluada. | D19: Opcional | E19: Cuantitativa | F19: $ COP/ vivienda | G19: < 40.000 COP | H19: 40.000-80.000 COP | I19: 80.000-120.000 | J19: > 120.000 COP
A20: Legislativo/ normativo | B20: Disposición de instituciones externas para representar a la comunidad energética | C20: Evalúa cualitativamente la disposición de instituciones externas para representar formalmente a una comunidad energética en aspectos legales, técnicos, financieros o de gobernanza. | D20: Obligatorio | E20: Cualitativa | F20: Categórica | G20: Baja disposición | H20: Media disposición | I20: Alta disposición | J20: Muy alta disposición
A21: Legislativo/ normativo | B21: ¿Se cuenta con avances en lineamientos para la distribución y almacenamiento de energía? Autoconsumo | C21: Existencia de lineamiento que faciliten el autoconsumo y el almacenamiento energético en la comunidad. | D21: Obligatorio | E21: Cualitativa | F21: Categórica | G21: Sin avances regulatorios | H21: Avances iniciales | I21: Avances moderados | J21: Lineamientos establecidos
A22: Legislativo/ normativo | B22: Políticas de Inclusión de Género en la Gobernanza de las Comunidades Energéticas | C22: Evalúa la existencia, alcance y efectividad de medidas específicas orientadas a promover la inclusión de género en la gobernanza de las comunidades energéticas. | D22: Obligatorio | E22: Cualitativa | F22: Categórica | G22: Sin medidas de inclusión | H22: Avances iniciales en medidas | I22: Medidas parcialmente implementadas | J22: Medidas plenamente implementadas
A23: Legislativo/ normativo | B23: Facilidad de trámites y permisos | C23: Evalúa el nivel de complejidad, costo y tiempo necesario para obtener permisos legales y normativos para el proyecto. | D23: Obligatorio | E23: Cualitativa | F23: Categórica | G23: Procesos complejos, costosos y prolongados (> 12 meses) | H23: Procesos moderadamente complejos (6-12 meses) | I23: Procesos simplificados (3-6 meses) | J23: Procesos rápidos y accesibles (< 3 meses)
A24: Social | B24: Participación Femenina en la Comunidad Energética | C24: Nivel de involucramiento de las mujeres en las actividades y decisiones de la comunidad energética. | D24: Obligatorio | E24: Cuantitativa | F24: Porcentaje de mujeres en la comunidad (%) | G24: < 20% | H24: 20%-35% | I24: 35%-50% | J24: > 50%
A25: Social | B25: Población de especial protección constitucional del sector Paz (víctimas, personas en proceso de reincorporación) | C25: Variable incluida para focalizar poblacionalmente a aquellas comunidades que en su constitución cuente con personas registradas en el Registro Único de Víctimas (RUV), conforme a los parámetros establecidos en la Ley 1448 de 2011, o que hayan sido reconocidas como sujetos de reparación colectiva, así como personas que se encuentren activas en el proceso de reincorporación de acuerdo con el Acto Legislativo 001 del 2017 y su normatividad regulatoria. | D25: Obligatorio | E25: Cuantitativa | F25: Porcentaje (%) | G25: < 30% | H25: 30%-40% | I25: 40%-60% | J25: > 60%
A26: Social | B26: Presencia de comunidades étnicas | C26: Variable incluida para focalizar poblacionalmente a aquellas comunidades que en su constitución cuenten con personas o comunidades autorreconocidas como étnicas según el Censo Nacional de Población y Vivienda, y/o el último registro que dé cuenta de la población étnica con fuente DANE, y lo que en la materia haya dispuesto el Ministerio del Interior. | D26: Obligatorio | E26: Cualitativa | F26: Categórica | G26: Sin presencia de comunidades étnicas | H26: Moderada presencia de comunidades étnicas | I26: Alta presencia de comunidades étnicas | J26: Corresponde a una comunidad étnica
A27: Social | B27: Territorios colectivos de pueblos originarios o comunidades indígenas | C27: Variable incluida para focalizar a aquellas comunidades ubicadas en estos territorios legalmente establecidos. | D27: Obligatorio | E27: Cualitativa | F27: Categórica | G27: Sin presencia de comunidades indígenas | H27: Moderada presencia de comunidades indígenas | I27: Alta presencia de comunidades indígenas | J27: Corresponde a una comunidad indígena
A28: Social | B28: Territorios de Antiguos espacios territoriales de capacitación y reincorporación y áreas especiales de reincorporación colectiva | C28: Variable incluida para focalizar a aquellas comunidades ubicadas en los AETCR en los cuales residen firmantes del Acuerdo Final de Paz, sus familias y comunidades contemplados en Decreto número 1274 del 2017, y de las AERC contemplados en el decreto del Programa de Reincorporación Integral. | D28: Obligatorio | E28: Cualitativa | F28: Categórica | G28: Sin presencia de comunidades | H28: Moderada presencia de comunidades | I28: Alta presencia de comunidades | J28: Corresponde a una comunidad
A29: Social | B29: Territorios de Paz | C29: Variable incluida para focalizar a aquellas comunidades ubicadas en entidades territoriales que están contempladas en el Programa de Desarrollo con Enfoque Territorial (PDET) y en las Zonas Más Afectadas por el Conflicto Armado (ZOMAC) que se constituyen dentro del marco para la paz, en relación con lo establecido por la Ley 2272 de 2022 “Ley de Paz Total”. | D29: Obligatorio | E29: Cualitativa | F29: Categórica | G29: Sin proyectos de paz | H29: Proyectos en planeación | I29: Proyectos implementados | J29: Proyectos activos
A30: Social | B30: Territorios de Sistema Nacional de la Reforma Agraria y Desarrollo Rural, entre otras | C30: Variable incluida para focalizar a aquellas comunidades ubicadas en territorios constituidos en el marco de los términos de la Ley 160 de 1994 o demás normas concordantes o las normas que lo modifiquen o complementen. | D30: Obligatorio | E30: Cualitativa | F30: Categórica | G30: No están priorizados | H30: Priorización en fase de planeación | I30: Priorización en etapas iniciales | J30: Priorización avanzada
A31: Social | B31: Redes de cooperación intercomunitaria | C31: Grado de colaboración entre la comunidad y otras localidades o instituciones. | D31: Obligatorio | E31: Cualitativa | F31: Categórica | G31: No existen redes de cooperación. | H31: Cooperación limitada y ocasional. | I31: Cooperación moderada con al menos dos comunidades o instituciones. | J31: Cooperación activa y sólida con múltiples comunidades o instituciones.
A32: Social | B32: Transparencia de los datos | C32: Grado de acceso y claridad de la información del proyecto proporcionada a la comunidad. | D32: Obligatorio | E32: Cualitativa | F32: Categórica | G32: No existe acceso a datos | H32: Información limitada y poco clara. | I32: Información moderadamente accesible y clara. | J32: Información completamente accesible, clara y actualizada.
A33: Social | B33: ¿Cómo es la relación entre los miembros de la comunidad y las instituciones públicas y privadas pertinentes? | C33: Evaluar la calidad de las interacciones entre la comunidad y las instituciones que podrían apoyar el proyecto. | D33: Opcional | E33: Cuantitativa | F33: % miembros de la comunidad que considerar que su relación con las instituciones es buena | G33: < 30% | H33: 30%-50% | I33: 50%-70% | J33: > 70%
A34: Social | B34: ¿Están dispuestos los miembros de la comunidad a invertir tiempo en actividades comunitarias de voluntariado? | C34: Grado de disposición de los miembros de la comunidad para contribuir con tiempo y esfuerzo al proyecto. | D34: Opcional | E34: Cuantitativa | F34: Porcentaje de miembros de la comunidad (%) | G34: < 15% | H34: 15%-30% | I34: 30%-50% | J34: > 50%
A35: Social | B35: ¿Los techos o superficies de tierra potencialmente viables son propiedad de los miembros de la comunidad? | C35: Evaluación de la titularidad de las áreas donde se implementará el proyecto. | D35: Opcional | E35: Cuantitativa | F35: Porcentaje (%) | G35: Ninguna superficie viable es de propiedad comunitaria. | H35: Menos del 50% de las superficies viables son de propiedad comunitaria. | I35: Entre 50%-80% de las superficies viables son de propiedad comunitaria. | J35: > 80% de las superficies viables son de propiedad comunitaria.
A36: Social | B36: Aceptación del usuario | C36: Grado de aprobación de los usuarios hacia el proyecto energético propuesto. | D36: Opcional | E36: Cuantitativa | F36: Porcentaje (%) | G36: < 50% aceptación | H36: 50%-60% aceptación | I36: 60-70% aceptación | J36: > 70% aceptación
A37: Social | B37: Impacto de las Iniciativas Energéticas en las Mujeres de la Comunidad | C37: Evaluación de los beneficios específicos que las mujeres obtendrán del proyecto energético. | D37: Opcional | E37: Cuantitativa | F37: Porcentaje de mujeres esperado que pueden obtener empleo en estos proyectos (%) | G37: < 30% | H37: 30%-40% | I37: 40%-60% | J37: > 60%
A38: Social | B38: Cumplimiento de consultas previas | C38: Verificar si se han realizado las consultas previas requeridas por la normativa legal en la comunidad. | D38: Opcional | E38: Cualitativa | F38: Categórica | G38: No se han realizado consultas previas | H38: Consultas previas en proceso | I38: Consultas previas completamente realizadas, no documentadas | J38: Consultas previas completamente realizadas y documentadas
A39: Social | B39: Capacitación en Energías Renovables con Enfoque de Género | C39: Formación técnica ofrecida a los miembros de la comunidad, garantizando la inclusión equitativa de género. | D39: Opcional | E39: Cualitativa | F39: Categórica | G39: No se han realizado capacitaciones | H39: Capacitaciones no completadas | I39: Capacitaciones completamente ejecutadas, no documentadas | J39: Capacitaciones completamente ejecutadas y documentadas
A40: Técnico | B40: ¿Hay capacidad disponible en el circuito de distribución local para la capacidad de generación estimada? (límite del 50%) | C40: Verificación técnica de que el circuito de distribución puede manejar el incremento de generación sin exceder el límite del 50% de capacidad. | D40: Obligatorio | E40: Cuantitativa | F40: Porcentaje (%) | G40: < 10% | H40: 10%-30% | I40: 30%-50% | J40: > 50%
A41: Técnico | B41: ¿Se trata de una comunidad ya postulada y focalizada? | C41: Indica si la comunidad ha sido identificada previamente en programas o estrategias relacionadas con comunidades energéticas. | D41: Obligatorio | E41: Cualitativa | F41: Categórica | G41: Ni postulada ni focalizada | H41: En proceso de postulación | I41: Postulada y parcialmente focalizada | J41: Postulada y focalizada
A42: Técnico | B42: Ahorro de energía de la red | C42: Reducción estimada en el consumo de energía de la red eléctrica del SIN como resultado del proyecto. | D42: Obligatorio | E42: Cuantitativa | F42: Porcentaje (%) | G42: < 20% | H42: 20%-35% | I42: 35%-50% | J42: > 50%
A43: Técnico | B43: Capacidad técnica local (no siempre es esencial, ya que la capacitación puede ser parte del proyecto.) | C43: Habilidad de los miembros de la comunidad para operar y mantener los sistemas energéticos. | D43: Opcional | E43: Cuantitativa | F43: Porcentaje de miembros de la comunidad (%) | G43: < 10% | H43: 10%-20% | I43: 20%-30% | J43: > 30%
A44: Técnico | B44: Grado de avance del sistema energético que se proyecta implementar | C44: Nivel de preparación técnica, operativa y administrativa del sistema energético que se busca desarrollar. | D44: Opcional | E44: Cualitativa | F44: Categórica | G44: Sin planificación | H44: Planificación inicial | I44: Planificación intermedia | J44: Sistema listo para implementación
A45: Técnico | B45: Pérdidas de Energía Eléctrica | C45: Evaluar las pérdidas eléctricas en áreas específicas es esencial para identificar zonas con problemáticas de conexiones irregulares. En estos casos, las soluciones orientadas a Comunidades Energéticas pueden actuar como habilitadoras para la normalización de redes eléctricas, contribuyendo a la mejora de la infraestructura, la formalización del acceso al servicio y disminución de riesgos de recaer en comportamientos ilegales o pasar a condiciones de morosidad en los pagos. | D45: Opcional | E45: Cuantitativa | F45: Porcentaje | G45: < 10% | H45: 10%-15% | I45: 15%-20% | J45: > 20%
A46: Técnico | B46: Calidad del servicio (Frecuencia y duración de interrupciones) | C46: Incorporar variables de calidad del servicio permitirá reflejar la continuidad percibida del servicio eléctrico en áreas específicas. Esto puede aportar información valiosa para priorizar aquellas zonas con deficiencias en la calidad del servicio, donde las Comunidades Energéticas podrían generar impactos positivos. | D46: Opcional | E46: Cualitativa | F46: Categórica | G46: Alta calidad: Menos de 3 interrupciones al mes con duración promedio inferior a 1 hora. | H46: Moderada calidad - alta: Entre 3 y 6 interrupciones al mes con duración promedio entre 1 y 2 horas. | I46: Moderada calidad - baja: Entre 7 y 10 interrupciones al mes con duración promedio entre 2 y 4 horas. | J46: Baja calidad: Más de 10 interrupciones al mes con duración promedio superior a 4 horas.

Sheet Consulta de Potencial
A1: Consulta de Potenciales por municipio
A2: Estos valores representan los resultados del potencial energético, evaluados según lo descrito en la Sección 4 de la Hoja de Ruta para el Despliegue de Comunidades Energéticas. El análisis integra variables ambientales, económicas, sociales y técnicas de cada municipio basadas en la información disponible. Selecciona a continuación el departamento y el municipio, los potenciales calculados correspondientes aparecerán automáticamente a continuación. 💡 ¿Tienes datos más actualizados? Puedes enriquecer estos resultados actualizando el Anexo 3 de la Hoja de Ruta con información más reciente o detallada.
A4: Departamento | B4: Antioquia
A5: Municipio | B5: Caldas
A7: Código del municipio | B7: Fotovoltáica | C7: Eólica | D7: Biomasa vegetal | E7: Biomasa animal | F7: Hídrica | G7: =HYPERLINK("#'Resultados "&Caracterización!$C$5&"'!j7","Regresa a los Resultados") -> Regresa a los Resultados
A8: =_xlfn.XLOOKUP(B5,Potenciales[Municipio],Potenciales[[Código del municipio ]],,0) -> 636 | B8: =_xlfn.XLOOKUP(B5,Potenciales[Municipio],Potenciales[[Fotovoltáica]:[Hídrica]],,0) -> 0.8087 | C8: 0.7207 | D8: 0.3022 | E8: 0.2914 | F8: 0.3199
A13: Código del municipio | B13: Departamento | C13: Municipio | D13: Fotovoltáica | E13: Eólica | F13: Biomasa vegetal | G13: Biomasa animal | H13: Hídrica | AA13: Potencial | AB13: Estas columnas hacen parte de la base de las celdas de selección | AD13: =Caracterización!B8 -> C1 | AE13: =Caracterización!C8 -> C2 | AF13: =Caracterización!D8 -> C3 | AG13: =Caracterización!E8 -> C4 | AH13: =Caracterización!F8 -> C5 | AI13: =Caracterización!G8 -> C6 | AJ13: =Caracterización!H8 -> C7 | AK13: =Caracterización!I8 -> C8 | AL13: =Caracterización!J8 -> C9 | AM13: =Caracterización!K8 -> C10
A14: 1110 | B14: Amazonas | C14: El Encanto | D14: 0.9922 | E14: 0.5442 | F14: 0.5442 | G14: 0.5442 | H14: 0.7646 | AA14: =_xlfn._xlws.FILTER($C$14:$C$1134,$B$14:$B$1134=B4) -> Abejorral | AB14: Seleccione... | AC14: =_xlfn.UNIQUE(B14:B1134) -> Amazonas | AD14: =_xlfn._xlws.FILTER($C$14:$C$1134,$B$14:$B$1134=Caracterización!B10) -> Alpujarra | AE14: =_xlfn._xlws.FILTER($C$14:$C$1134,$B$14:$B$1134=Caracterización!C10) -> Bogotá, D.C. | AF14: =_xlfn._xlws.FILTER($C$14:$C$1134,$B$14:$B$1134=Caracterización!D10) -> Aguadas | AG14: =_xlfn._xlws.FILTER($C$14:$C$1134,$B$14:$B$1134=Caracterización!E10) -> Abejorral | AH14: =_xlfn._xlws.FILTER($C$14:$C$1134,$B$14:$B$1134=Caracterización!F10) -> Abejorral | AI14: =_xlfn._xlws.FILTER($C$14:$C$1134,$B$14:$B$1134=Caracterización!G10) -> Albania | AJ14: =_xlfn._xlws.FILTER($C$14:$C$1134,$B$14:$B$1134=Caracterización!H10) -> Ábrego | AK14: =_xlfn._xlws.FILTER($C$14:$C$1134,$B$14:$B$1134=Caracterización!I10) -> Bogotá, D.C. | AL14: =_xlfn._xlws.FILTER($C$14:$C$1134,$B$14:$B$1134=Caracterización!J10) -> Providencia y Santa Catalina | AM14: =_xlfn._xlws.FILTER($C$14:$C$1134,$B$14:$B$1134=Caracterización!K10) -> Alcalá | AY14: Junta de Acción Comunal | AZ14: Resguardo | BA14: No sé cómo se encuentra constituida | BB14: Otra
A15: 1 | B15: Amazonas | C15: La Chorrera | D15: 0.8708 | E15: 0.4451 | F15: 0.4297 | G15: 0.4296 | H15: 0.8571 | AA15: Abriaquí | AB15: Asociación de Autoridades tradicionales | AC15: Antioquia | AD15: Alvarado | AF15: Anserma | AG15: Abriaquí | AH15: Abriaquí | AI15: Barrancas | AJ15: Arboledas | AL15: San Andrés | AM15: Andalucía
A16: 1113 | B16: Amazonas | C16: La Pedrera | D16: 1.0231 | E16: 0.5751 | F16: 0.5851 | G16: 0.5851 | H16: 1.0290 | AA16: Alejandría | AB16: Asociación de productores | AC16: Arauca | AD16: Ambalema | AF16: Aranzazu | AG16: Alejandría | AH16: Alejandría | AI16: Dibulla | AJ16: Bochalema | AM16: Ansermanuevo
A17: 4 | B17: Amazonas | C17: La Victoria | D17: 0.9804 | E17: 0.3122 | F17: 0.2887 | G17: 0.3238 | H17: 0.3690 | AA17: Amagá | AB17: Asociación de usuarios | AC17: Atlántico | AD17: Anzoátegui | AF17: Belalcázar | AG17: Amagá | AH17: Amagá | AI17: Distracción | AJ17: Bucarasica | AM17: Argelia
A18: 1055 | B18: Amazonas | C18: Leticia | D18: 0.8230 | E18: 0.3746 | F18: 0.3916 | G18: 0.3844 | H18: 0.4066 | AA18: Amalfi | AB18: Cabildo | AC18: Bogotá, D.C | AD18: Armero | AF18: Chinchiná | AG18: Amalfi | AH18: Amalfi | AI18: El Molino | AJ18: Cáchira | AM18: Bolívar
A19: 3 | B19: Amazonas | C19: Mirití-Paraná | D19: 1.0318 | E19: 0.6039 | F19: 0.5985 | G19: 0.5985 | H19: 1.1538 | AA19: Andes | AB19: Consejo Comunitario | AC19: Bolívar | AD19: Ataco | AF19: Filadelfia | AG19: Andes | AH19: Andes | AI19: Fonseca | AJ19: Cácota | AM19: Buenaventura
A20: 1112 | B20: Amazonas | C20: Puerto Alegría | D20: 0.9796 | E20: 0.5472 | F20: 0.5472 | G20: 0.5472 | H20: 0.8646 | AA20: Angelópolis | AB20: Cooperativa | AC20: Boyacá | AD20: Cajamarca | AF20: La Dorada | AG20: Angelópolis | AH20: Angelópolis | AI20: Hatonuevo | AJ20: Chinácota | AM20: Buga
A21: 1111 | B21: Amazonas | C21: Puerto Arica | D21: 0.8909 | E21: 0.4487 | F21: 0.4587 | G21: 0.4587 | H21: 0.7691 | AA21: Angostura | AB21: Corporación | AC21: Caldas | AD21: Carmen De Apicalá | AF21: La Merced | AG21: Angostura | AH21: Angostura | AI21: La Jagua Del Pilar | AJ21: Chitagá | AM21: Bugalagrande
A22: 1054 | B22: Amazonas | C22: Puerto Nariño | D22: 0.8971 | E22: 0.4367 | F22: 0.4541 | G22: 0.4371 | H22: 0.4392 | AA22: Anorí | AB22: Empresa Comunitaria prestadora | AC22: Caquetá | AD22: Casabianca | AF22: Manizales | AG22: Anorí | AH22: Anorí | AI22: Maicao | AJ22: Convención | AM22: Caicedonia
A23: 2 | B23: Amazonas | C23: Santander | D23: 0.9848 | E23: 0.5488 | F23: 0.5433 | G23: 0.5433 | H23: 0.8979 | AA23: Anzá | AB23: Junta de Acción Comunal | AC23: Casanare | AD23: Chaparral | AF23: Manzanares | AG23: Anzá | AH23: Anzá | AI23: Manaure | AJ23: Cúcuta | AM23: Cali
A24: 1109 | B24: Amazonas | C24: Tarapacá | D24: 0.9121 | E24: 0.4736 | F24: 0.4736 | G24: 0.4749 | H24: 0.5021 | AA24: Apartadó | AB24: Resguardo | AC24: Cauca | AD24: Coello | AF24: Marmato | AG24: Apartadó | AH24: Apartadó | AI24: Riohacha | AJ24: Cucutilla | AM24: Calima
A25: 600 | B25: Antioquia | C25: Abejorral | D25: 0.9709 | E25: 0.2926 | F25: 0.2662 | G25: 0.2757 | H25: 0.2927 | AA25: Arboletes | AB25: No sé cómo se encuentra constituida | AC25: Cesar | AD25: Coyaima | AF25: Marquetalia | AG25: Arboletes | AH25: Arboletes | AI25: San Juan Del Cesar | AJ25: Durania | AM25: Candelaria
A26: 756 | B26: Antioquia | C26: Abriaquí | D26: 0.6933 | E26: 0.3558 | F26: 0.2727 | G26: 0.2679 | H26: 0.4829 | AA26: Argelia | AB26: Otra | AC26: Chocó | AD26: Cunday | AF26: Marulanda | AG26: Argelia | AH26: Argelia | AI26: Uribia | AJ26: El Carmen | AM26: Cartago
A27: 696 | B27: Antioquia | C27: Alejandría | D27: 0.9225 | E27: 0.2317 | F27: 0.2542 | G27: 0.2382 | H27: 0.2865 | AA27: Armenia | AC27: Córdoba | AD27: Dolores | AF27: Neira | AG27: Armenia | AH27: Armenia | AI27: Urumita | AJ27: El Tarra | AM27: Dagua
A28: 630 | B28: Antioquia | C28: Amagá | D28: 0.9794 | E28: 0.3073 | F28: 0.2886 | G28: 0.4160 | H28: 0.3959 | AA28: Barbosa | AC28: Cundinamarca | AD28: Espinal | AF28: Norcasia | AG28: Barbosa | AH28: Barbosa | AI28: Villanueva | AJ28: El Zulia | AM28: El Águila
A29: 813 | B29: Antioquia | C29: Amalfi | D29: 0.8285 | E29: 0.2951 | F29: 0.3006 | G29: 0.3163 | H29: 0.3342 | AA29: Bello | AC29: Guainía | AD29: Falan | AF29: Pácora | AG29: Bello | AH29: Bello | AJ29: Gramalote | AM29: El Cairo
A30: 567 | B30: Antioquia | C30: Andes | D30: 0.6572 | E30: 0.2810 | F30: 0.3484 | G30: 0.2767 | H30: 0.4175 | AA30: Belmira | AC30: Guaviare | AD30: Flandes | AF30: Palestina | AG30: Belmira | AH30: Belmira | AJ30: Hacarí | AM30: El Cerrito
A31: 654 | B31: Antioquia | C31: Angelópolis | D31: 0.8867 | E31: 0.3625 | F31: 0.2982 | G31: 0.3259 | H31: 0.4215 | AA31: Betania | AC31: Huila | AD31: Fresno | AF31: Pensilvania | AG31: Betania | AH31: Betania | AJ31: Herrán | AM31: El Dovio
A32: 784 | B32: Antioquia | C32: Angostura | D32: 0.8862 | E32: 0.2386 | F32: 0.2545 | G32: 0.2293 | H32: 0.2312 | AA32: Betulia | AC32: La Guajira | AD32: Guamo | AF32: Riosucio | AG32: Betulia | AH32: Betulia | AJ32: La Esperanza | AM32: Florida
A33: 825 | B33: Antioquia | C33: Anorí | D33: 0.8689 | E33: 0.3822 | F33: 0.3877 | G33: 0.3872 | H33: 0.3840 | AA33: Briceño | AC33: Magdalena | AD33: Herveo | AF33: Risaralda | AG33: Briceño | AH33: Briceño | AJ33: La Playa | AM33: Ginebra
A34: 695 | B34: Antioquia | C34: Anzá | D34: 1.0189 | E34: 0.3066 | F34: 0.2909 | G34: 0.2837 | H34: 0.5504 | AA34: Buriticá | AC34: Meta | AD34: Honda | AF34: Salamina | AG34: Buriticá | AH34: Buriticá | AJ34: Labateca | AM34: Guacarí
A35: 859 | B35: Antioquia | C35: Apartadó | D35: 0.5459 | E35: 0.3744 | F35: 0.3507 | G35: 0.2752 | H35: 0.2651 | AA35: Cáceres | AC35: Nariño | AD35: Ibagué | AF35: Samaná | AG35: Cáceres | AH35: Cáceres | AJ35: Los Patios | AM35: Jamundí
A36: 908 | B36: Antioquia | C36: Arboletes | D36: 0.7851 | E36: 0.3764 | F36: 0.2900 | G36: 0.3983 | H36: 0.2623 | AA36: Caicedo | AC36: Norte de Santander | AD36: Icononzo | AF36: San José | AG36: Caicedo | AH36: Caicedo | AJ36: Lourdes | AM36: La Cumbre
A37: 562 | B37: Antioquia | C37: Argelia | D37: 0.6728 | E37: 0.4125 | F37: 0.3246 | G37: 0.3024 | H37: 0.3207 | AA37: Caldas | AC37: Putumayo | AD37: Lérida | AF37: Supia | AG37: Caldas | AH37: Caldas | AJ37: Mutiscua | AM37: La Unión
A38: 664 | B38: Antioquia | C38: Armenia | D38: 0.7696 | E38: 0.2645 | F38: 0.2831 | G38: 0.4055 | H38: 0.2555 | AA38: Campamento | AC38: Quindío | AD38: Líbano | AF38: Victoria | AG38: Campamento | AH38: Campamento | AJ38: Ocaña | AM38: La Victoria
A39: 715 | B39: Antioquia | C39: Barbosa | D39: 1.1285 | E39: 0.3008 | F39: 0.2818 | G39: 0.3937 | H39: 0.3113 | AA39: Cañasgordas | AC39: Risaralda | AD39: Mariquita | AF39: Villamaria | AG39: Cañasgordas | AH39: Cañasgordas | AJ39: Pamplona | AM39: Obando
A40: 701 | B40: Antioquia | C40: Bello | D40: 0.9930 | E40: 0.3597 | F40: 0.2625 | G40: 0.2951 | H40: 0.3879 | AA40: Caracolí | AC40: San Andrés y Providencia | AD40: Melgar | AF40: Viterbo | AG40: Caracolí | AH40: Caracolí | AJ40: Pamplonita | AM40: Palmira
A41: 762 | B41: Antioquia | C41: Belmira | D41: 0.8966 | E41: 0.4153 | F41: 0.3083 | G41: 0.3277 | H41: 0.4344 | AA41: Caramanta | AC41: Santander | AD41: Murillo | AG41: Caramanta | AH41: Caramanta | AJ41: Puerto Santander | AM41: Pradera
A42: 572 | B42: Antioquia | C42: Betania | D42: 0.7657 | E42: 0.3016 | F42: 0.3247 | G42: 0.2885 | H42: 0.3042 | AA42: Carepa | AC42: Sucre | AD42: Natagaima | AG42: Carepa | AH42: Carepa | AJ42: Ragonvalia | AM42: Restrepo
A43: 669 | B43: Antioquia | C43: Betulia | D43: 0.7492 | E43: 0.3340 | F43: 0.3013 | G43: 0.3088 | H43: 0.2974 | AA43: Carmen De Viboral | AC43: Tolima | AD43: Ortega | AG43: Carmen De Viboral | AH43: Carmen De Viboral | AJ43: Salazar | AM43: Riofrío
A44: 807 | B44: Antioquia | C44: Briceño | D44: 0.5012 | E44: 0.4344 | F44: 0.3199 | G44: 0.3039 | H44: 0.3378 | AA44: Carolina | AC44: Valle del Cauca | AD44: Palocabildo | AG44: Carolina | AH44: Carolina | AJ44: San Calixto | AM44: Roldanillo
A45: 785 | B45: Antioquia | C45: Buriticá | D45: 0.8608 | E45: 0.4541 | F45: 0.3031 | G45: 0.2895 | H45: 0.6280 | AA45: Caucasia | AC45: Vaupés | AD45: Piedras | AG45: Caucasia | AH45: Caucasia | AJ45: San Cayetano | AM45: San Pedro
A46: 852 | B46: Antioquia | C46: Cáceres | D46: 0.9134 | E46: 0.3379 | F46: 0.3409 | G46: 0.4555 | H46: 0.5264 | AA46: Chigorodó | AC46: Vichada | AD46: Planadas | AG46: Chigorodó | AH46: Chigorodó | AJ46: Santiago | AM46: Sevilla
A47: 714 | B47: Antioquia | C47: Caicedo | D47: 0.7836 | E47: 0.2806 | F47: 0.2565 | G47: 0.2422 | H47: 0.3849 | AA47: Cisneros | AD47: Prado | AG47: Cisneros | AH47: Cisneros | AJ47: Sardinata | AM47: Toro
A48: 636 | B48: Antioquia | C48: Caldas | D48: 0.8087 | E48: 0.7207 | F48: 0.3022 | G48: 0.2914 | H48: 0.3199 | AA48: Ciudad Bolívar | AD48: Purificación | AG48: Ciudad Bolívar | AH48: Ciudad Bolívar | AJ48: Silos | AM48: Trujillo
A49: 803 | B49: Antioquia | C49: Campamento | D49: 0.9766 | E49: 0.3555 | F49: 0.3734 | G49: 0.3204 | H49: 0.3188 | AA49: Cocorná | AD49: Rioblanco | AG49: Cocorná | AH49: Cocorná | AJ49: Teorama | AM49: Tuluá
A50: 786 | B50: Antioquia | C50: Cañasgordas | D50: 0.8288 | E50: 0.3562 | F50: 0.3072 | G50: 0.3038 | H50: 0.4982 | AA50: Concepción | AD50: Roncesvalles | AG50: Concepción | AH50: Concepción | AJ50: Tibú | AM50: Ulloa
A51: 705 | B51: Antioquia | C51: Caracolí | D51: 1.0225 | E51: 0.2974 | F51: 0.2900 | G51: 0.3002 | H51: 0.3244 | AA51: Concordia | AD51: Rovira | AG51: Concordia | AH51: Concordia | AJ51: Toledo | AM51: Versalles
A52: 525 | B52: Antioquia | C52: Caramanta | D52: 0.8884 | E52: 0.3543 | F52: 0.2952 | G52: 0.2837 | H52: 0.5355 | AA52: Copacabana | AD52: Saldaña | AG52: Copacabana | AH52: Copacabana | AJ52: Villa Caro | AM52: Vijes
A53: 848 | B53: Antioquia | C53: Carepa | D53: 0.5868 | E53: 0.3500 | F53: 0.3040 | G53: 0.2673 | H53: 0.2395 | AA53: Dabeiba | AD53: San Antonio | AG53: Dabeiba | AH53: Dabeiba | AJ53: Villa Del Rosario | AM53: Yotoco
A54: 643 | B54: Antioquia | C54: Carmen De Viboral | D54: 0.9172 | E54: 0.2860 | F54: 0.2739 | G54: 0.3176 | H54: 0.3143 | AA54: Donmatías | AD54: San Luis | AG54: Donmatías | AH54: Donmatías | AM54: Yumbo
A55: 766 | B55: Antioquia | C55: Carolina | D55: 0.9613 | E55: 0.2882 | F55: 0.2805 | G55: 0.2718 | H55: 0.2842 | AA55: Ebéjico | AD55: Santa Isabel | AG55: Ebéjico | AH55: Ebéjico | AM55: Zarzal
A56: 861 | B56: Antioquia | C56: Caucasia | D56: 0.8555 | E56: 0.2444 | F56: 0.2418 | G56: 0.4458 | H56: 0.4267 | AA56: El Bagre | AD56: Suárez | AG56: El Bagre | AH56: El Bagre
A57: 843 | B57: Antioquia | C57: Chigorodó | D57: 0.5319 | E57: 0.3568 | F57: 0.2711 | G57: 0.3288 | H57: 0.2290 | AA57: El Retiro | AD57: Valle De San Juan | AG57: El Retiro | AH57: El Retiro
A58: 730 | B58: Antioquia | C58: Cisneros | D58: 1.0233 | E58: 0.3093 | F58: 0.3026 | G58: 0.2810 | H58: 0.3416 | AA58: Entrerrios | AD58: Venadillo | AG58: Entrerrios | AH58: Entrerrios
A59: 598 | B59: Antioquia | C59: Ciudad Bolívar | D59: 0.9090 | E59: 0.3477 | F59: 0.3476 | G59: 0.3055 | H59: 0.3025 | AA59: Envigado | AD59: Villahermosa | AG59: Envigado | AH59: Envigado
A60: 637 | B60: Antioquia | C60: Cocorná | D60: 0.9748 | E60: 0.2982 | F60: 0.3377 | G60: 0.3203 | H60: 0.3615 | AA60: Fredonia | AD60: Villarrica | AG60: Fredonia | AH60: Fredonia
A61: 704 | B61: Antioquia | C61: Concepción | D61: 0.9785 | E61: 0.2414 | F61: 0.2362 | G61: 0.2325 | H61: 0.3641 | AA61: Frontino | AG61: Frontino | AH61: Frontino
A62: 650 | B62: Antioquia | C62: Concordia | D62: 1.0549 | E62: 0.3968 | F62: 0.3173 | G62: 0.3347 | H62: 0.4393 | AA62: Giraldo | AG62: Giraldo | AH62: Giraldo
A63: 699 | B63: Antioquia | C63: Copacabana | D63: 0.9512 | E63: 0.3608 | F63: 0.2510 | G63: 0.2437 | H63: 0.2955 | AA63: Girardota | AG63: Girardota | AH63: Girardota
A64: 801 | B64: Antioquia | C64: Dabeiba | D64: 0.5051 | E64: 0.3123 | F64: 0.3035 | G64: 0.2996 | H64: 0.5575 | AA64: Gómez Plata | AG64: Gómez Plata | AH64: Gómez Plata
A65: 728 | B65: Antioquia | C65: Donmatías | D65: 1.0125 | E65: 0.2860 | F65: 0.2701 | G65: 0.3497 | H65: 0.2637 | AA65: Granada | AG65: Granada | AH65: Granada
A66: 698 | B66: Antioquia | C66: Ebéjico | D66: 0.9727 | E66: 0.3552 | F66: 0.3039 | G66: 0.2994 | H66: 0.5395 | AA66: Guadalupe | AG66: Guadalupe | AH66: Guadalupe
A67: 855 | B67: Antioquia | C67: El Bagre | D67: 0.8714 | E67: 0.2921 | F67: 0.3001 | G67: 0.2978 | H67: 0.3949 | AA67: Guarne | AG67: Guarne | AH67: Guarne
A68: 646 | B68: Antioquia | C68: El Retiro | D68: 0.8907 | E68: 0.3140 | F68: 0.2545 | G68: 0.2577 | H68: 0.3078 | AA68: Guatapé | AG68: Guatapé | AH68: Guatapé
A69: 743 | B69: Antioquia | C69: Entrerrios | D69: 0.9859 | E69: 0.2984 | F69: 0.2634 | G69: 0.3236 | H69: 0.2598 | AA69: Heliconia | AG69: Heliconia | AH69: Heliconia
A70: 656 | B70: Antioquia | C70: Envigado | D70: 0.8674 | E70: 0.3316 | F70: 0.2547 | G70: 0.2538 | H70: 0.3028 | AA70: Hispania | AG70: Hispania | AH70: Hispania
A71: 610 | B71: Antioquia | C71: Fredonia | D71: 1.0991 | E71: 0.2880 | F71: 0.2828 | G71: 0.3529 | H71: 0.5126 | AA71: Itagüí | AG71: Itagüí | AH71: Itagüí
A72: 781 | B72: Antioquia | C72: Frontino | D72: 0.4663 | E72: 0.2664 | F72: 0.2834 | G72: 0.2823 | H72: 0.3880 | AA72: Ituango | AG72: Ituango | AH72: Ituango
A73: 751 | B73: Antioquia | C73: Giraldo | D73: 0.9602 | E73: 0.4293 | F73: 0.3095 | G73: 0.2935 | H73: 0.5047 | AA73: Jardín | AG73: Jardín | AH73: Jardín
A74: 702 | B74: Antioquia | C74: Girardota | D74: 0.9690 | E74: 0.3334 | F74: 0.2608 | G74: 0.3220 | H74: 0.2990 | AA74: Jericó | AG74: Jericó | AH74: Jericó
A75: 771 | B75: Antioquia | C75: Gómez Plata | D75: 1.0296 | E75: 0.2804 | F75: 0.2682 | G75: 0.2645 | H75: 0.2595 | AA75: La Ceja | AG75: La Ceja | AH75: La Ceja
A76: 661 | B76: Antioquia | C76: Granada | D76: 0.8402 | E76: 0.2998 | F76: 0.2688 | G76: 0.2606 | H76: 0.2603 | AA76: La Estrella | AG76: La Estrella | AH76: La Estrella
A77: 782 | B77: Antioquia | C77: Guadalupe | D77: 0.5066 | E77: 0.3087 | F77: 0.3226 | G77: 0.3128 | H77: 0.2713 | AA77: La Pintada | AG77: La Pintada | AH77: La Pintada
A78: 682 | B78: Antioquia | C78: Guarne | D78: 1.0320 | E78: 0.3347 | F78: 0.2704 | G78: 0.2975 | H78: 0.3185 | AA78: La Unión | AG78: La Unión | AH78: La Unión
A79: 678 | B79: Antioquia | C79: Guatapé | D79: 0.9966 | E79: 0.2637 | F79: 0.2611 | G79: 0.2466 | H79: 0.2963 | AA79: Liborina | AG79: Liborina | AH79: Liborina
A80: 666 | B80: Antioquia | C80: Heliconia | D80: 0.9248 | E80: 0.3707 | F80: 0.3089 | G80: 0.3003 | H80: 0.4312 | AA80: Maceo | AG80: Maceo | AH80: Maceo
A81: 583 | B81: Antioquia | C81: Hispania | D81: 1.0720 | E81: 0.2984 | F81: 0.3000 | G81: 0.2851 | H81: 0.4085 | AA81: Marinilla | AG81: Marinilla | AH81: Marinilla
A82: 658 | B82: Antioquia | C82: Itagüí | D82: 0.9644 | E82: 0.3202 | F82: 0.2583 | G82: 0.2429 | H82: 0.2538 | AA82: Medellín | AG82: Medellín | AH82: Medellín
A83: 831 | B83: Antioquia | C83: Ituango | D83: 0.5650 | E83: 0.3121 | F83: 0.3003 | G83: 0.3087 | H83: 0.6837 | AA83: Montebello | AG83: Montebello | AH83: Montebello
A84: 538 | B84: Antioquia | C84: Jardín | D84: 0.6600 | E84: 0.2809 | F84: 0.2893 | G84: 0.2684 | H84: 0.4072 | AA84: Murindó | AG84: Murindó | AH84: Murindó
A85: 591 | B85: Antioquia | C85: Jericó | D85: 0.9787 | E85: 0.6740 | F85: 0.3412 | G85: 0.3258 | H85: 0.3496 | AA85: Mutatá | AG85: Mutatá | AH85: Mutatá
A86: 625 | B86: Antioquia | C86: La Ceja | D86: 0.9671 | E86: 0.2955 | F86: 0.2524 | G86: 0.3074 | H86: 0.2922 | AA86: Nariño | AG86: Nariño | AH86: Nariño
A87: 651 | B87: Antioquia | C87: La Estrella | D87: 0.8305 | E87: 0.3446 | F87: 0.2731 | G87: 0.2748 | H87: 0.3993 | AA87: Nechí | AG87: Nechí | AH87: Nechí
A88: 578 | B88: Antioquia | C88: La Pintada | D88: 1.1377 | E88: 0.2770 | F88: 0.2659 | G88: 0.2972 | H88: 0.6478 | AA88: Necoclí | AG88: Necoclí | AH88: Necoclí
A89: 619 | B89: Antioquia | C89: La Unión | D89: 1.0612 | E89: 0.3254 | F89: 0.2912 | G89: 0.3184 | H89: 0.3674 | AA89: Olaya | AG89: Olaya | AH89: Olaya
A90: 763 | B90: Antioquia | C90: Liborina | D90: 0.8062 | E90: 0.4307 | F90: 0.2993 | G90: 0.2848 | H90: 0.5512 | AA90: Peñol | AG90: Peñol | AH90: Peñol
A91: 741 | B91: Antioquia | C91: Maceo | D91: 0.9769 | E91: 0.3147 | F91: 0.2923 | G91: 0.3181 | H91: 0.3735 | AA91: Peque | AG91: Peque | AH91: Peque
A92: 665 | B92: Antioquia | C92: Marinilla | D92: 1.1047 | E92: 0.2900 | F92: 0.2581 | G92: 0.2674 | H92: 0.2939 | AA92: Pueblorrico | AG92: Pueblorrico | AH92: Pueblorrico
A93: 686 | B93: Antioquia | C93: Medellín | D93: 0.8398 | E93: 0.3052 | F93: 0.2176 | G93: 0.3384 | H93: 0.3937 | AA93: Puerto Berrío | AG93: Puerto Berrío | AH93: Puerto Berrío
A94: 603 | B94: Antioquia | C94: Montebello | D94: 0.9373 | E94: 0.3055 | F94: 0.2712 | G94: 0.2501 | H94: 0.2526 | AA94: Puerto Nare | AG94: Puerto Nare | AH94: Puerto Nare
A95: 792 | B95: Antioquia | C95: Murindó | D95: 0.6799 | E95: 0.4933 | F95: 0.4881 | G95: 0.4706 | H95: 0.6133 | AA95: Puerto Triunfo | AG95: Puerto Triunfo | AH95: Puerto Triunfo
A96: 829 | B96: Antioquia | C96: Mutatá | D96: 0.4281 | E96: 0.3206 | F96: 0.3007 | G96: 0.4440 | H96: 0.4442 | AA96: Remedios | AG96: Remedios | AH96: Remedios
A97: 541 | B97: Antioquia | C97: Nariño | D97: 0.7699 | E97: 0.5691 | F97: 0.2604 | G97: 0.2435 | H97: 0.2904 | AA97: Rionegro | AG97: Rionegro | AH97: Rionegro
A98: 869 | B98: Antioquia | C98: Nechí | D98: 0.9148 | E98: 0.2952 | F98: 0.3165 | G98: 0.3385 | H98: 0.5209 | AA98: Sabanalarga | AG98: Sabanalarga | AH98: Sabanalarga
A99: 897 | B99: Antioquia | C99: Necoclí | D99: 0.7655 | E99: 0.3583 | F99: 0.2915 | G99: 0.3899 | H99: 0.2411 | AA99: Sabaneta | AG99: Sabaneta | AH99: Sabaneta
A100: 742 | B100: Antioquia | C100: Olaya | D100: 0.9874 | E100: 0.3861 | F100: 0.2849 | G100: 0.2716 | H100: 0.5462 | AA100: Salgar | AG100: Salgar | AH100: Salgar
A101: 676 | B101: Antioquia | C101: Peñol | D101: 1.0538 | E101: 0.2856 | F101: 0.2803 | G101: 0.2741 | H101: 0.3145 | AA101: San Andrés de Cuerquia | AG101: San Andrés de Cuerquia | AH101: San Andrés de Cuerquia
A102: 804 | B102: Antioquia | C102: Peque | D102: 0.8730 | E102: 0.4410 | F102: 0.3383 | G102: 0.3254 | H102: 0.6683 | AA102: San Carlos | AG102: San Carlos | AH102: San Carlos
A103: 594 | B103: Antioquia | C103: Pueblorrico | D103: 1.0136 | E103: 0.3145 | F103: 0.3121 | G103: 0.2870 | H103: 0.4119 | AA103: San Francisco | AG103: San Francisco | AH103: San Francisco
A104: 753 | B104: Antioquia | C104: Puerto Berrío | D104: 1.0153 | E104: 0.3181 | F104: 0.2856 | G104: 0.4017 | H104: 0.5099 | AA104: San Jerónimo | AG104: San Jerónimo | AH104: San Jerónimo
A105: 670 | B105: Antioquia | C105: Puerto Nare | D105: 1.0610 | E105: 0.3223 | F105: 0.2893 | G105: 0.3478 | H105: 0.4810 | AA105: San José De La Montaña | AG105: San José De La Montaña | AH105: San José De La Montaña
A106: 621 | B106: Antioquia | C106: Puerto Triunfo | D106: 1.0674 | E106: 0.3259 | F106: 0.2853 | G106: 0.3318 | H106: 0.3734 | AA106: San Juan De Urabá | AG106: San Juan De Urabá | AH106: San Juan De Urabá
A107: 811 | B107: Antioquia | C107: Remedios | D107: 0.9568 | E107: 0.3505 | F107: 0.2993 | G107: 0.3458 | H107: 0.4293 | AA107: San Luis | AG107: San Luis | AH107: San Luis
A108: 662 | B108: Antioquia | C108: Rionegro | D108: 1.0627 | E108: 0.2921 | F108: 0.2650 | G108: 0.2882 | H108: 0.3272 | AA108: San Pedro De Los Milagros | AG108: San Pedro De Los Milagros | AH108: San Pedro De Los Milagros
A109: 793 | B109: Antioquia | C109: Sabanalarga | D109: 0.7736 | E109: 0.4107 | F109: 0.2405 | G109: 0.3245 | H109: 0.3250 | AA109: San Pedro De Urabá | AG109: San Pedro De Urabá | AH109: San Pedro De Urabá
A110: 647 | B110: Antioquia | C110: Sabaneta | D110: 0.8513 | E110: 0.2901 | F110: 0.2611 | G110: 0.2809 | H110: 0.2562 | AA110: San Rafael | AG110: San Rafael | AH110: San Rafael
A111: 626 | B111: Antioquia | C111: Salgar | D111: 0.9575 | E111: 0.2724 | F111: 0.2911 | G111: 0.2623 | H111: 0.6623 | AA111: San Roque | AG111: San Roque | AH111: San Roque
A112: 791 | B112: Antioquia | C112: San Andrés de Cuerquia | D112: 0.6495 | E112: 0.3393 | F112: 0.2584 | G112: 0.2502 | H112: 0.3674 | AA112: San Vicente | AG112: San Vicente | AH112: San Vicente
A113: 679 | B113: Antioquia | C113: San Carlos | D113: 0.9317 | E113: 0.2694 | F113: 0.2930 | G113: 0.2773 | H113: 0.3841 | AA113: Santa Bárbara | AG113: Santa Bárbara | AH113: Santa Bárbara
A114: 609 | B114: Antioquia | C114: San Francisco | D114: 0.5165 | E114: 0.5653 | F114: 0.2786 | G114: 0.3082 | H114: 0.3422 | AA114: Santa Fe De Antioquia | AG114: Santa Fe De Antioquia | AH114: Santa Fe De Antioquia
A115: 713 | B115: Antioquia | C115: San Jerónimo | D115: 0.9124 | E115: 0.3422 | F115: 0.3025 | G115: 0.2980 | H115: 0.4266 | AA115: Santa Rosa De Osos | AG115: Santa Rosa De Osos | AH115: Santa Rosa De Osos
A116: 776 | B116: Antioquia | C116: San José De La Montaña | D116: 0.8097 | E116: 0.4093 | F116: 0.2689 | G116: 0.2718 | H116: 0.3952 | AA116: Santo Domingo | AG116: Santo Domingo | AH116: Santo Domingo
A117: 901 | B117: Antioquia | C117: San Juan De Urabá | D117: 0.8809 | E117: 0.4249 | F117: 0.3376 | G117: 0.3477 | H117: 0.3106 | AA117: Santuario | AG117: Santuario | AH117: Santuario
A118: 640 | B118: Antioquia | C118: San Luis | D118: 0.9837 | E118: 0.3674 | F118: 0.2693 | G118: 0.2760 | H118: 0.3082 | AA118: Segovia | AG118: Segovia | AH118: Segovia
A119: 718 | B119: Antioquia | C119: San Pedro De Los Milagros | D119: 0.9867 | E119: 0.3270 | F119: 0.2510 | G119: 0.3608 | H119: 0.3779 | AA119: Sonsón | AG119: Sonsón | AH119: Sonsón
A120: 892 | B120: Antioquia | C120: San Pedro De Urabá | D120: 0.7165 | E120: 0.3613 | F120: 0.2489 | G120: 0.3213 | H120: 0.2472 | AA120: Sopetrán | AG120: Sopetrán | AH120: Sopetrán
A121: 693 | B121: Antioquia | C121: San Rafael | D121: 0.9004 | E121: 0.2307 | F121: 0.2524 | G121: 0.2380 | H121: 0.2819 | AA121: Támesis | AG121: Támesis | AH121: Támesis
A122: 721 | B122: Antioquia | C122: San Roque | D122: 0.9928 | E122: 0.2737 | F122: 0.3372 | G122: 0.2923 | H122: 0.3182 | AA122: Tarazá | AG122: Tarazá | AH122: Tarazá
A123: 692 | B123: Antioquia | C123: San Vicente | D123: 1.0568 | E123: 0.2980 | F123: 0.2767 | G123: 0.2668 | H123: 0.3223 | AA123: Tarso | AG123: Tarso | AH123: Tarso
A124: 611 | B124: Antioquia | C124: Santa Bárbara | D124: 1.0655 | E124: 0.3121 | F124: 0.2926 | G124: 0.2891 | H124: 0.4652 | AA124: Titiribí | AG124: Titiribí | AH124: Titiribí
A125: 744 | B125: Antioquia | C125: Santa Fe De Antioquia | D125: 0.9017 | E125: 0.3164 | F125: 0.2380 | G125: 0.2411 | H125: 0.5602 | AA125: Toledo | AG125: Toledo | AH125: Toledo
A126: 777 | B126: Antioquia | C126: Santa Rosa De Osos | D126: 0.9806 | E126: 0.2975 | F126: 0.2804 | G126: 0.4392 | H126: 0.4053 | AA126: Turbo | AG126: Turbo | AH126: Turbo
A127: 724 | B127: Antioquia | C127: Santo Domingo | D127: 0.9309 | E127: 0.2416 | F127: 0.2678 | G127: 0.3037 | H127: 0.2839 | AA127: Uramita | AG127: Uramita | AH127: Uramita
A128: 649 | B128: Antioquia | C128: Santuario | D128: 1.0532 | E128: 0.2868 | F128: 0.2668 | G128: 0.2647 | H128: 0.3139 | AA128: Urrao | AG128: Urrao | AH128: Urrao
A129: 828 | B129: Antioquia | C129: Segovia | D129: 0.9155 | E129: 0.2955 | F129: 0.2866 | G129: 0.2861 | H129: 0.3690 | AA129: Valdivia | AG129: Valdivia | AH129: Valdivia
A130: 597 | B130: Antioquia | C130: Sonsón | D130: 0.8931 | E130: 0.2870 | F130: 0.2579 | G130: 0.3231 | H130: 0.4019 | AA130: Valparaiso | AG130: Valparaiso | AH130: Valparaiso
A131: 738 | B131: Antioquia | C131: Sopetrán | D131: 1.0319 | E131: 0.3794 | F131: 0.3391 | G131: 0.3385 | H131: 0.5981 | AA131: Vegachí | AG131: Vegachí | AH131: Vegachí
A132: 575 | B132: Antioquia | C132: Támesis | D132: 0.8533 | E132: 0.2880 | F132: 0.3002 | G132: 0.3041 | H132: 0.5344 | AA132: Venecia | AG132: Venecia | AH132: Venecia
A133: 841 | B133: Antioquia | C133: Tarazá | D133: 0.7596 | E133: 0.3171 | F133: 0.3319 | G133: 0.3707 | H133: 0.5711 | AA133: Vigía Del Fuerte | AG133: Vigía Del Fuerte | AH133: Vigía Del Fuerte
A134: 599 | B134: Antioquia | C134: Tarso | D134: 1.0386 | E134: 0.2994 | F134: 0.2911 | G134: 0.2828 | H134: 0.5298 | AA134: Yalí | AG134: Yalí | AH134: Yalí
A135: 642 | B135: Antioquia | C135: Titiribí | D135: 1.0678 | E135: 0.3309 | F135: 0.2945 | G135: 0.2954 | H135: 0.5425 | AA135: Yarumal | AG135: Yarumal | AH135: Yarumal
A136: 795 | B136: Antioquia | C136: Toledo | D136: 0.7317 | E136: 0.3345 | F136: 0.2447 | G136: 0.2277 | H136: 0.4979 | AA136: Yolombó | AG136: Yolombó | AH136: Yolombó
A137: 884 | B137: Antioquia | C137: Turbo | D137: 0.7764 | E137: 0.4510 | F137: 0.4799 | G137: 0.5734 | H137: 0.4228 | AA137: Yondó | AG137: Yondó | AH137: Yondó
A138: 790 | B138: Antioquia | C138: Uramita | D138: 0.9120 | E138: 0.3560 | F138: 0.2708 | G138: 0.2531 | H138: 0.4519 | AA138: Zaragoza | AG138: Zaragoza | AH138: Zaragoza
A139: 733 | B139: Antioquia | C139: Urrao | D139: 0.5521 | E139: 0.3375 | F139: 0.3294 | G139: 0.3356 | H139: 0.6179
A140: 824 | B140: Antioquia | C140: Valdivia | D140: 0.7306 | E140: 0.2930 | F140: 0.2913 | G140: 0.2992 | H140: 0.6597
A141: 563 | B141: Antioquia | C141: Valparaiso | D141: 0.9811 | E141: 0.2725 | F141: 0.2727 | G141: 0.2766 | H141: 0.5138
A142: 787 | B142: Antioquia | C142: Vegachí | D142: 0.8643 | E142: 0.2563 | F142: 0.2476 | G142: 0.2223 | H142: 0.2630
A143: 612 | B143: Antioquia | C143: Venecia | D143: 1.0756 | E143: 0.2812 | F143: 0.2761 | G143: 0.2738 | H143: 0.6542
A144: 772 | B144: Antioquia | C144: Vigía Del Fuerte | D144: 0.5179 | E144: 0.3009 | F144: 0.3082 | G144: 0.2898 | H144: 0.5877
A145: 761 | B145: Antioquia | C145: Yalí | D145: 0.9028 | E145: 0.2667 | F145: 0.2451 | G145: 0.2318 | H145: 0.2614
A146: 805 | B146: Antioquia | C146: Yarumal | D146: 0.7793 | E146: 0.3338 | F146: 0.3065 | G146: 0.3565 | H146: 0.4809
A147: 769 | B147: Antioquia | C147: Yolombó | D147: 0.9924 | E147: 0.2920 | F147: 0.3495 | G147: 0.2949 | H147: 0.3776
A148: 812 | B148: Antioquia | C148: Yondó | D148: 1.0785 | E148: 0.3533 | F148: 0.3609 | G148: 0.4501 | H148: 0.7605
A149: 838 | B149: Antioquia | C149: Zaragoza | D149: 1.0052 | E149: 0.3621 | F149: 0.3705 | G149: 0.3797 | H149: 0.3945
A150: 1076 | B150: Arauca | C150: Arauca | D150: 1.0517 | E150: 0.3991 | F150: 0.4059 | G150: 0.7529 | H150: 0.3967
A151: 1074 | B151: Arauca | C151: Arauquita | D151: 1.0538 | E151: 0.4299 | F151: 0.4543 | G151: 0.6138 | H151: 0.4307
A152: 1072 | B152: Arauca | C152: Cravo Norte | D152: 0.9698 | E152: 0.4824 | F152: 0.3262 | G152: 0.3634 | H152: 0.4398
A153: 773 | B153: Arauca | C153: Fortul | D153: 0.7696 | E153: 0.5023 | F153: 0.4450 | G153: 0.5395 | H153: 0.4672
A154: 735 | B154: Arauca | C154: Puerto Rondón | D154: 0.9710 | E154: 0.4744 | F154: 0.3201 | G154: 0.4171 | H154: 0.3158
A155: 1075 | B155: Arauca | C155: Saravena | D155: 0.8027 | E155: 0.3574 | F155: 0.3798 | G155: 0.4786 | H155: 0.3868
A156: 747 | B156: Arauca | C156: Tame | D156: 0.8826 | E156: 0.5672 | F156: 0.4431 | G156: 0.7477 | H156: 0.4697
A157: 1031 | B157: Atlántico | C157: Baranoa | D157: 1.0278 | E157: 0.4646 | F157: 0.2341 | G157: 0.2697 | H157: 0.2959
A158: 1045 | B158: Atlántico | C158: Barranquilla | D158: 1.1552 | E158: 0.6849 | F158: 0.2431 | G158: 0.2331 | H158: 0.3751
A159: 1007 | B159: Atlántico | C159: Campo De La Cruz | D159: 1.1013 | E159: 0.3577 | F159: 0.2605 | G159: 0.2621 | H159: 0.4608
A160: 1011 | B160: Atlántico | C160: Candelaria | D160: 1.0461 | E160: 0.3676 | F160: 0.2722 | G160: 0.2868 | H160: 0.3321
A161: 1037 | B161: Atlántico | C161: Galapa | D161: 1.1227 | E161: 0.5173 | F161: 0.2959 | G161: 0.3705 | H161: 0.3519
A162: 1034 | B162: Atlántico | C162: Juan De Acosta | D162: 1.0816 | E162: 0.5816 | F162: 0.2633 | G162: 0.2678 | H162: 0.2459
A163: 1017 | B163: Atlántico | C163: Luruaco | D163: 1.0228 | E163: 0.4166 | F163: 0.2719 | G163: 0.2848 | H163: 0.2576
A164: 1035 | B164: Atlántico | C164: Malambo | D164: 1.1055 | E164: 0.4519 | F164: 0.2588 | G164: 0.3217 | H164: 0.3887
A165: 1009 | B165: Atlántico | C165: Manatí | D165: 1.0722 | E165: 0.4130 | F165: 0.2744 | G165: 0.2940 | H165: 0.3364
A166: 1022 | B166: Atlántico | C166: Palmar De Varela | D166: 1.0875 | E166: 0.3912 | F166: 0.2560 | G166: 0.2584 | H166: 0.3855
A167: 1029 | B167: Atlántico | C167: Piojó | D167: 1.0693 | E167: 0.5504 | F167: 0.2674 | G167: 0.2672 | H167: 0.2556
A168: 1028 | B168: Atlántico | C168: Polonuevo | D168: 1.0559 | E168: 0.4425 | F168: 0.2570 | G168: 0.3225 | H168: 0.3133
A169: 1020 | B169: Atlántico | C169: Ponedera | D169: 1.0847 | E169: 0.3911 | F169: 0.2638 | G169: 0.2929 | H169: 0.3919
A170: 1042 | B170: Atlántico | C170: Puerto Colombia | D170: 1.1117 | E170: 0.6126 | F170: 0.6126 | G170: 0.6126 | H170: 0.2666
A171: 1013 | B171: Atlántico | C171: Repelón | D171: 1.1195 | E171: 0.5008 | F171: 0.3215 | G171: 0.3195 | H171: 0.3086
A172: 1030 | B172: Atlántico | C172: Sabanagrande | D172: 1.1177 | E172: 0.4322 | F172: 0.2603 | G172: 0.2541 | H172: 0.3163
A173: 1019 | B173: Atlántico | C173: Sabanalarga | D173: 0.7678 | E173: 0.3115 | F173: 0.2486 | G173: 0.2778 | H173: 0.3022
A174: 1000 | B174: Atlántico | C174: Santa Lucía | D174: 1.0855 | E174: 0.3408 | F174: 0.2589 | G174: 0.2516 | H174: 0.2582
A175: 1025 | B175: Atlántico | C175: Santo Tomás | D175: 1.0774 | E175: 0.4095 | F175: 0.2569 | G175: 0.2516 | H175: 0.3130
A176: 1036 | B176: Atlántico | C176: Soledad | D176: 1.1481 | E176: 0.4821 | F176: 0.2461 | G176: 0.2318 | H176: 0.3764
A177: 995 | B177: Atlántico | C177: Suan | D177: 1.0929 | E177: 0.3247 | F177: 0.2415 | G177: 0.2336 | H177: 0.3796
A178: 1039 | B178: Atlántico | C178: Tubará | D178: 1.1168 | E178: 0.6573 | F178: 0.2724 | G178: 0.2665 | H178: 0.2535
A179: 1026 | B179: Atlántico | C179: Usiacurí | D179: 1.0266 | E179: 0.5198 | F179: 0.2500 | G179: 0.2440 | H179: 0.3120
A180: 337 | B180: Bogotá, D.C | C180: Bogotá, D.C. | D180: 0.6069 | E180: 0.4884 | F180: 0.2208 | G180: 0.2891 | H180: 0.2049
A181: 904 | B181: Bolívar | C181: Achí | D181: 1.0435 | E181: 0.3648 | F181: 0.3750 | G181: 0.3745 | H181: 0.4987
A182: 903 | B182: Bolívar | C182: Altos Del Rosario | D182: 1.1438 | E182: 0.4185 | F182: 0.4015 | G182: 0.3943 | H182: 0.6293
A183: 882 | B183: Bolívar | C183: Arenal | D183: 0.9261 | E183: 0.4645 | F183: 0.4368 | G183: 0.4277 | H183: 0.5934
A184: 993 | B184: Bolívar | C184: Arjona | D184: 1.1058 | E184: 0.4138 | F184: 0.3476 | G184: 0.4167 | H184: 0.3382
A185: 992 | B185: Bolívar | C185: Arroyohondo | D185: 1.0595 | E185: 0.3791 | F185: 0.3073 | G185: 0.3164 | H185: 0.3654
A186: 913 | B186: Bolívar | C186: Barranco De Loba | D186: 1.1651 | E186: 0.4323 | F186: 0.4044 | G186: 0.4178 | H186: 0.6330
A187: 996 | B187: Bolívar | C187: Calamar | D187: 1.0032 | E187: 0.5253 | F187: 0.5140 | G187: 0.5337 | H187: 0.5139
A188: 823 | B188: Bolívar | C188: Cantagallo | D188: 1.1576 | E188: 0.4695 | F188: 0.4353 | G188: 0.4223 | H188: 0.5684
A189: 1018 | B189: Bolívar | C189: Cartagena De Indias | D189: 1.1834 | E189: 0.5708 | F189: 0.3664 | G189: 0.3930 | H189: 0.3662
A190: 939 | B190: Bolívar | C190: Cicuco | D190: 1.1573 | E190: 0.4011 | F190: 0.3209 | G190: 0.3091 | H190: 0.5328
A191: 1014 | B191: Bolívar | C191: Clemencia | D191: 1.0479 | E191: 0.4614 | F191: 0.3148 | G191: 0.3059 | H191: 0.2952
A192: 969 | B192: Bolívar | C192: Córdoba | D192: 0.5132 | E192: 0.4339 | F192: 0.3150 | G192: 0.3093 | H192: 0.3240
A193: 975 | B193: Bolívar | C193: El Carmen De Bolívar | D193: 0.8956 | E193: 0.2751 | F193: 0.2467 | G193: 0.2396 | H193: 0.3720
A194: 984 | B194: Bolívar | C194: El Guamo | D194: 1.0519 | E194: 0.3471 | F194: 0.2764 | G194: 0.2905 | H194: 0.3883
A195: 917 | B195: Bolívar | C195: El Peñón | D195: 0.6761 | E195: 0.3362 | F195: 0.3211 | G195: 0.3133 | H195: 0.2598
A196: 919 | B196: Bolívar | C196: Hatillo De Loba | D196: 1.2335 | E196: 0.4707 | F196: 0.4219 | G196: 0.4347 | H196: 0.5604
A197: 955 | B197: Bolívar | C197: Magangué | D197: 1.0923 | E197: 0.3625 | F197: 0.3150 | G197: 0.4938 | H197: 0.6123
A198: 990 | B198: Bolívar | C198: Mahates | D198: 1.0666 | E198: 0.4193 | F198: 0.3466 | G198: 0.4035 | H198: 0.4094
A199: 931 | B199: Bolívar | C199: Margarita | D199: 1.1987 | E199: 0.4446 | F199: 0.3887 | G199: 0.4131 | H199: 0.5253
A200: 982 | B200: Bolívar | C200: María La Baja | D200: 0.9719 | E200: 0.3048 | F200: 0.2931 | G200: 0.3027 | H200: 0.2606
A201: 937 | B201: Bolívar | C201: Mompós | D201: 1.1309 | E201: 0.3786 | F201: 0.3187 | G201: 0.3525 | H201: 0.5256
A202: 879 | B202: Bolívar | C202: Montecristo | D202: 0.7892 | E202: 0.3163 | F202: 0.2974 | G202: 0.2848 | H202: 0.4663
A203: 881 | B203: Bolívar | C203: Morales | D203: 1.1651 | E203: 0.5379 | F203: 0.4953 | G203: 0.5590 | H203: 0.7975
A204: 893 | B204: Bolívar | C204: Norosí | D204: 0.9542 | E204: 0.3360 | F204: 0.3006 | G204: 0.2833 | H204: 0.6166
A205: 924 | B205: Bolívar | C205: Pinillos | D205: 1.1545 | E205: 0.4124 | F205: 0.3750 | G205: 0.3972 | H205: 0.6765
A206: 902 | B206: Bolívar | C206: Regidor | D206: 1.1786 | E206: 0.4287 | F206: 0.3697 | G206: 0.3667 | H206: 0.7895
... 928 more rows

Sheet Calificación Pública
B1: ¡Califica las Comunidades!"
B2: 💡 ¿Qué hacer? Selecciona un nivel de calificación a cada comunidad según las diferentes variables. Si necesitas más detalles de los indicadores, haz clic en el botón CONSULTA INFORMACIÓN SOBRE LOS INDICADORES. 🚨 Nota Importante: Si seleccionas "Sin información" para una comunidad, asegúrate de mantener igual las calificaciones de las demás comunidades. Esto permite que la herramienta calcule de manera equitativa.
B3: ¿Deseas darle tu propia ponderación a cada indicador?
B4: Por defecto cada indicador tiene el mismo valor (%) por categoría… puedes cambiarlo, pero la valoración total por categoría debe ser 100% Si deseas ajustar % por categoria sin cambiar las valoraciones individuales ve directamente a RESULTADOS
B5: ✅ ¡Último paso! Cuando hayas terminado de calificar, haz clic en el botón RESULTADOS para continuar.
A6: Categoría | B6: Categoría | C6: Indicador / Criterios | D6: Definición | E6: Porcentaje de valoración del indicador | H6: Nivel Rojo | I6: Nivel Naranja | J6: Nivel Amarillo | K6: Nivel Verde | L6: =Caracterización!B8 -> C1 | M6: =Caracterización!C8 -> C2 | N6: =Caracterización!D8 -> C3 | O6: =Caracterización!E8 -> C4 | P6: =Caracterización!F8 -> C5 | Q6: =Caracterización!G8 -> C6 | R6: =Caracterización!H8 -> C7 | S6: =Caracterización!I8 -> C8 | T6: =Caracterización!J8 -> C9 | U6: =Caracterización!K8 -> C10
A7: =SUM(E7:E9) -> 100.0% | B7: ='Consulta de Rangos'!A8 -> Ambiental | C7: ='Consulta de Rangos'!B8 -> EROI (tasa de retorno energético) | D7: ='Consulta de Rangos'!C8 -> Mide la relación entre la energía obtenida de un proyecto y la energía invertida para producirla. Un valor mayor indica mayor eficiencia energética. (Relación de energía generada/energía invertida) | E7: 33.3% | F7: Seleccione… | G7: Sin información | H7: ='Consulta de Rangos'!G8 -> < 3 | I7: ='Consulta de Rangos'!H8 -> 3-5 | J7: ='Consulta de Rangos'!I8 -> 5-10 | K7: ='Consulta de Rangos'!J8 -> > 10 | L7: < 3 | M7: 3-5 | N7: 5-10 | O7: Seleccione… | P7: Seleccione… | Q7: Seleccione… | R7: Seleccione… | S7: Seleccione… | T7: Seleccione… | U7: Seleccione…
B8: ='Consulta de Rangos'!A9 -> Ambiental | C8: ='Consulta de Rangos'!B9 -> Reducción anual de gases de efecto invernadero | D8: ='Consulta de Rangos'!C9 -> Reducción estimada de gases de efecto invernadero (CO2e) que se espera reducir cada año debido al cambio en la fuene de energía. | E8: 33.3% | F8: Seleccione… | G8: Sin información | H8: ='Consulta de Rangos'!G9 -> < 10% reducción | I8: ='Consulta de Rangos'!H9 -> 10%-20% reducción | J8: ='Consulta de Rangos'!I9 -> 20%-30% reducción | K8: ='Consulta de Rangos'!J9 -> > 30% reducción | L8: 10%-20% reducción | M8: < 10% reducción | N8: Seleccione… | O8: Seleccione… | P8: Seleccione… | Q8: Seleccione… | R8: Seleccione… | S8: Seleccione… | T8: Seleccione… | U8: Seleccione…
B9: ='Consulta de Rangos'!A10 -> Ambiental | C9: ='Consulta de Rangos'!B10 -> Territorios de alta dependencia de carbón térmico | D9: ='Consulta de Rangos'!C10 -> Variable incluida para focalizar aquellas comunidades ubicadas en entes territoriales cuya estructura económica muestre altos grados de dependencia de la explotación de carbón térmico, bien sea para la exportación de este mineral o para su uso interno en el país, conforme lo informado por la Unidad de Planeación Minero-Energética (UPME) en el portal del Sistema de Información Minero Colombiano (SIMCO). | E9: 33.3% | F9: Seleccione… | G9: Sin información | H9: ='Consulta de Rangos'!G10 -> < 10% dependencia | I9: ='Consulta de Rangos'!H10 -> 10%-20% dependencia | J9: ='Consulta de Rangos'!I10 -> 20%-30% dependencia | K9: ='Consulta de Rangos'!J10 -> > 30% dependencia | L9: 20%-30% dependencia | M9: > 30% dependencia | N9: Seleccione… | O9: Seleccione… | P9: Seleccione… | Q9: Seleccione… | R9: Seleccione… | S9: Seleccione… | T9: Seleccione… | U9: Seleccione…
A10: =SUM(E10:E18) -> 100.0% | B10: ='Consulta de Rangos'!A11 -> Económico | C10: ='Consulta de Rangos'!B11 -> Ahorro monetario del usuario en la factura eléctrica | D10: ='Consulta de Rangos'!C11 -> Ahorros monetarios que experimenta el usuario final al formar parte de la Comunidad Energética (CEC) y consumir energía renovable. | E10: 40.0% | F10: Seleccione… | G10: Sin información | H10: ='Consulta de Rangos'!G11 -> < 10% ahorro | I10: ='Consulta de Rangos'!H11 -> 10%-20% ahorro | J10: ='Consulta de Rangos'!I11 -> 20%-30% ahorro | K10: ='Consulta de Rangos'!J11 -> > 30% ahorro | L10: > 30% ahorro | M10: < 10% ahorro | N10: Seleccione… | O10: Seleccione… | P10: Seleccione… | Q10: Seleccione… | R10: Seleccione… | S10: Seleccione… | T10: Seleccione… | U10: Seleccione…
B11: ='Consulta de Rangos'!A12 -> Económico | C11: ='Consulta de Rangos'!B12 -> Coste de generación de energía ($/MWh) | D11: ='Consulta de Rangos'!C12 -> Mide el costo promedio de producir energía eléctrica desde el Sistema Interconectado Nacional (SIN). Este costo incluye los gastos de inversión inicial, operación, mantenimiento y combustibles asociados a la generación de un megavatio-hora (MWh). | E11: 48.3% | F11: Seleccione… | G11: Sin información | H11: ='Consulta de Rangos'!G12 -> < 230 USD/MWh | I11: ='Consulta de Rangos'!H12 -> 230-250 USD/MWh | J11: ='Consulta de Rangos'!I12 -> 250-280 USD/MWh | K11: ='Consulta de Rangos'!J12 -> > 280 USD/MWh | L11: Seleccione… | M11: Seleccione… | N11: Seleccione… | O11: Seleccione… | P11: Seleccione… | Q11: Seleccione… | R11: Seleccione… | S11: Seleccione… | T11: Seleccione… | U11: Seleccione…
B12: ='Consulta de Rangos'!A13 -> Económico | C12: ='Consulta de Rangos'!B13 -> La comunidad realiza el pago por servicio de energía de manera cumplida | D12: ='Consulta de Rangos'!C13 -> Porcentaje de usuarios de la comunidad energética que realizan el pago del servicio energético de manera regular y dentro de los plazos establecidos. | E12: 1.7% | F12: Seleccione… | G12: Sin información | H12: ='Consulta de Rangos'!G13 -> > 60% | I12: ='Consulta de Rangos'!H13 -> 40%-60% | J12: ='Consulta de Rangos'!I13 -> 20%-40% | K12: ='Consulta de Rangos'!J13 -> < 20% | L12: Seleccione… | M12: Seleccione… | N12: Seleccione… | O12: Seleccione… | P12: Seleccione… | Q12: Seleccione… | R12: Seleccione… | S12: Seleccione… | T12: Seleccione… | U12: Seleccione…
B13: ='Consulta de Rangos'!A14 -> Económico | C13: ='Consulta de Rangos'!B14 -> Tiempo de retorno de la inversión | D13: ='Consulta de Rangos'!C14 -> El periodo de tiempo necesario para que las ganancias acumuladas de un proyecto igualen el costo total de la inversión. | E13: 1.7% | F13: Seleccione… | G13: Sin información | H13: ='Consulta de Rangos'!G14 -> > 15 años | I13: ='Consulta de Rangos'!H14 -> 10-15 años | J13: ='Consulta de Rangos'!I14 -> 6-10 años | K13: ='Consulta de Rangos'!J14 -> < 6 años | L13: Seleccione… | M13: Seleccione… | N13: Seleccione… | O13: Seleccione… | P13: Seleccione… | Q13: Seleccione… | R13: Seleccione… | S13: Seleccione… | T13: Seleccione… | U13: Seleccione…
B14: ='Consulta de Rangos'!A15 -> Económico | C14: ='Consulta de Rangos'!B15 -> Tasa interna de rentabilidad (TIR) | D14: ='Consulta de Rangos'!C15 -> Medida de la rentabilidad de una inversión. | E14: 1.7% | F14: Seleccione… | G14: Sin información | H14: ='Consulta de Rangos'!G15 -> < 5% | I14: ='Consulta de Rangos'!H15 -> 5%-7% | J14: ='Consulta de Rangos'!I15 -> 7%-10% | K14: ='Consulta de Rangos'!J15 -> > 10% | L14: Seleccione… | M14: Seleccione… | N14: Seleccione… | O14: Seleccione… | P14: Seleccione… | Q14: Seleccione… | R14: Seleccione… | S14: Seleccione… | T14: Seleccione… | U14: Seleccione…
B15: ='Consulta de Rangos'!A16 -> Económico | C15: ='Consulta de Rangos'!B16 -> Identificación de fuentes de financiación alternativas viables | D15: ='Consulta de Rangos'!C16 -> Mide la existencia y diversidad de fuentes de financiación alternativas (subsidios, donaciones, préstamos) para el proyecto. | E15: 1.7% | F15: Seleccione… | G15: Sin información | H15: ='Consulta de Rangos'!G16 -> No se han identificado fuentes alternativas viables. | I15: ='Consulta de Rangos'!H16 -> Identificación limitada con alta dependencia de una fuente. | J15: ='Consulta de Rangos'!I16 -> Identificación moderada con al menos dos fuentes viables. | K15: ='Consulta de Rangos'!J16 -> Identificación robusta con múltiples fuentes viables y diversificadas. | L15: Seleccione… | M15: Seleccione… | N15: Seleccione… | O15: Seleccione… | P15: Seleccione… | Q15: Seleccione… | R15: Seleccione… | S15: Seleccione… | T15: Seleccione… | U15: Seleccione…
B16: ='Consulta de Rangos'!A17 -> Económico | C16: ='Consulta de Rangos'!B17 -> Capacidad de cofinanciación local | D16: ='Consulta de Rangos'!C17 -> Evalúa el porcentaje de recursos que la comunidad puede aportar para financiar el proyecto. | E16: 1.7% | F16: Seleccione… | G16: Sin información | H16: ='Consulta de Rangos'!G17 -> < 10% | I16: ='Consulta de Rangos'!H17 -> 10%-30% | J16: ='Consulta de Rangos'!I17 -> 30%-50% | K16: ='Consulta de Rangos'!J17 -> > 50% | L16: Seleccione… | M16: Seleccione… | N16: Seleccione… | O16: Seleccione… | P16: Seleccione… | Q16: Seleccione… | R16: Seleccione… | S16: Seleccione… | T16: Seleccione… | U16: Seleccione…
B17: ='Consulta de Rangos'!A18 -> Económico | C17: ='Consulta de Rangos'!B18 -> Capacidad y voluntad de los miembros de la comunidad para financiar el proyecto | D17: ='Consulta de Rangos'!C18 -> Grado en que los miembros de la comunidad pueden y desean contribuir financieramente al proyecto. | E17: 1.7% | F17: Seleccione… | G17: Sin información | H17: ='Consulta de Rangos'!G18 -> < 15% | I17: ='Consulta de Rangos'!H18 -> 15%-30% | J17: ='Consulta de Rangos'!I18 -> 30%-50% | K17: ='Consulta de Rangos'!J18 -> > 50% | L17: Seleccione… | M17: Seleccione… | N17: Seleccione… | O17: Seleccione… | P17: Seleccione… | Q17: Seleccione… | R17: Seleccione… | S17: Seleccione… | T17: Seleccione… | U17: Seleccione…
B18: ='Consulta de Rangos'!A19 -> Económico | C18: ='Consulta de Rangos'!B19 -> Costos energéticos promedio por usuario | D18: ='Consulta de Rangos'!C19 -> Promedio de gastos en energía por hogar en la comunidad evaluada. | E18: 1.7% | F18: Seleccione… | G18: Sin información | H18: ='Consulta de Rangos'!G19 -> < 40.000 COP | I18: ='Consulta de Rangos'!H19 -> 40.000-80.000 COP | J18: ='Consulta de Rangos'!I19 -> 80.000-120.000 | K18: ='Consulta de Rangos'!J19 -> > 120.000 COP | L18: Seleccione… | M18: Seleccione… | N18: Seleccione… | O18: Seleccione… | P18: Seleccione… | Q18: Seleccione… | R18: Seleccione… | S18: Seleccione… | T18: Seleccione… | U18: Seleccione…
A19: =SUM(E19:E21) -> 100.0% | B19: ='Consulta de Rangos'!A20 -> Legislativo/ normativo | C19: ='Consulta de Rangos'!B20 -> Disposición de instituciones externas para representar a la comunidad energética | D19: ='Consulta de Rangos'!C20 -> Evalúa cualitativamente la disposición de instituciones externas para representar formalmente a una comunidad energética en aspectos legales, técnicos, financieros o de gobernanza. | E19: 33.3% | F19: Seleccione… | G19: Sin información | H19: ='Consulta de Rangos'!G20 -> Baja disposición | I19: ='Consulta de Rangos'!H20 -> Media disposición | J19: ='Consulta de Rangos'!I20 -> Alta disposición | K19: ='Consulta de Rangos'!J20 -> Muy alta disposición | L19: Seleccione… | M19: Seleccione… | N19: Seleccione… | O19: Seleccione… | P19: Seleccione… | Q19: Seleccione… | R19: Seleccione… | S19: Seleccione… | T19: Seleccione… | U19: Seleccione…
B20: ='Consulta de Rangos'!A21 -> Legislativo/ normativo | C20: ='Consulta de Rangos'!B21 -> ¿Se cuenta con avances en lineamientos para la distribución y almacenamiento de energía? Autoconsumo | D20: ='Consulta de Rangos'!C21 -> Existencia de lineamiento que faciliten el autoconsumo y el almacenamiento energético en la comunidad. | E20: 33.3% | F20: Seleccione… | G20: Sin información | H20: ='Consulta de Rangos'!G21 -> Sin avances regulatorios | I20: ='Consulta de Rangos'!H21 -> Avances iniciales | J20: ='Consulta de Rangos'!I21 -> Avances moderados | K20: ='Consulta de Rangos'!J21 -> Lineamientos establecidos | L20: Seleccione… | M20: Seleccione… | N20: Seleccione… | O20: Seleccione… | P20: Seleccione… | Q20: Seleccione… | R20: Seleccione… | S20: Seleccione… | T20: Seleccione… | U20: Seleccione…
B21: ='Consulta de Rangos'!A22 -> Legislativo/ normativo | C21: ='Consulta de Rangos'!B22 -> Políticas de Inclusión de Género en la Gobernanza de las Comunidades Energéticas | D21: ='Consulta de Rangos'!C22 -> Evalúa la existencia, alcance y efectividad de medidas específicas orientadas a promover la inclusión de género en la gobernanza de las comunidades energéticas. | E21: 33.3% | F21: Seleccione… | G21: Sin información | H21: ='Consulta de Rangos'!G22 -> Sin medidas de inclusión | I21: ='Consulta de Rangos'!H22 -> Avances iniciales en medidas | J21: ='Consulta de Rangos'!I22 -> Medidas parcialmente implementadas | K21: ='Consulta de Rangos'!J22 -> Medidas plenamente implementadas | L21: Seleccione… | M21: Seleccione… | N21: Seleccione… | O21: Seleccione… | P21: Seleccione… | Q21: Seleccione… | R21: Seleccione… | S21: Seleccione… | T21: Seleccione… | U21: Seleccione…
A22: =SUM(E22:E37) -> 100.0% | B22: ='Consulta de Rangos'!A24 -> Social | C22: ='Consulta de Rangos'!B24 -> Participación Femenina en la Comunidad Energética | D22: ='Consulta de Rangos'!C24 -> Nivel de involucramiento de las mujeres en las actividades y decisiones de la comunidad energética. | E22: 6.3% | F22: Seleccione… | G22: Sin información | H22: ='Consulta de Rangos'!G24 -> < 20% | I22: ='Consulta de Rangos'!H24 -> 20%-35% | J22: ='Consulta de Rangos'!I24 -> 35%-50% | K22: ='Consulta de Rangos'!J24 -> > 50% | L22: Seleccione… | M22: Seleccione… | N22: Seleccione… | O22: Seleccione… | P22: Seleccione… | Q22: Seleccione… | R22: Seleccione… | S22: Seleccione… | T22: Seleccione… | U22: Seleccione…
B23: ='Consulta de Rangos'!A25 -> Social | C23: ='Consulta de Rangos'!B25 -> Población de especial protección constitucional del sector Paz (víctimas, personas en proceso de reincorporación) | D23: ='Consulta de Rangos'!C25 -> Variable incluida para focalizar poblacionalmente a aquellas comunidades que en su constitución cuente con personas registradas en el Registro Único de Víctimas (RUV), conforme a los parámetros establecidos en la Ley 1448 de 2011, o que hayan sido reconocidas como sujetos de reparación colectiva, así como personas que se encuentren activas en el proceso de reincorporación de acuerdo con el Acto Legislativo 001 del 2017 y su normatividad regulatoria. | E23: 6.3% | F23: Seleccione… | G23: Sin información | H23: ='Consulta de Rangos'!G25 -> < 30% | I23: ='Consulta de Rangos'!H25 -> 30%-40% | J23: ='Consulta de Rangos'!I25 -> 40%-60% | K23: ='Consulta de Rangos'!J25 -> > 60% | L23: Seleccione… | M23: Seleccione… | N23: Seleccione… | O23: Seleccione… | P23: Seleccione… | Q23: Seleccione… | R23: Seleccione… | S23: Seleccione… | T23: Seleccione… | U23: Seleccione…
B24: ='Consulta de Rangos'!A26 -> Social | C24: ='Consulta de Rangos'!B26 -> Presencia de comunidades étnicas | D24: ='Consulta de Rangos'!C26 -> Variable incluida para focalizar poblacionalmente a aquellas comunidades que en su constitución cuenten con personas o comunidades autorreconocidas como étnicas según el Censo Nacional de Población y Vivienda, y/o el último registro que dé cuenta de la población étnica con fuente DANE, y lo que en la materia haya dispuesto el Ministerio del Interior. | E24: 6.3% | F24: Seleccione… | G24: Sin información | H24: ='Consulta de Rangos'!G26 -> Sin presencia de comunidades étnicas | I24: ='Consulta de Rangos'!H26 -> Moderada presencia de comunidades étnicas | J24: ='Consulta de Rangos'!I26 -> Alta presencia de comunidades étnicas | K24: ='Consulta de Rangos'!J26 -> Corresponde a una comunidad étnica | L24: Seleccione… | M24: Seleccione… | N24: Seleccione… | O24: Seleccione… | P24: Seleccione… | Q24: Seleccione… | R24: Seleccione… | S24: Seleccione… | T24: Seleccione… | U24: Seleccione…
B25: ='Consulta de Rangos'!A27 -> Social | C25: ='Consulta de Rangos'!B27 -> Territorios colectivos de pueblos originarios o comunidades indígenas | D25: ='Consulta de Rangos'!C27 -> Variable incluida para focalizar a aquellas comunidades ubicadas en estos territorios legalmente establecidos. | E25: 6.3% | F25: Seleccione… | G25: Sin información | H25: ='Consulta de Rangos'!G27 -> Sin presencia de comunidades indígenas | I25: ='Consulta de Rangos'!H27 -> Moderada presencia de comunidades indígenas | J25: ='Consulta de Rangos'!I27 -> Alta presencia de comunidades indígenas | K25: ='Consulta de Rangos'!J27 -> Corresponde a una comunidad indígena | L25: Seleccione… | M25: Seleccione… | N25: Seleccione… | O25: Seleccione… | P25: Seleccione… | Q25: Seleccione… | R25: Seleccione… | S25: Seleccione… | T25: Seleccione… | U25: Seleccione…
B26: ='Consulta de Rangos'!A28 -> Social | C26: ='Consulta de Rangos'!B28 -> Territorios de Antiguos espacios territoriales de capacitación y reincorporación y áreas especiales de reincorporación colectiva | D26: ='Consulta de Rangos'!C28 -> Variable incluida para focalizar a aquellas comunidades ubicadas en los AETCR en los cuales residen firmantes del Acuerdo Final de Paz, sus familias y comunidades contemplados en Decreto número 1274 del 2017, y de las AERC contemplados en el decreto del Programa de Reincorporación Integral. | E26: 6.3% | F26: Seleccione… | G26: Sin información | H26: ='Consulta de Rangos'!G28 -> Sin presencia de comunidades | I26: ='Consulta de Rangos'!H28 -> Moderada presencia de comunidades | J26: ='Consulta de Rangos'!I28 -> Alta presencia de comunidades | K26: ='Consulta de Rangos'!J28 -> Corresponde a una comunidad | L26: Seleccione… | M26: Seleccione… | N26: Seleccione… | O26: Seleccione… | P26: Seleccione… | Q26: Seleccione… | R26: Seleccione… | S26: Seleccione… | T26: Seleccione… | U26: Seleccione…
B27: ='Consulta de Rangos'!A29 -> Social | C27: ='Consulta de Rangos'!B29 -> Territorios de Paz | D27: ='Consulta de Rangos'!C29 -> Variable incluida para focalizar a aquellas comunidades ubicadas en entidades territoriales que están contempladas en el Programa de Desarrollo con Enfoque Territorial (PDET) y en las Zonas Más Afectadas por el Conflicto Armado (ZOMAC) que se constituyen dentro del marco para la paz, en relación con lo establecido por la Ley 2272 de 2022 “Ley de Paz Total”. | E27: 6.3% | F27: Seleccione… | G27: Sin información | H27: ='Consulta de Rangos'!G29 -> Sin proyectos de paz | I27: ='Consulta de Rangos'!H29 -> Proyectos en planeación | J27: ='Consulta de Rangos'!I29 -> Proyectos implementados | K27: ='Consulta de Rangos'!J29 -> Proyectos activos | L27: Seleccione… | M27: Seleccione… | N27: Seleccione… | O27: Seleccione… | P27: Seleccione… | Q27: Seleccione… | R27: Seleccione… | S27: Seleccione… | T27: Seleccione… | U27: Seleccione…
B28: ='Consulta de Rangos'!A30 -> Social | C28: ='Consulta de Rangos'!B30 -> Territorios de Sistema Nacional de la Reforma Agraria y Desarrollo Rural, entre otras | D28: ='Consulta de Rangos'!C30 -> Variable incluida para focalizar a aquellas comunidades ubicadas en territorios constituidos en el marco de los términos de la Ley 160 de 1994 o demás normas concordantes o las normas que lo modifiquen o complementen. | E28: 6.3% | F28: Seleccione… | G28: Sin información | H28: ='Consulta de Rangos'!G30 -> No están priorizados | I28: ='Consulta de Rangos'!H30 -> Priorización en fase de planeación | J28: ='Consulta de Rangos'!I30 -> Priorización en etapas iniciales | K28: ='Consulta de Rangos'!J30 -> Priorización avanzada | L28: Seleccione… | M28: Seleccione… | N28: Seleccione… | O28: Seleccione… | P28: Seleccione… | Q28: Seleccione… | R28: Seleccione… | S28: Seleccione… | T28: Seleccione… | U28: Seleccione…
B29: ='Consulta de Rangos'!A31 -> Social | C29: ='Consulta de Rangos'!B31 -> Redes de cooperación intercomunitaria | D29: ='Consulta de Rangos'!C31 -> Grado de colaboración entre la comunidad y otras localidades o instituciones. | E29: 6.3% | F29: Seleccione… | G29: Sin información | H29: ='Consulta de Rangos'!G31 -> No existen redes de cooperación. | I29: ='Consulta de Rangos'!H31 -> Cooperación limitada y ocasional. | J29: ='Consulta de Rangos'!I31 -> Cooperación moderada con al menos dos comunidades o instituciones. | K29: ='Consulta de Rangos'!J31 -> Cooperación activa y sólida con múltiples comunidades o instituciones. | L29: Seleccione… | M29: Seleccione… | N29: Seleccione… | O29: Seleccione… | P29: Seleccione… | Q29: Seleccione… | R29: Seleccione… | S29: Seleccione… | T29: Seleccione… | U29: Seleccione…
B30: ='Consulta de Rangos'!A32 -> Social | C30: ='Consulta de Rangos'!B32 -> Transparencia de los datos | D30: ='Consulta de Rangos'!C32 -> Grado de acceso y claridad de la información del proyecto proporcionada a la comunidad. | E30: 6.3% | F30: Seleccione… | G30: Sin información | H30: ='Consulta de Rangos'!G32 -> No existe acceso a datos | I30: ='Consulta de Rangos'!H32 -> Información limitada y poco clara. | J30: ='Consulta de Rangos'!I32 -> Información moderadamente accesible y clara. | K30: ='Consulta de Rangos'!J32 -> Información completamente accesible, clara y actualizada. | L30: Seleccione… | M30: Seleccione… | N30: Seleccione… | O30: Seleccione… | P30: Seleccione… | Q30: Seleccione… | R30: Seleccione… | S30: Seleccione… | T30: Seleccione… | U30: Seleccione…
B31: ='Consulta de Rangos'!A33 -> Social | C31: ='Consulta de Rangos'!B33 -> ¿Cómo es la relación entre los miembros de la comunidad y las instituciones públicas y privadas pertinentes? | D31: ='Consulta de Rangos'!C33 -> Evaluar la calidad de las interacciones entre la comunidad y las instituciones que podrían apoyar el proyecto. | E31: 6.3% | F31: Seleccione… | G31: Sin información | H31: ='Consulta de Rangos'!G33 -> < 30% | I31: ='Consulta de Rangos'!H33 -> 30%-50% | J31: ='Consulta de Rangos'!I33 -> 50%-70% | K31: ='Consulta de Rangos'!J33 -> > 70% | L31: Seleccione… | M31: Seleccione… | N31: Seleccione… | O31: Seleccione… | P31: Seleccione… | Q31: Seleccione… | R31: Seleccione… | S31: Seleccione… | T31: Seleccione… | U31: Seleccione…
B32: ='Consulta de Rangos'!A34 -> Social | C32: ='Consulta de Rangos'!B34 -> ¿Están dispuestos los miembros de la comunidad a invertir tiempo en actividades comunitarias de voluntariado? | D32: ='Consulta de Rangos'!C34 -> Grado de disposición de los miembros de la comunidad para contribuir con tiempo y esfuerzo al proyecto. | E32: 6.3% | F32: Seleccione… | G32: Sin información | H32: ='Consulta de Rangos'!G34 -> < 15% | I32: ='Consulta de Rangos'!H34 -> 15%-30% | J32: ='Consulta de Rangos'!I34 -> 30%-50% | K32: ='Consulta de Rangos'!J34 -> > 50% | L32: Seleccione… | M32: Seleccione… | N32: Seleccione… | O32: Seleccione… | P32: Seleccione… | Q32: Seleccione… | R32: Seleccione… | S32: Seleccione… | T32: Seleccione… | U32: Seleccione…
B33: ='Consulta de Rangos'!A35 -> Social | C33: ='Consulta de Rangos'!B35 -> ¿Los techos o superficies de tierra potencialmente viables son propiedad de los miembros de la comunidad? | D33: ='Consulta de Rangos'!C35 -> Evaluación de la titularidad de las áreas donde se implementará el proyecto. | E33: 6.3% | F33: Seleccione… | G33: Sin información | H33: ='Consulta de Rangos'!G35 -> Ninguna superficie viable es de propiedad comunitaria. | I33: ='Consulta de Rangos'!H35 -> Menos del 50% de las superficies viables son de propiedad comunitaria. | J33: ='Consulta de Rangos'!I35 -> Entre 50%-80% de las superficies viables son de propiedad comunitaria. | K33: ='Consulta de Rangos'!J35 -> > 80% de las superficies viables son de propiedad comunitaria. | L33: Seleccione… | M33: Seleccione… | N33: Seleccione… | O33: Seleccione… | P33: Seleccione… | Q33: Seleccione… | R33: Seleccione… | S33: Seleccione… | T33: Seleccione… | U33: Seleccione…
B34: ='Consulta de Rangos'!A36 -> Social | C34: ='Consulta de Rangos'!B36 -> Aceptación del usuario | D34: ='Consulta de Rangos'!C36 -> Grado de aprobación de los usuarios hacia el proyecto energético propuesto. | E34: 6.3% | F34: Seleccione… | G34: Sin información | H34: ='Consulta de Rangos'!G36 -> < 50% aceptación | I34: ='Consulta de Rangos'!H36 -> 50%-60% aceptación | J34: ='Consulta de Rangos'!I36 -> 60-70% aceptación | K34: ='Consulta de Rangos'!J36 -> > 70% aceptación | L34: Seleccione… | M34: Seleccione… | N34: Seleccione… | O34: Seleccione… | P34: Seleccione… | Q34: Seleccione… | R34: Seleccione… | S34: Seleccione… | T34: Seleccione… | U34: Seleccione…
B35: ='Consulta de Rangos'!A37 -> Social | C35: ='Consulta de Rangos'!B37 -> Impacto de las Iniciativas Energéticas en las Mujeres de la Comunidad | D35: ='Consulta de Rangos'!C37 -> Evaluación de los beneficios específicos que las mujeres obtendrán del proyecto energético. | E35: 6.3% | F35: Seleccione… | G35: Sin información | H35: ='Consulta de Rangos'!G37 -> < 30% | I35: ='Consulta de Rangos'!H37 -> 30%-40% | J35: ='Consulta de Rangos'!I37 -> 40%-60% | K35: ='Consulta de Rangos'!J37 -> > 60% | L35: Seleccione… | M35: Seleccione… | N35: Seleccione… | O35: Seleccione… | P35: Seleccione… | Q35: Seleccione… | R35: Seleccione… | S35: Seleccione… | T35: Seleccione… | U35: Seleccione…
B36: ='Consulta de Rangos'!A38 -> Social | C36: ='Consulta de Rangos'!B38 -> Cumplimiento de consultas previas | D36: ='Consulta de Rangos'!C38 -> Verificar si se han realizado las consultas previas requeridas por la normativa legal en la comunidad. | E36: 6.3% | F36: Seleccione… | G36: Sin información | H36: ='Consulta de Rangos'!G38 -> No se han realizado consultas previas | I36: ='Consulta de Rangos'!H38 -> Consultas previas en proceso | J36: ='Consulta de Rangos'!I38 -> Consultas previas completamente realizadas, no documentadas | K36: ='Consulta de Rangos'!J38 -> Consultas previas completamente realizadas y documentadas | L36: Seleccione… | M36: Seleccione… | N36: Seleccione… | O36: Seleccione… | P36: Seleccione… | Q36: Seleccione… | R36: Seleccione… | S36: Seleccione… | T36: Seleccione… | U36: Seleccione…
B37: ='Consulta de Rangos'!A39 -> Social | C37: ='Consulta de Rangos'!B39 -> Capacitación en Energías Renovables con Enfoque de Género | D37: ='Consulta de Rangos'!C39 -> Formación técnica ofrecida a los miembros de la comunidad, garantizando la inclusión equitativa de género. | E37: 6.3% | F37: Seleccione… | G37: Sin información | H37: ='Consulta de Rangos'!G39 -> No se han realizado capacitaciones | I37: ='Consulta de Rangos'!H39 -> Capacitaciones no completadas | J37: ='Consulta de Rangos'!I39 -> Capacitaciones completamente ejecutadas, no documentadas | K37: ='Consulta de Rangos'!J39 -> Capacitaciones completamente ejecutadas y documentadas | L37: Seleccione… | M37: Seleccione… | N37: Seleccione… | O37: Seleccione… | P37: Seleccione… | Q37: Seleccione… | R37: Seleccione… | S37: Seleccione… | T37: Seleccione… | U37: Seleccione…
A38: =SUM(E38:E44) -> 100.0% | B38: ='Consulta de Rangos'!A40 -> Técnico | C38: ='Consulta de Rangos'!B40 -> ¿Hay capacidad disponible en el circuito de distribución local para la capacidad de generación estimada? (límite del 50%) | D38: ='Consulta de Rangos'!C40 -> Verificación técnica de que el circuito de distribución puede manejar el incremento de generación sin exceder el límite del 50% de capacidad. | E38: 14.3% | F38: Seleccione… | G38: Sin información | H38: ='Consulta de Rangos'!G40 -> < 10% | I38: ='Consulta de Rangos'!H40 -> 10%-30% | J38: ='Consulta de Rangos'!I40 -> 30%-50% | K38: ='Consulta de Rangos'!J40 -> > 50% | L38: Seleccione… | M38: Seleccione… | N38: Seleccione… | O38: Seleccione… | P38: Seleccione… | Q38: Seleccione… | R38: Seleccione… | S38: Seleccione… | T38: Seleccione… | U38: Seleccione…
B39: ='Consulta de Rangos'!A41 -> Técnico | C39: ='Consulta de Rangos'!B41 -> ¿Se trata de una comunidad ya postulada y focalizada? | D39: ='Consulta de Rangos'!C41 -> Indica si la comunidad ha sido identificada previamente en programas o estrategias relacionadas con comunidades energéticas. | E39: 14.3% | F39: Seleccione… | G39: Sin información | H39: ='Consulta de Rangos'!G41 -> Ni postulada ni focalizada | I39: ='Consulta de Rangos'!H41 -> En proceso de postulación | J39: ='Consulta de Rangos'!I41 -> Postulada y parcialmente focalizada | K39: ='Consulta de Rangos'!J41 -> Postulada y focalizada | L39: Seleccione… | M39: Seleccione… | N39: Seleccione… | O39: Seleccione… | P39: Seleccione… | Q39: Seleccione… | R39: Seleccione… | S39: Seleccione… | T39: Seleccione… | U39: Seleccione…
B40: ='Consulta de Rangos'!A42 -> Técnico | C40: ='Consulta de Rangos'!B42 -> Ahorro de energía de la red | D40: ='Consulta de Rangos'!C42 -> Reducción estimada en el consumo de energía de la red eléctrica del SIN como resultado del proyecto. | E40: 14.3% | F40: Seleccione… | G40: Sin información | H40: ='Consulta de Rangos'!G42 -> < 20% | I40: ='Consulta de Rangos'!H42 -> 20%-35% | J40: ='Consulta de Rangos'!I42 -> 35%-50% | K40: ='Consulta de Rangos'!J42 -> > 50% | L40: Seleccione… | M40: Seleccione… | N40: Seleccione… | O40: Seleccione… | P40: Seleccione… | Q40: Seleccione… | R40: Seleccione… | S40: Seleccione… | T40: Seleccione… | U40: Seleccione…
B41: ='Consulta de Rangos'!A43 -> Técnico | C41: ='Consulta de Rangos'!B43 -> Capacidad técnica local (no siempre es esencial, ya que la capacitación puede ser parte del proyecto.) | D41: ='Consulta de Rangos'!C43 -> Habilidad de los miembros de la comunidad para operar y mantener los sistemas energéticos. | E41: 14.3% | F41: Seleccione… | G41: Sin información | H41: ='Consulta de Rangos'!G43 -> < 10% | I41: ='Consulta de Rangos'!H43 -> 10%-20% | J41: ='Consulta de Rangos'!I43 -> 20%-30% | K41: ='Consulta de Rangos'!J43 -> > 30% | L41: Seleccione… | M41: Seleccione… | N41: Seleccione… | O41: Seleccione… | P41: Seleccione… | Q41: Seleccione… | R41: Seleccione… | S41: Seleccione… | T41: Seleccione… | U41: Seleccione…
B42: ='Consulta de Rangos'!A44 -> Técnico | C42: ='Consulta de Rangos'!B44 -> Grado de avance del sistema energético que se proyecta implementar | D42: ='Consulta de Rangos'!C44 -> Nivel de preparación técnica, operativa y administrativa del sistema energético que se busca desarrollar. | E42: 14.3% | F42: Seleccione… | G42: Sin información | H42: ='Consulta de Rangos'!G44 -> Sin planificación | I42: ='Consulta de Rangos'!H44 -> Planificación inicial | J42: ='Consulta de Rangos'!I44 -> Planificación intermedia | K42: ='Consulta de Rangos'!J44 -> Sistema listo para implementación | L42: Seleccione… | M42: Seleccione… | N42: Seleccione… | O42: Seleccione… | P42: Seleccione… | Q42: Seleccione… | R42: Seleccione… | S42: Seleccione… | T42: Seleccione… | U42: Seleccione…
B43: ='Consulta de Rangos'!A45 -> Técnico | C43: ='Consulta de Rangos'!B45 -> Pérdidas de Energía Eléctrica | D43: ='Consulta de Rangos'!C45 -> Evaluar las pérdidas eléctricas en áreas específicas es esencial para identificar zonas con problemáticas de conexiones irregulares. En estos casos, las soluciones orientadas a Comunidades Energéticas pueden actuar como habilitadoras para la normalización de redes eléctricas, contribuyendo a la mejora de la infraestructura, la formalización del acceso al servicio y disminución de riesgos de recaer en comportamientos ilegales o pasar a condiciones de morosidad en los pagos. | E43: 14.3% | F43: Seleccione… | G43: Sin información | H43: ='Consulta de Rangos'!G45 -> < 10% | I43: ='Consulta de Rangos'!H45 -> 10%-15% | J43: ='Consulta de Rangos'!I45 -> 15%-20% | K43: ='Consulta de Rangos'!J45 -> > 20% | L43: Seleccione… | M43: Seleccione… | N43: Seleccione… | O43: Seleccione… | P43: Seleccione… | Q43: Seleccione… | R43: Seleccione… | S43: Seleccione… | T43: Seleccione… | U43: Seleccione…
B44: ='Consulta de Rangos'!A46 -> Técnico | C44: ='Consulta de Rangos'!B46 -> Calidad del servicio (Frecuencia y duración de interrupciones) | D44: ='Consulta de Rangos'!C46 -> Incorporar variables de calidad del servicio permitirá reflejar la continuidad percibida del servicio eléctrico en áreas específicas. Esto puede aportar información valiosa para priorizar aquellas zonas con deficiencias en la calidad del servicio, donde las Comunidades Energéticas podrían generar impactos positivos. | E44: 14.3% | F44: Seleccione… | G44: Sin información | H44: ='Consulta de Rangos'!G46 -> Alta calidad: Menos de 3 interrupciones al mes con duración promedio inferior a 1 hora. | I44: ='Consulta de Rangos'!H46 -> Moderada calidad - alta: Entre 3 y 6 interrupciones al mes con duración promedio entre 1 y 2 horas. | J44: ='Consulta de Rangos'!I46 -> Moderada calidad - baja: Entre 7 y 10 interrupciones al mes con duración promedio entre 2 y 4 horas. | K44: ='Consulta de Rangos'!J46 -> Baja calidad: Más de 10 interrupciones al mes con duración promedio superior a 4 horas. | L44: Seleccione… | M44: Seleccione… | N44: Seleccione… | O44: Seleccione… | P44: Seleccione… | Q44: Seleccione… | R44: Seleccione… | S44: Seleccione… | T44: Seleccione… | U44: Seleccione…

Sheet ResParcial Publico (hidden)
A1: Resultados Normalizados por Indicadores
A2: Esta hoja muestra los resultados de las calificaciones asignadas por el usuario a las comunidades en los diferentes indicadores evaluados. 🔍 ¿Qué encontrarás aquí? Calificaciones Normalizadas: Las calificaciones originales han sido ajustadas para garantizar comparabilidad entre los indicadores. Datos por Comunidad: Cada comunidad aparece evaluada según los criterios establecidos. Preparación para Priorización: Estos resultados son el insumo para la hoja de priorización final.
A6: Categoría | B6: Indicador / Criterios | C6: =Caracterización!B8 -> C1 | D6: =Caracterización!C8 -> C2 | E6: =Caracterización!D8 -> C3 | F6: =Caracterización!E8 -> C4 | G6: =Caracterización!F8 -> C5 | H6: =Caracterización!G8 -> C6 | I6: =Caracterización!H8 -> C7 | J6: =Caracterización!I8 -> C8 | K6: =Caracterización!J8 -> C9 | L6: =Caracterización!K8 -> C10
A7: =INDEX('Calificación Pública'!B:B,ROW()) -> Ambiental | B7: =INDEX('Calificación Pública'!C:C,ROW()) -> EROI (tasa de retorno energético) | C7: =IF(OR(INDEX('Calificación Pública'!L:L,ROW())="Sin información", INDEX('Calificación Pública'!L:L,ROW())="Seleccione…"), "", MATCH(INDEX('Calificación Pública'!L:L,ROW()), INDEX('Calificación Pública'!$H:$K,ROW(),0), 0)) -> 1 | D7: =IF(OR(INDEX('Calificación Pública'!M:M,ROW())="Sin información", INDEX('Calificación Pública'!M:M,ROW())="Seleccione…"), "", MATCH(INDEX('Calificación Pública'!M:M,ROW()), INDEX('Calificación Pública'!$H:$K,ROW(),0), 0)) -> 2 | E7: =IF(OR(INDEX('Calificación Pública'!N:N,ROW())="Sin información", INDEX('Calificación Pública'!N:N,ROW())="Seleccione…"), "", MATCH(INDEX('Calificación Pública'!N:N,ROW()), INDEX('Calificación Pública'!$H:$K,ROW(),0), 0)) -> 3 | F7: =IF(OR(INDEX('Calificación Pública'!O:O,ROW())="Sin información", INDEX('Calificación Pública'!O:O,ROW())="Seleccione…"), "", MATCH(INDEX('Calificación Pública'!O:O,ROW()), INDEX('Calificación Pública'!$H:$K,ROW(),0), 0)) ->  | G7: =IF(OR(INDEX('Calificación Pública'!P:P,ROW())="Sin información", INDEX('Calificación Pública'!P:P,ROW())="Seleccione…"), "", MATCH(INDEX('Calificación Pública'!P:P,ROW()), INDEX('Calificación Pública'!$H:$K,ROW(),0), 0)) ->  | H7: =IF(OR(INDEX('Calificación Pública'!Q:Q,ROW())="Sin información", INDEX('Calificación Pública'!Q:Q,ROW())="Seleccione…"), "", MATCH(INDEX('Calificación Pública'!Q:Q,ROW()), INDEX('Calificación Pública'!$H:$K,ROW(),0), 0)) ->  | I7: =IF(OR(INDEX('Calificación Pública'!R:R,ROW())="Sin información", INDEX('Calificación Pública'!R:R,ROW())="Seleccione…"), "", MATCH(INDEX('Calificación Pública'!R:R,ROW()), INDEX('Calificación Pública'!$H:$K,ROW(),0), 0)) ->  | J7: =IF(OR(INDEX('Calificación Pública'!S:S,ROW())="Sin información", INDEX('Calificación Pública'!S:S,ROW())="Seleccione…"), "", MATCH(INDEX('Calificación Pública'!S:S,ROW()), INDEX('Calificación Pública'!$H:$K,ROW(),0), 0)) ->  | K7: =IF(OR(INDEX('Calificación Pública'!T:T,ROW())="Sin información", INDEX('Calificación Pública'!T:T,ROW())="Seleccione…"), "", MATCH(INDEX('Calificación Pública'!T:T,ROW()), INDEX('Calificación Pública'!$H:$K,ROW(),0), 0)) ->  | L7: =IF(OR(INDEX('Calificación Pública'!U:U,ROW())="Sin información", INDEX('Calificación Pública'!U:U,ROW())="Seleccione…"), "", MATCH(INDEX('Calificación Pública'!U:U,ROW()), INDEX('Calificación Pública'!$H:$K,ROW(),0), 0)) -> 
A8: =INDEX('Calificación Pública'!B:B,ROW()) -> Ambiental | B8: =INDEX('Calificación Pública'!C:C,ROW()) -> Reducción anual de gases de efecto invernadero | C8: =IF(OR(INDEX('Calificación Pública'!L:L,ROW())="Sin información", INDEX('Calificación Pública'!L:L,ROW())="Seleccione…"), "", MATCH(INDEX('Calificación Pública'!L:L,ROW()), INDEX('Calificación Pública'!$H:$K,ROW(),0), 0)) -> 2 | D8: =IF(OR(INDEX('Calificación Pública'!M:M,ROW())="Sin información", INDEX('Calificación Pública'!M:M,ROW())="Seleccione…"), "", MATCH(INDEX('Calificación Pública'!M:M,ROW()), INDEX('Calificación Pública'!$H:$K,ROW(),0), 0)) -> 1 | E8: =IF(OR(INDEX('Calificación Pública'!N:N,ROW())="Sin información", INDEX('Calificación Pública'!N:N,ROW())="Seleccione…"), "", MATCH(INDEX('Calificación Pública'!N:N,ROW()), INDEX('Calificación Pública'!$H:$K,ROW(),0), 0)) ->  | F8: =IF(OR(INDEX('Calificación Pública'!O:O,ROW())="Sin información", INDEX('Calificación Pública'!O:O,ROW())="Seleccione…"), "", MATCH(INDEX('Calificación Pública'!O:O,ROW()), INDEX('Calificación Pública'!$H:$K,ROW(),0), 0)) ->  | G8: =IF(OR(INDEX('Calificación Pública'!P:P,ROW())="Sin información", INDEX('Calificación Pública'!P:P,ROW())="Seleccione…"), "", MATCH(INDEX('Calificación Pública'!P:P,ROW()), INDEX('Calificación Pública'!$H:$K,ROW(),0), 0)) ->  | H8: =IF(OR(INDEX('Calificación Pública'!Q:Q,ROW())="Sin información", INDEX('Calificación Pública'!Q:Q,ROW())="Seleccione…"), "", MATCH(INDEX('Calificación Pública'!Q:Q,ROW()), INDEX('Calificación Pública'!$H:$K,ROW(),0), 0)) ->  | I8: =IF(OR(INDEX('Calificación Pública'!R:R,ROW())="Sin información", INDEX('Calificación Pública'!R:R,ROW())="Seleccione…"), "", MATCH(INDEX('Calificación Pública'!R:R,ROW()), INDEX('Calificación Pública'!$H:$K,ROW(),0), 0)) ->  | J8: =IF(OR(INDEX('Calificación Pública'!S:S,ROW())="Sin información", INDEX('Calificación Pública'!S:S,ROW())="Seleccione…"), "", MATCH(INDEX('Calificación Pública'!S:S,ROW()), INDEX('Calificación Pública'!$H:$K,ROW(),0), 0)) ->  | K8: =IF(OR(INDEX('Calificación Pública'!T:T,ROW())="Sin información", INDEX('Calificación Pública'!T:T,ROW())="Seleccione…"), "", MATCH(INDEX('Calificación Pública'!T:T,ROW()), INDEX('Calificación Pública'!$H:$K,ROW(),0), 0)) ->  | L8: =IF(OR(INDEX('Calificación Pública'!U:U,ROW())="Sin información", INDEX('Calificación Pública'!U:U,ROW())="Seleccione…"), "", MATCH(INDEX('Calificación Pública'!U:U,ROW()), INDEX('Calificación Pública'!$H:$K,ROW(),0), 0)) -> 
A9: =INDEX('Calificación Pública'!B:B,ROW()) -> Ambiental | B9: =INDEX('Calificación Pública'!C:C,ROW()) -> Territorios de alta dependencia de carbón térmico | C9: =IF(OR(INDEX('Calificación Pública'!L:L,ROW())="Sin información", INDEX('Calificación Pública'!L:L,ROW())="Seleccione…"), "", MATCH(INDEX('Calificación Pública'!L:L,ROW()), INDEX('Calificación Pública'!$H:$K,ROW(),0), 0)) -> 3 | D9: =IF(OR(INDEX('Calificación Pública'!M:M,ROW())="Sin información", INDEX('Calificación Pública'!M:M,ROW())="Seleccione…"), "", MATCH(INDEX('Calificación Pública'!M:M,ROW()), INDEX('Calificación Pública'!$H:$K,ROW(),0), 0)) -> 4 | E9: =IF(OR(INDEX('Calificación Pública'!N:N,ROW())="Sin información", INDEX('Calificación Pública'!N:N,ROW())="Seleccione…"), "", MATCH(INDEX('Calificación Pública'!N:N,ROW()), INDEX('Calificación Pública'!$H:$K,ROW(),0), 0)) ->  | F9: =IF(OR(INDEX('Calificación Pública'!O:O,ROW())="Sin información", INDEX('Calificación Pública'!O:O,ROW())="Seleccione…"), "", MATCH(INDEX('Calificación Pública'!O:O,ROW()), INDEX('Calificación Pública'!$H:$K,ROW(),0), 0)) ->  | G9: =IF(OR(INDEX('Calificación Pública'!P:P,ROW())="Sin información", INDEX('Calificación Pública'!P:P,ROW())="Seleccione…"), "", MATCH(INDEX('Calificación Pública'!P:P,ROW()), INDEX('Calificación Pública'!$H:$K,ROW(),0), 0)) ->  | H9: =IF(OR(INDEX('Calificación Pública'!Q:Q,ROW())="Sin información", INDEX('Calificación Pública'!Q:Q,ROW())="Seleccione…"), "", MATCH(INDEX('Calificación Pública'!Q:Q,ROW()), INDEX('Calificación Pública'!$H:$K,ROW(),0), 0)) ->  | I9: =IF(OR(INDEX('Calificación Pública'!R:R,ROW())="Sin información", INDEX('Calificación Pública'!R:R,ROW())="Seleccione…"), "", MATCH(INDEX('Calificación Pública'!R:R,ROW()), INDEX('Calificación Pública'!$H:$K,ROW(),0), 0)) ->  | J9: =IF(OR(INDEX('Calificación Pública'!S:S,ROW())="Sin información", INDEX('Calificación Pública'!S:S,ROW())="Seleccione…"), "", MATCH(INDEX('Calificación Pública'!S:S,ROW()), INDEX('Calificación Pública'!$H:$K,ROW(),0), 0)) ->  | K9: =IF(OR(INDEX('Calificación Pública'!T:T,ROW())="Sin información", INDEX('Calificación Pública'!T:T,ROW())="Seleccione…"), "", MATCH(INDEX('Calificación Pública'!T:T,ROW()), INDEX('Calificación Pública'!$H:$K,ROW(),0), 0)) ->  | L9: =IF(OR(INDEX('Calificación Pública'!U:U,ROW())="Sin información", INDEX('Calificación Pública'!U:U,ROW())="Seleccione…"), "", MATCH(INDEX('Calificación Pública'!U:U,ROW()), INDEX('Calificación Pública'!$H:$K,ROW(),0), 0)) -> 
A10: =INDEX('Calificación Pública'!B:B,ROW()) -> Económico | B10: =INDEX('Calificación Pública'!C:C,ROW()) -> Ahorro monetario del usuario en la factura eléctrica | C10: =IF(OR(INDEX('Calificación Pública'!L:L,ROW())="Sin información", INDEX('Calificación Pública'!L:L,ROW())="Seleccione…"), "", MATCH(INDEX('Calificación Pública'!L:L,ROW()), INDEX('Calificación Pública'!$H:$K,ROW(),0), 0)) -> 4 | D10: =IF(OR(INDEX('Calificación Pública'!M:M,ROW())="Sin información", INDEX('Calificación Pública'!M:M,ROW())="Seleccione…"), "", MATCH(INDEX('Calificación Pública'!M:M,ROW()), INDEX('Calificación Pública'!$H:$K,ROW(),0), 0)) -> 1 | E10: =IF(OR(INDEX('Calificación Pública'!N:N,ROW())="Sin información", INDEX('Calificación Pública'!N:N,ROW())="Seleccione…"), "", MATCH(INDEX('Calificación Pública'!N:N,ROW()), INDEX('Calificación Pública'!$H:$K,ROW(),0), 0)) ->  | F10: =IF(OR(INDEX('Calificación Pública'!O:O,ROW())="Sin información", INDEX('Calificación Pública'!O:O,ROW())="Seleccione…"), "", MATCH(INDEX('Calificación Pública'!O:O,ROW()), INDEX('Calificación Pública'!$H:$K,ROW(),0), 0)) ->  | G10: =IF(OR(INDEX('Calificación Pública'!P:P,ROW())="Sin información", INDEX('Calificación Pública'!P:P,ROW())="Seleccione…"), "", MATCH(INDEX('Calificación Pública'!P:P,ROW()), INDEX('Calificación Pública'!$H:$K,ROW(),0), 0)) ->  | H10: =IF(OR(INDEX('Calificación Pública'!Q:Q,ROW())="Sin información", INDEX('Calificación Pública'!Q:Q,ROW())="Seleccione…"), "", MATCH(INDEX('Calificación Pública'!Q:Q,ROW()), INDEX('Calificación Pública'!$H:$K,ROW(),0), 0)) ->  | I10: =IF(OR(INDEX('Calificación Pública'!R:R,ROW())="Sin información", INDEX('Calificación Pública'!R:R,ROW())="Seleccione…"), "", MATCH(INDEX('Calificación Pública'!R:R,ROW()), INDEX('Calificación Pública'!$H:$K,ROW(),0), 0)) ->  | J10: =IF(OR(INDEX('Calificación Pública'!S:S,ROW())="Sin información", INDEX('Calificación Pública'!S:S,ROW())="Seleccione…"), "", MATCH(INDEX('Calificación Pública'!S:S,ROW()), INDEX('Calificación Pública'!$H:$K,ROW(),0), 0)) ->  | K10: =IF(OR(INDEX('Calificación Pública'!T:T,ROW())="Sin información", INDEX('Calificación Pública'!T:T,ROW())="Seleccione…"), "", MATCH(INDEX('Calificación Pública'!T:T,ROW()), INDEX('Calificación Pública'!$H:$K,ROW(),0), 0)) ->  | L10: =IF(OR(INDEX('Calificación Pública'!U:U,ROW())="Sin información", INDEX('Calificación Pública'!U:U,ROW())="Seleccione…"), "", MATCH(INDEX('Calificación Pública'!U:U,ROW()), INDEX('Calificación Pública'!$H:$K,ROW(),0), 0)) -> 
A11: =INDEX('Calificación Pública'!B:B,ROW()) -> Económico | B11: =INDEX('Calificación Pública'!C:C,ROW()) -> Coste de generación de energía ($/MWh) | C11: =IF(OR(INDEX('Calificación Pública'!L:L,ROW())="Sin información", INDEX('Calificación Pública'!L:L,ROW())="Seleccione…"), "", MATCH(INDEX('Calificación Pública'!L:L,ROW()), INDEX('Calificación Pública'!$H:$K,ROW(),0), 0)) ->  | D11: =IF(OR(INDEX('Calificación Pública'!M:M,ROW())="Sin información", INDEX('Calificación Pública'!M:M,ROW())="Seleccione…"), "", MATCH(INDEX('Calificación Pública'!M:M,ROW()), INDEX('Calificación Pública'!$H:$K,ROW(),0), 0)) ->  | E11: =IF(OR(INDEX('Calificación Pública'!N:N,ROW())="Sin información", INDEX('Calificación Pública'!N:N,ROW())="Seleccione…"), "", MATCH(INDEX('Calificación Pública'!N:N,ROW()), INDEX('Calificación Pública'!$H:$K,ROW(),0), 0)) ->  | F11: =IF(OR(INDEX('Calificación Pública'!O:O,ROW())="Sin información", INDEX('Calificación Pública'!O:O,ROW())="Seleccione…"), "", MATCH(INDEX('Calificación Pública'!O:O,ROW()), INDEX('Calificación Pública'!$H:$K,ROW(),0), 0)) ->  | G11: =IF(OR(INDEX('Calificación Pública'!P:P,ROW())="Sin información", INDEX('Calificación Pública'!P:P,ROW())="Seleccione…"), "", MATCH(INDEX('Calificación Pública'!P:P,ROW()), INDEX('Calificación Pública'!$H:$K,ROW(),0), 0)) ->  | H11: =IF(OR(INDEX('Calificación Pública'!Q:Q,ROW())="Sin información", INDEX('Calificación Pública'!Q:Q,ROW())="Seleccione…"), "", MATCH(INDEX('Calificación Pública'!Q:Q,ROW()), INDEX('Calificación Pública'!$H:$K,ROW(),0), 0)) ->  | I11: =IF(OR(INDEX('Calificación Pública'!R:R,ROW())="Sin información", INDEX('Calificación Pública'!R:R,ROW())="Seleccione…"), "", MATCH(INDEX('Calificación Pública'!R:R,ROW()), INDEX('Calificación Pública'!$H:$K,ROW(),0), 0)) ->  | J11: =IF(OR(INDEX('Calificación Pública'!S:S,ROW())="Sin información", INDEX('Calificación Pública'!S:S,ROW())="Seleccione…"), "", MATCH(INDEX('Calificación Pública'!S:S,ROW()), INDEX('Calificación Pública'!$H:$K,ROW(),0), 0)) ->  | K11: =IF(OR(INDEX('Calificación Pública'!T:T,ROW())="Sin información", INDEX('Calificación Pública'!T:T,ROW())="Seleccione…"), "", MATCH(INDEX('Calificación Pública'!T:T,ROW()), INDEX('Calificación Pública'!$H:$K,ROW(),0), 0)) ->  | L11: =IF(OR(INDEX('Calificación Pública'!U:U,ROW())="Sin información", INDEX('Calificación Pública'!U:U,ROW())="Seleccione…"), "", MATCH(INDEX('Calificación Pública'!U:U,ROW()), INDEX('Calificación Pública'!$H:$K,ROW(),0), 0)) -> 
A12: =INDEX('Calificación Pública'!B:B,ROW()) -> Económico | B12: =INDEX('Calificación Pública'!C:C,ROW()) -> La comunidad realiza el pago por servicio de energía de manera cumplida | C12: =IF(OR(INDEX('Calificación Pública'!L:L,ROW())="Sin información", INDEX('Calificación Pública'!L:L,ROW())="Seleccione…"), "", MATCH(INDEX('Calificación Pública'!L:L,ROW()), INDEX('Calificación Pública'!$H:$K,ROW(),0), 0)) ->  | D12: =IF(OR(INDEX('Calificación Pública'!M:M,ROW())="Sin información", INDEX('Calificación Pública'!M:M,ROW())="Seleccione…"), "", MATCH(INDEX('Calificación Pública'!M:M,ROW()), INDEX('Calificación Pública'!$H:$K,ROW(),0), 0)) ->  | E12: =IF(OR(INDEX('Calificación Pública'!N:N,ROW())="Sin información", INDEX('Calificación Pública'!N:N,ROW())="Seleccione…"), "", MATCH(INDEX('Calificación Pública'!N:N,ROW()), INDEX('Calificación Pública'!$H:$K,ROW(),0), 0)) ->  | F12: =IF(OR(INDEX('Calificación Pública'!O:O,ROW())="Sin información", INDEX('Calificación Pública'!O:O,ROW())="Seleccione…"), "", MATCH(INDEX('Calificación Pública'!O:O,ROW()), INDEX('Calificación Pública'!$H:$K,ROW(),0), 0)) ->  | G12: =IF(OR(INDEX('Calificación Pública'!P:P,ROW())="Sin información", INDEX('Calificación Pública'!P:P,ROW())="Seleccione…"), "", MATCH(INDEX('Calificación Pública'!P:P,ROW()), INDEX('Calificación Pública'!$H:$K,ROW(),0), 0)) ->  | H12: =IF(OR(INDEX('Calificación Pública'!Q:Q,ROW())="Sin información", INDEX('Calificación Pública'!Q:Q,ROW())="Seleccione…"), "", MATCH(INDEX('Calificación Pública'!Q:Q,ROW()), INDEX('Calificación Pública'!$H:$K,ROW(),0), 0)) ->  | I12: =IF(OR(INDEX('Calificación Pública'!R:R,ROW())="Sin información", INDEX('Calificación Pública'!R:R,ROW())="Seleccione…"), "", MATCH(INDEX('Calificación Pública'!R:R,ROW()), INDEX('Calificación Pública'!$H:$K,ROW(),0), 0)) ->  | J12: =IF(OR(INDEX('Calificación Pública'!S:S,ROW())="Sin información", INDEX('Calificación Pública'!S:S,ROW())="Seleccione…"), "", MATCH(INDEX('Calificación Pública'!S:S,ROW()), INDEX('Calificación Pública'!$H:$K,ROW(),0), 0)) ->  | K12: =IF(OR(INDEX('Calificación Pública'!T:T,ROW())="Sin información", INDEX('Calificación Pública'!T:T,ROW())="Seleccione…"), "", MATCH(INDEX('Calificación Pública'!T:T,ROW()), INDEX('Calificación Pública'!$H:$K,ROW(),0), 0)) ->  | L12: =IF(OR(INDEX('Calificación Pública'!U:U,ROW())="Sin información", INDEX('Calificación Pública'!U:U,ROW())="Seleccione…"), "", MATCH(INDEX('Calificación Pública'!U:U,ROW()), INDEX('Calificación Pública'!$H:$K,ROW(),0), 0)) -> 
A13: =INDEX('Calificación Pública'!B:B,ROW()) -> Económico | B13: =INDEX('Calificación Pública'!C:C,ROW()) -> Tiempo de retorno de la inversión | C13: =IF(OR(INDEX('Calificación Pública'!L:L,ROW())="Sin información", INDEX('Calificación Pública'!L:L,ROW())="Seleccione…"), "", MATCH(INDEX('Calificación Pública'!L:L,ROW()), INDEX('Calificación Pública'!$H:$K,ROW(),0), 0)) ->  | D13: =IF(OR(INDEX('Calificación Pública'!M:M,ROW())="Sin información", INDEX('Calificación Pública'!M:M,ROW())="Seleccione…"), "", MATCH(INDEX('Calificación Pública'!M:M,ROW()), INDEX('Calificación Pública'!$H:$K,ROW(),0), 0)) ->  | E13: =IF(OR(INDEX('Calificación Pública'!N:N,ROW())="Sin información", INDEX('Calificación Pública'!N:N,ROW())="Seleccione…"), "", MATCH(INDEX('Calificación Pública'!N:N,ROW()), INDEX('Calificación Pública'!$H:$K,ROW(),0), 0)) ->  | F13: =IF(OR(INDEX('Calificación Pública'!O:O,ROW())="Sin información", INDEX('Calificación Pública'!O:O,ROW())="Seleccione…"), "", MATCH(INDEX('Calificación Pública'!O:O,ROW()), INDEX('Calificación Pública'!$H:$K,ROW(),0), 0)) ->  | G13: =IF(OR(INDEX('Calificación Pública'!P:P,ROW())="Sin información", INDEX('Calificación Pública'!P:P,ROW())="Seleccione…"), "", MATCH(INDEX('Calificación Pública'!P:P,ROW()), INDEX('Calificación Pública'!$H:$K,ROW(),0), 0)) ->  | H13: =IF(OR(INDEX('Calificación Pública'!Q:Q,ROW())="Sin información", INDEX('Calificación Pública'!Q:Q,ROW())="Seleccione…"), "", MATCH(INDEX('Calificación Pública'!Q:Q,ROW()), INDEX('Calificación Pública'!$H:$K,ROW(),0), 0)) ->  | I13: =IF(OR(INDEX('Calificación Pública'!R:R,ROW())="Sin información", INDEX('Calificación Pública'!R:R,ROW())="Seleccione…"), "", MATCH(INDEX('Calificación Pública'!R:R,ROW()), INDEX('Calificación Pública'!$H:$K,ROW(),0), 0)) ->  | J13: =IF(OR(INDEX('Calificación Pública'!S:S,ROW())="Sin información", INDEX('Calificación Pública'!S:S,ROW())="Seleccione…"), "", MATCH(INDEX('Calificación Pública'!S:S,ROW()), INDEX('Calificación Pública'!$H:$K,ROW(),0), 0)) ->  | K13: =IF(OR(INDEX('Calificación Pública'!T:T,ROW())="Sin información", INDEX('Calificación Pública'!T:T,ROW())="Seleccione…"), "", MATCH(INDEX('Calificación Pública'!T:T,ROW()), INDEX('Calificación Pública'!$H:$K,ROW(),0), 0)) ->  | L13: =IF(OR(INDEX('Calificación Pública'!U:U,ROW())="Sin información", INDEX('Calificación Pública'!U:U,ROW())="Seleccione…"), "", MATCH(INDEX('Calificación Pública'!U:U,ROW()), INDEX('Calificación Pública'!$H:$K,ROW(),0), 0)) -> 
A14: =INDEX('Calificación Pública'!B:B,ROW()) -> Económico | B14: =INDEX('Calificación Pública'!C:C,ROW()) -> Tasa interna de rentabilidad (TIR) | C14: =IF(OR(INDEX('Calificación Pública'!L:L,ROW())="Sin información", INDEX('Calificación Pública'!L:L,ROW())="Seleccione…"), "", MATCH(INDEX('Calificación Pública'!L:L,ROW()), INDEX('Calificación Pública'!$H:$K,ROW(),0), 0)) ->  | D14: =IF(OR(INDEX('Calificación Pública'!M:M,ROW())="Sin información", INDEX('Calificación Pública'!M:M,ROW())="Seleccione…"), "", MATCH(INDEX('Calificación Pública'!M:M,ROW()), INDEX('Calificación Pública'!$H:$K,ROW(),0), 0)) ->  | E14: =IF(OR(INDEX('Calificación Pública'!N:N,ROW())="Sin información", INDEX('Calificación Pública'!N:N,ROW())="Seleccione…"), "", MATCH(INDEX('Calificación Pública'!N:N,ROW()), INDEX('Calificación Pública'!$H:$K,ROW(),0), 0)) ->  | F14: =IF(OR(INDEX('Calificación Pública'!O:O,ROW())="Sin información", INDEX('Calificación Pública'!O:O,ROW())="Seleccione…"), "", MATCH(INDEX('Calificación Pública'!O:O,ROW()), INDEX('Calificación Pública'!$H:$K,ROW(),0), 0)) ->  | G14: =IF(OR(INDEX('Calificación Pública'!P:P,ROW())="Sin información", INDEX('Calificación Pública'!P:P,ROW())="Seleccione…"), "", MATCH(INDEX('Calificación Pública'!P:P,ROW()), INDEX('Calificación Pública'!$H:$K,ROW(),0), 0)) ->  | H14: =IF(OR(INDEX('Calificación Pública'!Q:Q,ROW())="Sin información", INDEX('Calificación Pública'!Q:Q,ROW())="Seleccione…"), "", MATCH(INDEX('Calificación Pública'!Q:Q,ROW()), INDEX('Calificación Pública'!$H:$K,ROW(),0), 0)) ->  | I14: =IF(OR(INDEX('Calificación Pública'!R:R,ROW())="Sin información", INDEX('Calificación Pública'!R:R,ROW())="Seleccione…"), "", MATCH(INDEX('Calificación Pública'!R:R,ROW()), INDEX('Calificación Pública'!$H:$K,ROW(),0), 0)) ->  | J14: =IF(OR(INDEX('Calificación Pública'!S:S,ROW())="Sin información", INDEX('Calificación Pública'!S:S,ROW())="Seleccione…"), "", MATCH(INDEX('Calificación Pública'!S:S,ROW()), INDEX('Calificación Pública'!$H:$K,ROW(),0), 0)) ->  | K14: =IF(OR(INDEX('Calificación Pública'!T:T,ROW())="Sin información", INDEX('Calificación Pública'!T:T,ROW())="Seleccione…"), "", MATCH(INDEX('Calificación Pública'!T:T,ROW()), INDEX('Calificación Pública'!$H:$K,ROW(),0), 0)) ->  | L14: =IF(OR(INDEX('Calificación Pública'!U:U,ROW())="Sin información", INDEX('Calificación Pública'!U:U,ROW())="Seleccione…"), "", MATCH(INDEX('Calificación Pública'!U:U,ROW()), INDEX('Calificación Pública'!$H:$K,ROW(),0), 0)) -> 
A15: =INDEX('Calificación Pública'!B:B,ROW()) -> Económico | B15: =INDEX('Calificación Pública'!C:C,ROW()) -> Identificación de fuentes de financiación alternativas viables | C15: =IF(OR(INDEX('Calificación Pública'!L:L,ROW())="Sin información", INDEX('Calificación Pública'!L:L,ROW())="Seleccione…"), "", MATCH(INDEX('Calificación Pública'!L:L,ROW()), INDEX('Calificación Pública'!$H:$K,ROW(),0), 0)) ->  | D15: =IF(OR(INDEX('Calificación Pública'!M:M,ROW())="Sin información", INDEX('Calificación Pública'!M:M,ROW())="Seleccione…"), "", MATCH(INDEX('Calificación Pública'!M:M,ROW()), INDEX('Calificación Pública'!$H:$K,ROW(),0), 0)) ->  | E15: =IF(OR(INDEX('Calificación Pública'!N:N,ROW())="Sin información", INDEX('Calificación Pública'!N:N,ROW())="Seleccione…"), "", MATCH(INDEX('Calificación Pública'!N:N,ROW()), INDEX('Calificación Pública'!$H:$K,ROW(),0), 0)) ->  | F15: =IF(OR(INDEX('Calificación Pública'!O:O,ROW())="Sin información", INDEX('Calificación Pública'!O:O,ROW())="Seleccione…"), "", MATCH(INDEX('Calificación Pública'!O:O,ROW()), INDEX('Calificación Pública'!$H:$K,ROW(),0), 0)) ->  | G15: =IF(OR(INDEX('Calificación Pública'!P:P,ROW())="Sin información", INDEX('Calificación Pública'!P:P,ROW())="Seleccione…"), "", MATCH(INDEX('Calificación Pública'!P:P,ROW()), INDEX('Calificación Pública'!$H:$K,ROW(),0), 0)) ->  | H15: =IF(OR(INDEX('Calificación Pública'!Q:Q,ROW())="Sin información", INDEX('Calificación Pública'!Q:Q,ROW())="Seleccione…"), "", MATCH(INDEX('Calificación Pública'!Q:Q,ROW()), INDEX('Calificación Pública'!$H:$K,ROW(),0), 0)) ->  | I15: =IF(OR(INDEX('Calificación Pública'!R:R,ROW())="Sin información", INDEX('Calificación Pública'!R:R,ROW())="Seleccione…"), "", MATCH(INDEX('Calificación Pública'!R:R,ROW()), INDEX('Calificación Pública'!$H:$K,ROW(),0), 0)) ->  | J15: =IF(OR(INDEX('Calificación Pública'!S:S,ROW())="Sin información", INDEX('Calificación Pública'!S:S,ROW())="Seleccione…"), "", MATCH(INDEX('Calificación Pública'!S:S,ROW()), INDEX('Calificación Pública'!$H:$K,ROW(),0), 0)) ->  | K15: =IF(OR(INDEX('Calificación Pública'!T:T,ROW())="Sin información", INDEX('Calificación Pública'!T:T,ROW())="Seleccione…"), "", MATCH(INDEX('Calificación Pública'!T:T,ROW()), INDEX('Calificación Pública'!$H:$K,ROW(),0), 0)) ->  | L15: =IF(OR(INDEX('Calificación Pública'!U:U,ROW())="Sin información", INDEX('Calificación Pública'!U:U,ROW())="Seleccione…"), "", MATCH(INDEX('Calificación Pública'!U:U,ROW()), INDEX('Calificación Pública'!$H:$K,ROW(),0), 0)) -> 
A16: =INDEX('Calificación Pública'!B:B,ROW()) -> Económico | B16: =INDEX('Calificación Pública'!C:C,ROW()) -> Capacidad de cofinanciación local | C16: =IF(OR(INDEX('Calificación Pública'!L:L,ROW())="Sin información", INDEX('Calificación Pública'!L:L,ROW())="Seleccione…"), "", MATCH(INDEX('Calificación Pública'!L:L,ROW()), INDEX('Calificación Pública'!$H:$K,ROW(),0), 0)) ->  | D16: =IF(OR(INDEX('Calificación Pública'!M:M,ROW())="Sin información", INDEX('Calificación Pública'!M:M,ROW())="Seleccione…"), "", MATCH(INDEX('Calificación Pública'!M:M,ROW()), INDEX('Calificación Pública'!$H:$K,ROW(),0), 0)) ->  | E16: =IF(OR(INDEX('Calificación Pública'!N:N,ROW())="Sin información", INDEX('Calificación Pública'!N:N,ROW())="Seleccione…"), "", MATCH(INDEX('Calificación Pública'!N:N,ROW()), INDEX('Calificación Pública'!$H:$K,ROW(),0), 0)) ->  | F16: =IF(OR(INDEX('Calificación Pública'!O:O,ROW())="Sin información", INDEX('Calificación Pública'!O:O,ROW())="Seleccione…"), "", MATCH(INDEX('Calificación Pública'!O:O,ROW()), INDEX('Calificación Pública'!$H:$K,ROW(),0), 0)) ->  | G16: =IF(OR(INDEX('Calificación Pública'!P:P,ROW())="Sin información", INDEX('Calificación Pública'!P:P,ROW())="Seleccione…"), "", MATCH(INDEX('Calificación Pública'!P:P,ROW()), INDEX('Calificación Pública'!$H:$K,ROW(),0), 0)) ->  | H16: =IF(OR(INDEX('Calificación Pública'!Q:Q,ROW())="Sin información", INDEX('Calificación Pública'!Q:Q,ROW())="Seleccione…"), "", MATCH(INDEX('Calificación Pública'!Q:Q,ROW()), INDEX('Calificación Pública'!$H:$K,ROW(),0), 0)) ->  | I16: =IF(OR(INDEX('Calificación Pública'!R:R,ROW())="Sin información", INDEX('Calificación Pública'!R:R,ROW())="Seleccione…"), "", MATCH(INDEX('Calificación Pública'!R:R,ROW()), INDEX('Calificación Pública'!$H:$K,ROW(),0), 0)) ->  | J16: =IF(OR(INDEX('Calificación Pública'!S:S,ROW())="Sin información", INDEX('Calificación Pública'!S:S,ROW())="Seleccione…"), "", MATCH(INDEX('Calificación Pública'!S:S,ROW()), INDEX('Calificación Pública'!$H:$K,ROW(),0), 0)) ->  | K16: =IF(OR(INDEX('Calificación Pública'!T:T,ROW())="Sin información", INDEX('Calificación Pública'!T:T,ROW())="Seleccione…"), "", MATCH(INDEX('Calificación Pública'!T:T,ROW()), INDEX('Calificación Pública'!$H:$K,ROW(),0), 0)) ->  | L16: =IF(OR(INDEX('Calificación Pública'!U:U,ROW())="Sin información", INDEX('Calificación Pública'!U:U,ROW())="Seleccione…"), "", MATCH(INDEX('Calificación Pública'!U:U,ROW()), INDEX('Calificación Pública'!$H:$K,ROW(),0), 0)) -> 
A17: =INDEX('Calificación Pública'!B:B,ROW()) -> Económico | B17: =INDEX('Calificación Pública'!C:C,ROW()) -> Capacidad y voluntad de los miembros de la comunidad para financiar el proyecto | C17: =IF(OR(INDEX('Calificación Pública'!L:L,ROW())="Sin información", INDEX('Calificación Pública'!L:L,ROW())="Seleccione…"), "", MATCH(INDEX('Calificación Pública'!L:L,ROW()), INDEX('Calificación Pública'!$H:$K,ROW(),0), 0)) ->  | D17: =IF(OR(INDEX('Calificación Pública'!M:M,ROW())="Sin información", INDEX('Calificación Pública'!M:M,ROW())="Seleccione…"), "", MATCH(INDEX('Calificación Pública'!M:M,ROW()), INDEX('Calificación Pública'!$H:$K,ROW(),0), 0)) ->  | E17: =IF(OR(INDEX('Calificación Pública'!N:N,ROW())="Sin información", INDEX('Calificación Pública'!N:N,ROW())="Seleccione…"), "", MATCH(INDEX('Calificación Pública'!N:N,ROW()), INDEX('Calificación Pública'!$H:$K,ROW(),0), 0)) ->  | F17: =IF(OR(INDEX('Calificación Pública'!O:O,ROW())="Sin información", INDEX('Calificación Pública'!O:O,ROW())="Seleccione…"), "", MATCH(INDEX('Calificación Pública'!O:O,ROW()), INDEX('Calificación Pública'!$H:$K,ROW(),0), 0)) ->  | G17: =IF(OR(INDEX('Calificación Pública'!P:P,ROW())="Sin información", INDEX('Calificación Pública'!P:P,ROW())="Seleccione…"), "", MATCH(INDEX('Calificación Pública'!P:P,ROW()), INDEX('Calificación Pública'!$H:$K,ROW(),0), 0)) ->  | H17: =IF(OR(INDEX('Calificación Pública'!Q:Q,ROW())="Sin información", INDEX('Calificación Pública'!Q:Q,ROW())="Seleccione…"), "", MATCH(INDEX('Calificación Pública'!Q:Q,ROW()), INDEX('Calificación Pública'!$H:$K,ROW(),0), 0)) ->  | I17: =IF(OR(INDEX('Calificación Pública'!R:R,ROW())="Sin información", INDEX('Calificación Pública'!R:R,ROW())="Seleccione…"), "", MATCH(INDEX('Calificación Pública'!R:R,ROW()), INDEX('Calificación Pública'!$H:$K,ROW(),0), 0)) ->  | J17: =IF(OR(INDEX('Calificación Pública'!S:S,ROW())="Sin información", INDEX('Calificación Pública'!S:S,ROW())="Seleccione…"), "", MATCH(INDEX('Calificación Pública'!S:S,ROW()), INDEX('Calificación Pública'!$H:$K,ROW(),0), 0)) ->  | K17: =IF(OR(INDEX('Calificación Pública'!T:T,ROW())="Sin información", INDEX('Calificación Pública'!T:T,ROW())="Seleccione…"), "", MATCH(INDEX('Calificación Pública'!T:T,ROW()), INDEX('Calificación Pública'!$H:$K,ROW(),0), 0)) ->  | L17: =IF(OR(INDEX('Calificación Pública'!U:U,ROW())="Sin información", INDEX('Calificación Pública'!U:U,ROW())="Seleccione…"), "", MATCH(INDEX('Calificación Pública'!U:U,ROW()), INDEX('Calificación Pública'!$H:$K,ROW(),0), 0)) -> 
A18: =INDEX('Calificación Pública'!B:B,ROW()) -> Económico | B18: =INDEX('Calificación Pública'!C:C,ROW()) -> Costos energéticos promedio por usuario | C18: =IF(OR(INDEX('Calificación Pública'!L:L,ROW())="Sin información", INDEX('Calificación Pública'!L:L,ROW())="Seleccione…"), "", MATCH(INDEX('Calificación Pública'!L:L,ROW()), INDEX('Calificación Pública'!$H:$K,ROW(),0), 0)) ->  | D18: =IF(OR(INDEX('Calificación Pública'!M:M,ROW())="Sin información", INDEX('Calificación Pública'!M:M,ROW())="Seleccione…"), "", MATCH(INDEX('Calificación Pública'!M:M,ROW()), INDEX('Calificación Pública'!$H:$K,ROW(),0), 0)) ->  | E18: =IF(OR(INDEX('Calificación Pública'!N:N,ROW())="Sin información", INDEX('Calificación Pública'!N:N,ROW())="Seleccione…"), "", MATCH(INDEX('Calificación Pública'!N:N,ROW()), INDEX('Calificación Pública'!$H:$K,ROW(),0), 0)) ->  | F18: =IF(OR(INDEX('Calificación Pública'!O:O,ROW())="Sin información", INDEX('Calificación Pública'!O:O,ROW())="Seleccione…"), "", MATCH(INDEX('Calificación Pública'!O:O,ROW()), INDEX('Calificación Pública'!$H:$K,ROW(),0), 0)) ->  | G18: =IF(OR(INDEX('Calificación Pública'!P:P,ROW())="Sin información", INDEX('Calificación Pública'!P:P,ROW())="Seleccione…"), "", MATCH(INDEX('Calificación Pública'!P:P,ROW()), INDEX('Calificación Pública'!$H:$K,ROW(),0), 0)) ->  | H18: =IF(OR(INDEX('Calificación Pública'!Q:Q,ROW())="Sin información", INDEX('Calificación Pública'!Q:Q,ROW())="Seleccione…"), "", MATCH(INDEX('Calificación Pública'!Q:Q,ROW()), INDEX('Calificación Pública'!$H:$K,ROW(),0), 0)) ->  | I18: =IF(OR(INDEX('Calificación Pública'!R:R,ROW())="Sin información", INDEX('Calificación Pública'!R:R,ROW())="Seleccione…"), "", MATCH(INDEX('Calificación Pública'!R:R,ROW()), INDEX('Calificación Pública'!$H:$K,ROW(),0), 0)) ->  | J18: =IF(OR(INDEX('Calificación Pública'!S:S,ROW())="Sin información", INDEX('Calificación Pública'!S:S,ROW())="Seleccione…"), "", MATCH(INDEX('Calificación Pública'!S:S,ROW()), INDEX('Calificación Pública'!$H:$K,ROW(),0), 0)) ->  | K18: =IF(OR(INDEX('Calificación Pública'!T:T,ROW())="Sin información", INDEX('Calificación Pública'!T:T,ROW())="Seleccione…"), "", MATCH(INDEX('Calificación Pública'!T:T,ROW()), INDEX('Calificación Pública'!$H:$K,ROW(),0), 0)) ->  | L18: =IF(OR(INDEX('Calificación Pública'!U:U,ROW())="Sin información", INDEX('Calificación Pública'!U:U,ROW())="Seleccione…"), "", MATCH(INDEX('Calificación Pública'!U:U,ROW()), INDEX('Calificación Pública'!$H:$K,ROW(),0), 0)) -> 
A19: =INDEX('Calificación Pública'!B:B,ROW()) -> Legislativo/ normativo | B19: =INDEX('Calificación Pública'!C:C,ROW()) -> Disposición de instituciones externas para representar a la comunidad energética | C19: =IF(OR(INDEX('Calificación Pública'!L:L,ROW())="Sin información", INDEX('Calificación Pública'!L:L,ROW())="Seleccione…"), "", MATCH(INDEX('Calificación Pública'!L:L,ROW()), INDEX('Calificación Pública'!$H:$K,ROW(),0), 0)) ->  | D19: =IF(OR(INDEX('Calificación Pública'!M:M,ROW())="Sin información", INDEX('Calificación Pública'!M:M,ROW())="Seleccione…"), "", MATCH(INDEX('Calificación Pública'!M:M,ROW()), INDEX('Calificación Pública'!$H:$K,ROW(),0), 0)) ->  | E19: =IF(OR(INDEX('Calificación Pública'!N:N,ROW())="Sin información", INDEX('Calificación Pública'!N:N,ROW())="Seleccione…"), "", MATCH(INDEX('Calificación Pública'!N:N,ROW()), INDEX('Calificación Pública'!$H:$K,ROW(),0), 0)) ->  | F19: =IF(OR(INDEX('Calificación Pública'!O:O,ROW())="Sin información", INDEX('Calificación Pública'!O:O,ROW())="Seleccione…"), "", MATCH(INDEX('Calificación Pública'!O:O,ROW()), INDEX('Calificación Pública'!$H:$K,ROW(),0), 0)) ->  | G19: =IF(OR(INDEX('Calificación Pública'!P:P,ROW())="Sin información", INDEX('Calificación Pública'!P:P,ROW())="Seleccione…"), "", MATCH(INDEX('Calificación Pública'!P:P,ROW()), INDEX('Calificación Pública'!$H:$K,ROW(),0), 0)) ->  | H19: =IF(OR(INDEX('Calificación Pública'!Q:Q,ROW())="Sin información", INDEX('Calificación Pública'!Q:Q,ROW())="Seleccione…"), "", MATCH(INDEX('Calificación Pública'!Q:Q,ROW()), INDEX('Calificación Pública'!$H:$K,ROW(),0), 0)) ->  | I19: =IF(OR(INDEX('Calificación Pública'!R:R,ROW())="Sin información", INDEX('Calificación Pública'!R:R,ROW())="Seleccione…"), "", MATCH(INDEX('Calificación Pública'!R:R,ROW()), INDEX('Calificación Pública'!$H:$K,ROW(),0), 0)) ->  | J19: =IF(OR(INDEX('Calificación Pública'!S:S,ROW())="Sin información", INDEX('Calificación Pública'!S:S,ROW())="Seleccione…"), "", MATCH(INDEX('Calificación Pública'!S:S,ROW()), INDEX('Calificación Pública'!$H:$K,ROW(),0), 0)) ->  | K19: =IF(OR(INDEX('Calificación Pública'!T:T,ROW())="Sin información", INDEX('Calificación Pública'!T:T,ROW())="Seleccione…"), "", MATCH(INDEX('Calificación Pública'!T:T,ROW()), INDEX('Calificación Pública'!$H:$K,ROW(),0), 0)) ->  | L19: =IF(OR(INDEX('Calificación Pública'!U:U,ROW())="Sin información", INDEX('Calificación Pública'!U:U,ROW())="Seleccione…"), "", MATCH(INDEX('Calificación Pública'!U:U,ROW()), INDEX('Calificación Pública'!$H:$K,ROW(),0), 0)) -> 
A20: =INDEX('Calificación Pública'!B:B,ROW()) -> Legislativo/ normativo | B20: =INDEX('Calificación Pública'!C:C,ROW()) -> ¿Se cuenta con avances en lineamientos para la distribución y almacenamiento de energía? Autoconsumo | C20: =IF(OR(INDEX('Calificación Pública'!L:L,ROW())="Sin información", INDEX('Calificación Pública'!L:L,ROW())="Seleccione…"), "", MATCH(INDEX('Calificación Pública'!L:L,ROW()), INDEX('Calificación Pública'!$H:$K,ROW(),0), 0)) ->  | D20: =IF(OR(INDEX('Calificación Pública'!M:M,ROW())="Sin información", INDEX('Calificación Pública'!M:M,ROW())="Seleccione…"), "", MATCH(INDEX('Calificación Pública'!M:M,ROW()), INDEX('Calificación Pública'!$H:$K,ROW(),0), 0)) ->  | E20: =IF(OR(INDEX('Calificación Pública'!N:N,ROW())="Sin información", INDEX('Calificación Pública'!N:N,ROW())="Seleccione…"), "", MATCH(INDEX('Calificación Pública'!N:N,ROW()), INDEX('Calificación Pública'!$H:$K,ROW(),0), 0)) ->  | F20: =IF(OR(INDEX('Calificación Pública'!O:O,ROW())="Sin información", INDEX('Calificación Pública'!O:O,ROW())="Seleccione…"), "", MATCH(INDEX('Calificación Pública'!O:O,ROW()), INDEX('Calificación Pública'!$H:$K,ROW(),0), 0)) ->  | G20: =IF(OR(INDEX('Calificación Pública'!P:P,ROW())="Sin información", INDEX('Calificación Pública'!P:P,ROW())="Seleccione…"), "", MATCH(INDEX('Calificación Pública'!P:P,ROW()), INDEX('Calificación Pública'!$H:$K,ROW(),0), 0)) ->  | H20: =IF(OR(INDEX('Calificación Pública'!Q:Q,ROW())="Sin información", INDEX('Calificación Pública'!Q:Q,ROW())="Seleccione…"), "", MATCH(INDEX('Calificación Pública'!Q:Q,ROW()), INDEX('Calificación Pública'!$H:$K,ROW(),0), 0)) ->  | I20: =IF(OR(INDEX('Calificación Pública'!R:R,ROW())="Sin información", INDEX('Calificación Pública'!R:R,ROW())="Seleccione…"), "", MATCH(INDEX('Calificación Pública'!R:R,ROW()), INDEX('Calificación Pública'!$H:$K,ROW(),0), 0)) ->  | J20: =IF(OR(INDEX('Calificación Pública'!S:S,ROW())="Sin información", INDEX('Calificación Pública'!S:S,ROW())="Seleccione…"), "", MATCH(INDEX('Calificación Pública'!S:S,ROW()), INDEX('Calificación Pública'!$H:$K,ROW(),0), 0)) ->  | K20: =IF(OR(INDEX('Calificación Pública'!T:T,ROW())="Sin información", INDEX('Calificación Pública'!T:T,ROW())="Seleccione…"), "", MATCH(INDEX('Calificación Pública'!T:T,ROW()), INDEX('Calificación Pública'!$H:$K,ROW(),0), 0)) ->  | L20: =IF(OR(INDEX('Calificación Pública'!U:U,ROW())="Sin información", INDEX('Calificación Pública'!U:U,ROW())="Seleccione…"), "", MATCH(INDEX('Calificación Pública'!U:U,ROW()), INDEX('Calificación Pública'!$H:$K,ROW(),0), 0)) -> 
A21: =INDEX('Calificación Pública'!B:B,ROW()) -> Legislativo/ normativo | B21: =INDEX('Calificación Pública'!C:C,ROW()) -> Políticas de Inclusión de Género en la Gobernanza de las Comunidades Energéticas | C21: =IF(OR(INDEX('Calificación Pública'!L:L,ROW())="Sin información", INDEX('Calificación Pública'!L:L,ROW())="Seleccione…"), "", MATCH(INDEX('Calificación Pública'!L:L,ROW()), INDEX('Calificación Pública'!$H:$K,ROW(),0), 0)) ->  | D21: =IF(OR(INDEX('Calificación Pública'!M:M,ROW())="Sin información", INDEX('Calificación Pública'!M:M,ROW())="Seleccione…"), "", MATCH(INDEX('Calificación Pública'!M:M,ROW()), INDEX('Calificación Pública'!$H:$K,ROW(),0), 0)) ->  | E21: =IF(OR(INDEX('Calificación Pública'!N:N,ROW())="Sin información", INDEX('Calificación Pública'!N:N,ROW())="Seleccione…"), "", MATCH(INDEX('Calificación Pública'!N:N,ROW()), INDEX('Calificación Pública'!$H:$K,ROW(),0), 0)) ->  | F21: =IF(OR(INDEX('Calificación Pública'!O:O,ROW())="Sin información", INDEX('Calificación Pública'!O:O,ROW())="Seleccione…"), "", MATCH(INDEX('Calificación Pública'!O:O,ROW()), INDEX('Calificación Pública'!$H:$K,ROW(),0), 0)) ->  | G21: =IF(OR(INDEX('Calificación Pública'!P:P,ROW())="Sin información", INDEX('Calificación Pública'!P:P,ROW())="Seleccione…"), "", MATCH(INDEX('Calificación Pública'!P:P,ROW()), INDEX('Calificación Pública'!$H:$K,ROW(),0), 0)) ->  | H21: =IF(OR(INDEX('Calificación Pública'!Q:Q,ROW())="Sin información", INDEX('Calificación Pública'!Q:Q,ROW())="Seleccione…"), "", MATCH(INDEX('Calificación Pública'!Q:Q,ROW()), INDEX('Calificación Pública'!$H:$K,ROW(),0), 0)) ->  | I21: =IF(OR(INDEX('Calificación Pública'!R:R,ROW())="Sin información", INDEX('Calificación Pública'!R:R,ROW())="Seleccione…"), "", MATCH(INDEX('Calificación Pública'!R:R,ROW()), INDEX('Calificación Pública'!$H:$K,ROW(),0), 0)) ->  | J21: =IF(OR(INDEX('Calificación Pública'!S:S,ROW())="Sin información", INDEX('Calificación Pública'!S:S,ROW())="Seleccione…"), "", MATCH(INDEX('Calificación Pública'!S:S,ROW()), INDEX('Calificación Pública'!$H:$K,ROW(),0), 0)) ->  | K21: =IF(OR(INDEX('Calificación Pública'!T:T,ROW())="Sin información", INDEX('Calificación Pública'!T:T,ROW())="Seleccione…"), "", MATCH(INDEX('Calificación Pública'!T:T,ROW()), INDEX('Calificación Pública'!$H:$K,ROW(),0), 0)) ->  | L21: =IF(OR(INDEX('Calificación Pública'!U:U,ROW())="Sin información", INDEX('Calificación Pública'!U:U,ROW())="Seleccione…"), "", MATCH(INDEX('Calificación Pública'!U:U,ROW()), INDEX('Calificación Pública'!$H:$K,ROW(),0), 0)) -> 
A22: =INDEX('Calificación Pública'!B:B,ROW()) -> Social | B22: =INDEX('Calificación Pública'!C:C,ROW()) -> Participación Femenina en la Comunidad Energética | C22: =IF(OR(INDEX('Calificación Pública'!L:L,ROW())="Sin información", INDEX('Calificación Pública'!L:L,ROW())="Seleccione…"), "", MATCH(INDEX('Calificación Pública'!L:L,ROW()), INDEX('Calificación Pública'!$H:$K,ROW(),0), 0)) ->  | D22: =IF(OR(INDEX('Calificación Pública'!M:M,ROW())="Sin información", INDEX('Calificación Pública'!M:M,ROW())="Seleccione…"), "", MATCH(INDEX('Calificación Pública'!M:M,ROW()), INDEX('Calificación Pública'!$H:$K,ROW(),0), 0)) ->  | E22: =IF(OR(INDEX('Calificación Pública'!N:N,ROW())="Sin información", INDEX('Calificación Pública'!N:N,ROW())="Seleccione…"), "", MATCH(INDEX('Calificación Pública'!N:N,ROW()), INDEX('Calificación Pública'!$H:$K,ROW(),0), 0)) ->  | F22: =IF(OR(INDEX('Calificación Pública'!O:O,ROW())="Sin información", INDEX('Calificación Pública'!O:O,ROW())="Seleccione…"), "", MATCH(INDEX('Calificación Pública'!O:O,ROW()), INDEX('Calificación Pública'!$H:$K,ROW(),0), 0)) ->  | G22: =IF(OR(INDEX('Calificación Pública'!P:P,ROW())="Sin información", INDEX('Calificación Pública'!P:P,ROW())="Seleccione…"), "", MATCH(INDEX('Calificación Pública'!P:P,ROW()), INDEX('Calificación Pública'!$H:$K,ROW(),0), 0)) ->  | H22: =IF(OR(INDEX('Calificación Pública'!Q:Q,ROW())="Sin información", INDEX('Calificación Pública'!Q:Q,ROW())="Seleccione…"), "", MATCH(INDEX('Calificación Pública'!Q:Q,ROW()), INDEX('Calificación Pública'!$H:$K,ROW(),0), 0)) ->  | I22: =IF(OR(INDEX('Calificación Pública'!R:R,ROW())="Sin información", INDEX('Calificación Pública'!R:R,ROW())="Seleccione…"), "", MATCH(INDEX('Calificación Pública'!R:R,ROW()), INDEX('Calificación Pública'!$H:$K,ROW(),0), 0)) ->  | J22: =IF(OR(INDEX('Calificación Pública'!S:S,ROW())="Sin información", INDEX('Calificación Pública'!S:S,ROW())="Seleccione…"), "", MATCH(INDEX('Calificación Pública'!S:S,ROW()), INDEX('Calificación Pública'!$H:$K,ROW(),0), 0)) ->  | K22: =IF(OR(INDEX('Calificación Pública'!T:T,ROW())="Sin información", INDEX('Calificación Pública'!T:T,ROW())="Seleccione…"), "", MATCH(INDEX('Calificación Pública'!T:T,ROW()), INDEX('Calificación Pública'!$H:$K,ROW(),0), 0)) ->  | L22: =IF(OR(INDEX('Calificación Pública'!U:U,ROW())="Sin información", INDEX('Calificación Pública'!U:U,ROW())="Seleccione…"), "", MATCH(INDEX('Calificación Pública'!U:U,ROW()), INDEX('Calificación Pública'!$H:$K,ROW(),0), 0)) -> 
A23: =INDEX('Calificación Pública'!B:B,ROW()) -> Social | B23: =INDEX('Calificación Pública'!C:C,ROW()) -> Población de especial protección constitucional del sector Paz (víctimas, personas en proceso de reincorporación) | C23: =IF(OR(INDEX('Calificación Pública'!L:L,ROW())="Sin información", INDEX('Calificación Pública'!L:L,ROW())="Seleccione…"), "", MATCH(INDEX('Calificación Pública'!L:L,ROW()), INDEX('Calificación Pública'!$H:$K,ROW(),0), 0)) ->  | D23: =IF(OR(INDEX('Calificación Pública'!M:M,ROW())="Sin información", INDEX('Calificación Pública'!M:M,ROW())="Seleccione…"), "", MATCH(INDEX('Calificación Pública'!M:M,ROW()), INDEX('Calificación Pública'!$H:$K,ROW(),0), 0)) ->  | E23: =IF(OR(INDEX('Calificación Pública'!N:N,ROW())="Sin información", INDEX('Calificación Pública'!N:N,ROW())="Seleccione…"), "", MATCH(INDEX('Calificación Pública'!N:N,ROW()), INDEX('Calificación Pública'!$H:$K,ROW(),0), 0)) ->  | F23: =IF(OR(INDEX('Calificación Pública'!O:O,ROW())="Sin información", INDEX('Calificación Pública'!O:O,ROW())="Seleccione…"), "", MATCH(INDEX('Calificación Pública'!O:O,ROW()), INDEX('Calificación Pública'!$H:$K,ROW(),0), 0)) ->  | G23: =IF(OR(INDEX('Calificación Pública'!P:P,ROW())="Sin información", INDEX('Calificación Pública'!P:P,ROW())="Seleccione…"), "", MATCH(INDEX('Calificación Pública'!P:P,ROW()), INDEX('Calificación Pública'!$H:$K,ROW(),0), 0)) ->  | H23: =IF(OR(INDEX('Calificación Pública'!Q:Q,ROW())="Sin información", INDEX('Calificación Pública'!Q:Q,ROW())="Seleccione…"), "", MATCH(INDEX('Calificación Pública'!Q:Q,ROW()), INDEX('Calificación Pública'!$H:$K,ROW(),0), 0)) ->  | I23: =IF(OR(INDEX('Calificación Pública'!R:R,ROW())="Sin información", INDEX('Calificación Pública'!R:R,ROW())="Seleccione…"), "", MATCH(INDEX('Calificación Pública'!R:R,ROW()), INDEX('Calificación Pública'!$H:$K,ROW(),0), 0)) ->  | J23: =IF(OR(INDEX('Calificación Pública'!S:S,ROW())="Sin información", INDEX('Calificación Pública'!S:S,ROW())="Seleccione…"), "", MATCH(INDEX('Calificación Pública'!S:S,ROW()), INDEX('Calificación Pública'!$H:$K,ROW(),0), 0)) ->  | K23: =IF(OR(INDEX('Calificación Pública'!T:T,ROW())="Sin información", INDEX('Calificación Pública'!T:T,ROW())="Seleccione…"), "", MATCH(INDEX('Calificación Pública'!T:T,ROW()), INDEX('Calificación Pública'!$H:$K,ROW(),0), 0)) ->  | L23: =IF(OR(INDEX('Calificación Pública'!U:U,ROW())="Sin información", INDEX('Calificación Pública'!U:U,ROW())="Seleccione…"), "", MATCH(INDEX('Calificación Pública'!U:U,ROW()), INDEX('Calificación Pública'!$H:$K,ROW(),0), 0)) -> 
A24: =INDEX('Calificación Pública'!B:B,ROW()) -> Social | B24: =INDEX('Calificación Pública'!C:C,ROW()) -> Presencia de comunidades étnicas | C24: =IF(OR(INDEX('Calificación Pública'!L:L,ROW())="Sin información", INDEX('Calificación Pública'!L:L,ROW())="Seleccione…"), "", MATCH(INDEX('Calificación Pública'!L:L,ROW()), INDEX('Calificación Pública'!$H:$K,ROW(),0), 0)) ->  | D24: =IF(OR(INDEX('Calificación Pública'!M:M,ROW())="Sin información", INDEX('Calificación Pública'!M:M,ROW())="Seleccione…"), "", MATCH(INDEX('Calificación Pública'!M:M,ROW()), INDEX('Calificación Pública'!$H:$K,ROW(),0), 0)) ->  | E24: =IF(OR(INDEX('Calificación Pública'!N:N,ROW())="Sin información", INDEX('Calificación Pública'!N:N,ROW())="Seleccione…"), "", MATCH(INDEX('Calificación Pública'!N:N,ROW()), INDEX('Calificación Pública'!$H:$K,ROW(),0), 0)) ->  | F24: =IF(OR(INDEX('Calificación Pública'!O:O,ROW())="Sin información", INDEX('Calificación Pública'!O:O,ROW())="Seleccione…"), "", MATCH(INDEX('Calificación Pública'!O:O,ROW()), INDEX('Calificación Pública'!$H:$K,ROW(),0), 0)) ->  | G24: =IF(OR(INDEX('Calificación Pública'!P:P,ROW())="Sin información", INDEX('Calificación Pública'!P:P,ROW())="Seleccione…"), "", MATCH(INDEX('Calificación Pública'!P:P,ROW()), INDEX('Calificación Pública'!$H:$K,ROW(),0), 0)) ->  | H24: =IF(OR(INDEX('Calificación Pública'!Q:Q,ROW())="Sin información", INDEX('Calificación Pública'!Q:Q,ROW())="Seleccione…"), "", MATCH(INDEX('Calificación Pública'!Q:Q,ROW()), INDEX('Calificación Pública'!$H:$K,ROW(),0), 0)) ->  | I24: =IF(OR(INDEX('Calificación Pública'!R:R,ROW())="Sin información", INDEX('Calificación Pública'!R:R,ROW())="Seleccione…"), "", MATCH(INDEX('Calificación Pública'!R:R,ROW()), INDEX('Calificación Pública'!$H:$K,ROW(),0), 0)) ->  | J24: =IF(OR(INDEX('Calificación Pública'!S:S,ROW())="Sin información", INDEX('Calificación Pública'!S:S,ROW())="Seleccione…"), "", MATCH(INDEX('Calificación Pública'!S:S,ROW()), INDEX('Calificación Pública'!$H:$K,ROW(),0), 0)) ->  | K24: =IF(OR(INDEX('Calificación Pública'!T:T,ROW())="Sin información", INDEX('Calificación Pública'!T:T,ROW())="Seleccione…"), "", MATCH(INDEX('Calificación Pública'!T:T,ROW()), INDEX('Calificación Pública'!$H:$K,ROW(),0), 0)) ->  | L24: =IF(OR(INDEX('Calificación Pública'!U:U,ROW())="Sin información", INDEX('Calificación Pública'!U:U,ROW())="Seleccione…"), "", MATCH(INDEX('Calificación Pública'!U:U,ROW()), INDEX('Calificación Pública'!$H:$K,ROW(),0), 0)) -> 
A25: =INDEX('Calificación Pública'!B:B,ROW()) -> Social | B25: =INDEX('Calificación Pública'!C:C,ROW()) -> Territorios colectivos de pueblos originarios o comunidades indígenas | C25: =IF(OR(INDEX('Calificación Pública'!L:L,ROW())="Sin información", INDEX('Calificación Pública'!L:L,ROW())="Seleccione…"), "", MATCH(INDEX('Calificación Pública'!L:L,ROW()), INDEX('Calificación Pública'!$H:$K,ROW(),0), 0)) ->  | D25: =IF(OR(INDEX('Calificación Pública'!M:M,ROW())="Sin información", INDEX('Calificación Pública'!M:M,ROW())="Seleccione…"), "", MATCH(INDEX('Calificación Pública'!M:M,ROW()), INDEX('Calificación Pública'!$H:$K,ROW(),0), 0)) ->  | E25: =IF(OR(INDEX('Calificación Pública'!N:N,ROW())="Sin información", INDEX('Calificación Pública'!N:N,ROW())="Seleccione…"), "", MATCH(INDEX('Calificación Pública'!N:N,ROW()), INDEX('Calificación Pública'!$H:$K,ROW(),0), 0)) ->  | F25: =IF(OR(INDEX('Calificación Pública'!O:O,ROW())="Sin información", INDEX('Calificación Pública'!O:O,ROW())="Seleccione…"), "", MATCH(INDEX('Calificación Pública'!O:O,ROW()), INDEX('Calificación Pública'!$H:$K,ROW(),0), 0)) ->  | G25: =IF(OR(INDEX('Calificación Pública'!P:P,ROW())="Sin información", INDEX('Calificación Pública'!P:P,ROW())="Seleccione…"), "", MATCH(INDEX('Calificación Pública'!P:P,ROW()), INDEX('Calificación Pública'!$H:$K,ROW(),0), 0)) ->  | H25: =IF(OR(INDEX('Calificación Pública'!Q:Q,ROW())="Sin información", INDEX('Calificación Pública'!Q:Q,ROW())="Seleccione…"), "", MATCH(INDEX('Calificación Pública'!Q:Q,ROW()), INDEX('Calificación Pública'!$H:$K,ROW(),0), 0)) ->  | I25: =IF(OR(INDEX('Calificación Pública'!R:R,ROW())="Sin información", INDEX('Calificación Pública'!R:R,ROW())="Seleccione…"), "", MATCH(INDEX('Calificación Pública'!R:R,ROW()), INDEX('Calificación Pública'!$H:$K,ROW(),0), 0)) ->  | J25: =IF(OR(INDEX('Calificación Pública'!S:S,ROW())="Sin información", INDEX('Calificación Pública'!S:S,ROW())="Seleccione…"), "", MATCH(INDEX('Calificación Pública'!S:S,ROW()), INDEX('Calificación Pública'!$H:$K,ROW(),0), 0)) ->  | K25: =IF(OR(INDEX('Calificación Pública'!T:T,ROW())="Sin información", INDEX('Calificación Pública'!T:T,ROW())="Seleccione…"), "", MATCH(INDEX('Calificación Pública'!T:T,ROW()), INDEX('Calificación Pública'!$H:$K,ROW(),0), 0)) ->  | L25: =IF(OR(INDEX('Calificación Pública'!U:U,ROW())="Sin información", INDEX('Calificación Pública'!U:U,ROW())="Seleccione…"), "", MATCH(INDEX('Calificación Pública'!U:U,ROW()), INDEX('Calificación Pública'!$H:$K,ROW(),0), 0)) -> 
A26: =INDEX('Calificación Pública'!B:B,ROW()) -> Social | B26: =INDEX('Calificación Pública'!C:C,ROW()) -> Territorios de Antiguos espacios territoriales de capacitación y reincorporación y áreas especiales de reincorporación colectiva | C26: =IF(OR(INDEX('Calificación Pública'!L:L,ROW())="Sin información", INDEX('Calificación Pública'!L:L,ROW())="Seleccione…"), "", MATCH(INDEX('Calificación Pública'!L:L,ROW()), INDEX('Calificación Pública'!$H:$K,ROW(),0), 0)) ->  | D26: =IF(OR(INDEX('Calificación Pública'!M:M,ROW())="Sin información", INDEX('Calificación Pública'!M:M,ROW())="Seleccione…"), "", MATCH(INDEX('Calificación Pública'!M:M,ROW()), INDEX('Calificación Pública'!$H:$K,ROW(),0), 0)) ->  | E26: =IF(OR(INDEX('Calificación Pública'!N:N,ROW())="Sin información", INDEX('Calificación Pública'!N:N,ROW())="Seleccione…"), "", MATCH(INDEX('Calificación Pública'!N:N,ROW()), INDEX('Calificación Pública'!$H:$K,ROW(),0), 0)) ->  | F26: =IF(OR(INDEX('Calificación Pública'!O:O,ROW())="Sin información", INDEX('Calificación Pública'!O:O,ROW())="Seleccione…"), "", MATCH(INDEX('Calificación Pública'!O:O,ROW()), INDEX('Calificación Pública'!$H:$K,ROW(),0), 0)) ->  | G26: =IF(OR(INDEX('Calificación Pública'!P:P,ROW())="Sin información", INDEX('Calificación Pública'!P:P,ROW())="Seleccione…"), "", MATCH(INDEX('Calificación Pública'!P:P,ROW()), INDEX('Calificación Pública'!$H:$K,ROW(),0), 0)) ->  | H26: =IF(OR(INDEX('Calificación Pública'!Q:Q,ROW())="Sin información", INDEX('Calificación Pública'!Q:Q,ROW())="Seleccione…"), "", MATCH(INDEX('Calificación Pública'!Q:Q,ROW()), INDEX('Calificación Pública'!$H:$K,ROW(),0), 0)) ->  | I26: =IF(OR(INDEX('Calificación Pública'!R:R,ROW())="Sin información", INDEX('Calificación Pública'!R:R,ROW())="Seleccione…"), "", MATCH(INDEX('Calificación Pública'!R:R,ROW()), INDEX('Calificación Pública'!$H:$K,ROW(),0), 0)) ->  | J26: =IF(OR(INDEX('Calificación Pública'!S:S,ROW())="Sin información", INDEX('Calificación Pública'!S:S,ROW())="Seleccione…"), "", MATCH(INDEX('Calificación Pública'!S:S,ROW()), INDEX('Calificación Pública'!$H:$K,ROW(),0), 0)) ->  | K26: =IF(OR(INDEX('Calificación Pública'!T:T,ROW())="Sin información", INDEX('Calificación Pública'!T:T,ROW())="Seleccione…"), "", MATCH(INDEX('Calificación Pública'!T:T,ROW()), INDEX('Calificación Pública'!$H:$K,ROW(),0), 0)) ->  | L26: =IF(OR(INDEX('Calificación Pública'!U:U,ROW())="Sin información", INDEX('Calificación Pública'!U:U,ROW())="Seleccione…"), "", MATCH(INDEX('Calificación Pública'!U:U,ROW()), INDEX('Calificación Pública'!$H:$K,ROW(),0), 0)) -> 
A27: =INDEX('Calificación Pública'!B:B,ROW()) -> Social | B27: =INDEX('Calificación Pública'!C:C,ROW()) -> Territorios de Paz | C27: =IF(OR(INDEX('Calificación Pública'!L:L,ROW())="Sin información", INDEX('Calificación Pública'!L:L,ROW())="Seleccione…"), "", MATCH(INDEX('Calificación Pública'!L:L,ROW()), INDEX('Calificación Pública'!$H:$K,ROW(),0), 0)) ->  | D27: =IF(OR(INDEX('Calificación Pública'!M:M,ROW())="Sin información", INDEX('Calificación Pública'!M:M,ROW())="Seleccione…"), "", MATCH(INDEX('Calificación Pública'!M:M,ROW()), INDEX('Calificación Pública'!$H:$K,ROW(),0), 0)) ->  | E27: =IF(OR(INDEX('Calificación Pública'!N:N,ROW())="Sin información", INDEX('Calificación Pública'!N:N,ROW())="Seleccione…"), "", MATCH(INDEX('Calificación Pública'!N:N,ROW()), INDEX('Calificación Pública'!$H:$K,ROW(),0), 0)) ->  | F27: =IF(OR(INDEX('Calificación Pública'!O:O,ROW())="Sin información", INDEX('Calificación Pública'!O:O,ROW())="Seleccione…"), "", MATCH(INDEX('Calificación Pública'!O:O,ROW()), INDEX('Calificación Pública'!$H:$K,ROW(),0), 0)) ->  | G27: =IF(OR(INDEX('Calificación Pública'!P:P,ROW())="Sin información", INDEX('Calificación Pública'!P:P,ROW())="Seleccione…"), "", MATCH(INDEX('Calificación Pública'!P:P,ROW()), INDEX('Calificación Pública'!$H:$K,ROW(),0), 0)) ->  | H27: =IF(OR(INDEX('Calificación Pública'!Q:Q,ROW())="Sin información", INDEX('Calificación Pública'!Q:Q,ROW())="Seleccione…"), "", MATCH(INDEX('Calificación Pública'!Q:Q,ROW()), INDEX('Calificación Pública'!$H:$K,ROW(),0), 0)) ->  | I27: =IF(OR(INDEX('Calificación Pública'!R:R,ROW())="Sin información", INDEX('Calificación Pública'!R:R,ROW())="Seleccione…"), "", MATCH(INDEX('Calificación Pública'!R:R,ROW()), INDEX('Calificación Pública'!$H:$K,ROW(),0), 0)) ->  | J27: =IF(OR(INDEX('Calificación Pública'!S:S,ROW())="Sin información", INDEX('Calificación Pública'!S:S,ROW())="Seleccione…"), "", MATCH(INDEX('Calificación Pública'!S:S,ROW()), INDEX('Calificación Pública'!$H:$K,ROW(),0), 0)) ->  | K27: =IF(OR(INDEX('Calificación Pública'!T:T,ROW())="Sin información", INDEX('Calificación Pública'!T:T,ROW())="Seleccione…"), "", MATCH(INDEX('Calificación Pública'!T:T,ROW()), INDEX('Calificación Pública'!$H:$K,ROW(),0), 0)) ->  | L27: =IF(OR(INDEX('Calificación Pública'!U:U,ROW())="Sin información", INDEX('Calificación Pública'!U:U,ROW())="Seleccione…"), "", MATCH(INDEX('Calificación Pública'!U:U,ROW()), INDEX('Calificación Pública'!$H:$K,ROW(),0), 0)) -> 
A28: =INDEX('Calificación Pública'!B:B,ROW()) -> Social | B28: =INDEX('Calificación Pública'!C:C,ROW()) -> Territorios de Sistema Nacional de la Reforma Agraria y Desarrollo Rural, entre otras | C28: =IF(OR(INDEX('Calificación Pública'!L:L,ROW())="Sin información", INDEX('Calificación Pública'!L:L,ROW())="Seleccione…"), "", MATCH(INDEX('Calificación Pública'!L:L,ROW()), INDEX('Calificación Pública'!$H:$K,ROW(),0), 0)) ->  | D28: =IF(OR(INDEX('Calificación Pública'!M:M,ROW())="Sin información", INDEX('Calificación Pública'!M:M,ROW())="Seleccione…"), "", MATCH(INDEX('Calificación Pública'!M:M,ROW()), INDEX('Calificación Pública'!$H:$K,ROW(),0), 0)) ->  | E28: =IF(OR(INDEX('Calificación Pública'!N:N,ROW())="Sin información", INDEX('Calificación Pública'!N:N,ROW())="Seleccione…"), "", MATCH(INDEX('Calificación Pública'!N:N,ROW()), INDEX('Calificación Pública'!$H:$K,ROW(),0), 0)) ->  | F28: =IF(OR(INDEX('Calificación Pública'!O:O,ROW())="Sin información", INDEX('Calificación Pública'!O:O,ROW())="Seleccione…"), "", MATCH(INDEX('Calificación Pública'!O:O,ROW()), INDEX('Calificación Pública'!$H:$K,ROW(),0), 0)) ->  | G28: =IF(OR(INDEX('Calificación Pública'!P:P,ROW())="Sin información", INDEX('Calificación Pública'!P:P,ROW())="Seleccione…"), "", MATCH(INDEX('Calificación Pública'!P:P,ROW()), INDEX('Calificación Pública'!$H:$K,ROW(),0), 0)) ->  | H28: =IF(OR(INDEX('Calificación Pública'!Q:Q,ROW())="Sin información", INDEX('Calificación Pública'!Q:Q,ROW())="Seleccione…"), "", MATCH(INDEX('Calificación Pública'!Q:Q,ROW()), INDEX('Calificación Pública'!$H:$K,ROW(),0), 0)) ->  | I28: =IF(OR(INDEX('Calificación Pública'!R:R,ROW())="Sin información", INDEX('Calificación Pública'!R:R,ROW())="Seleccione…"), "", MATCH(INDEX('Calificación Pública'!R:R,ROW()), INDEX('Calificación Pública'!$H:$K,ROW(),0), 0)) ->  | J28: =IF(OR(INDEX('Calificación Pública'!S:S,ROW())="Sin información", INDEX('Calificación Pública'!S:S,ROW())="Seleccione…"), "", MATCH(INDEX('Calificación Pública'!S:S,ROW()), INDEX('Calificación Pública'!$H:$K,ROW(),0), 0)) ->  | K28: =IF(OR(INDEX('Calificación Pública'!T:T,ROW())="Sin información", INDEX('Calificación Pública'!T:T,ROW())="Seleccione…"), "", MATCH(INDEX('Calificación Pública'!T:T,ROW()), INDEX('Calificación Pública'!$H:$K,ROW(),0), 0)) ->  | L28: =IF(OR(INDEX('Calificación Pública'!U:U,ROW())="Sin información", INDEX('Calificación Pública'!U:U,ROW())="Seleccione…"), "", MATCH(INDEX('Calificación Pública'!U:U,ROW()), INDEX('Calificación Pública'!$H:$K,ROW(),0), 0)) -> 
A29: =INDEX('Calificación Pública'!B:B,ROW()) -> Social | B29: =INDEX('Calificación Pública'!C:C,ROW()) -> Redes de cooperación intercomunitaria | C29: =IF(OR(INDEX('Calificación Pública'!L:L,ROW())="Sin información", INDEX('Calificación Pública'!L:L,ROW())="Seleccione…"), "", MATCH(INDEX('Calificación Pública'!L:L,ROW()), INDEX('Calificación Pública'!$H:$K,ROW(),0), 0)) ->  | D29: =IF(OR(INDEX('Calificación Pública'!M:M,ROW())="Sin información", INDEX('Calificación Pública'!M:M,ROW())="Seleccione…"), "", MATCH(INDEX('Calificación Pública'!M:M,ROW()), INDEX('Calificación Pública'!$H:$K,ROW(),0), 0)) ->  | E29: =IF(OR(INDEX('Calificación Pública'!N:N,ROW())="Sin información", INDEX('Calificación Pública'!N:N,ROW())="Seleccione…"), "", MATCH(INDEX('Calificación Pública'!N:N,ROW()), INDEX('Calificación Pública'!$H:$K,ROW(),0), 0)) ->  | F29: =IF(OR(INDEX('Calificación Pública'!O:O,ROW())="Sin información", INDEX('Calificación Pública'!O:O,ROW())="Seleccione…"), "", MATCH(INDEX('Calificación Pública'!O:O,ROW()), INDEX('Calificación Pública'!$H:$K,ROW(),0), 0)) ->  | G29: =IF(OR(INDEX('Calificación Pública'!P:P,ROW())="Sin información", INDEX('Calificación Pública'!P:P,ROW())="Seleccione…"), "", MATCH(INDEX('Calificación Pública'!P:P,ROW()), INDEX('Calificación Pública'!$H:$K,ROW(),0), 0)) ->  | H29: =IF(OR(INDEX('Calificación Pública'!Q:Q,ROW())="Sin información", INDEX('Calificación Pública'!Q:Q,ROW())="Seleccione…"), "", MATCH(INDEX('Calificación Pública'!Q:Q,ROW()), INDEX('Calificación Pública'!$H:$K,ROW(),0), 0)) ->  | I29: =IF(OR(INDEX('Calificación Pública'!R:R,ROW())="Sin información", INDEX('Calificación Pública'!R:R,ROW())="Seleccione…"), "", MATCH(INDEX('Calificación Pública'!R:R,ROW()), INDEX('Calificación Pública'!$H:$K,ROW(),0), 0)) ->  | J29: =IF(OR(INDEX('Calificación Pública'!S:S,ROW())="Sin información", INDEX('Calificación Pública'!S:S,ROW())="Seleccione…"), "", MATCH(INDEX('Calificación Pública'!S:S,ROW()), INDEX('Calificación Pública'!$H:$K,ROW(),0), 0)) ->  | K29: =IF(OR(INDEX('Calificación Pública'!T:T,ROW())="Sin información", INDEX('Calificación Pública'!T:T,ROW())="Seleccione…"), "", MATCH(INDEX('Calificación Pública'!T:T,ROW()), INDEX('Calificación Pública'!$H:$K,ROW(),0), 0)) ->  | L29: =IF(OR(INDEX('Calificación Pública'!U:U,ROW())="Sin información", INDEX('Calificación Pública'!U:U,ROW())="Seleccione…"), "", MATCH(INDEX('Calificación Pública'!U:U,ROW()), INDEX('Calificación Pública'!$H:$K,ROW(),0), 0)) -> 
A30: =INDEX('Calificación Pública'!B:B,ROW()) -> Social | B30: =INDEX('Calificación Pública'!C:C,ROW()) -> Transparencia de los datos | C30: =IF(OR(INDEX('Calificación Pública'!L:L,ROW())="Sin información", INDEX('Calificación Pública'!L:L,ROW())="Seleccione…"), "", MATCH(INDEX('Calificación Pública'!L:L,ROW()), INDEX('Calificación Pública'!$H:$K,ROW(),0), 0)) ->  | D30: =IF(OR(INDEX('Calificación Pública'!M:M,ROW())="Sin información", INDEX('Calificación Pública'!M:M,ROW())="Seleccione…"), "", MATCH(INDEX('Calificación Pública'!M:M,ROW()), INDEX('Calificación Pública'!$H:$K,ROW(),0), 0)) ->  | E30: =IF(OR(INDEX('Calificación Pública'!N:N,ROW())="Sin información", INDEX('Calificación Pública'!N:N,ROW())="Seleccione…"), "", MATCH(INDEX('Calificación Pública'!N:N,ROW()), INDEX('Calificación Pública'!$H:$K,ROW(),0), 0)) ->  | F30: =IF(OR(INDEX('Calificación Pública'!O:O,ROW())="Sin información", INDEX('Calificación Pública'!O:O,ROW())="Seleccione…"), "", MATCH(INDEX('Calificación Pública'!O:O,ROW()), INDEX('Calificación Pública'!$H:$K,ROW(),0), 0)) ->  | G30: =IF(OR(INDEX('Calificación Pública'!P:P,ROW())="Sin información", INDEX('Calificación Pública'!P:P,ROW())="Seleccione…"), "", MATCH(INDEX('Calificación Pública'!P:P,ROW()), INDEX('Calificación Pública'!$H:$K,ROW(),0), 0)) ->  | H30: =IF(OR(INDEX('Calificación Pública'!Q:Q,ROW())="Sin información", INDEX('Calificación Pública'!Q:Q,ROW())="Seleccione…"), "", MATCH(INDEX('Calificación Pública'!Q:Q,ROW()), INDEX('Calificación Pública'!$H:$K,ROW(),0), 0)) ->  | I30: =IF(OR(INDEX('Calificación Pública'!R:R,ROW())="Sin información", INDEX('Calificación Pública'!R:R,ROW())="Seleccione…"), "", MATCH(INDEX('Calificación Pública'!R:R,ROW()), INDEX('Calificación Pública'!$H:$K,ROW(),0), 0)) ->  | J30: =IF(OR(INDEX('Calificación Pública'!S:S,ROW())="Sin información", INDEX('Calificación Pública'!S:S,ROW())="Seleccione…"), "", MATCH(INDEX('Calificación Pública'!S:S,ROW()), INDEX('Calificación Pública'!$H:$K,ROW(),0), 0)) ->  | K30: =IF(OR(INDEX('Calificación Pública'!T:T,ROW())="Sin información", INDEX('Calificación Pública'!T:T,ROW())="Seleccione…"), "", MATCH(INDEX('Calificación Pública'!T:T,ROW()), INDEX('Calificación Pública'!$H:$K,ROW(),0), 0)) ->  | L30: =IF(OR(INDEX('Calificación Pública'!U:U,ROW())="Sin información", INDEX('Calificación Pública'!U:U,ROW())="Seleccione…"), "", MATCH(INDEX('Calificación Pública'!U:U,ROW()), INDEX('Calificación Pública'!$H:$K,ROW(),0), 0)) -> 
A31: =INDEX('Calificación Pública'!B:B,ROW()) -> Social | B31: =INDEX('Calificación Pública'!C:C,ROW()) -> ¿Cómo es la relación entre los miembros de la comunidad y las instituciones públicas y privadas pertinentes? | C31: =IF(OR(INDEX('Calificación Pública'!L:L,ROW())="Sin información", INDEX('Calificación Pública'!L:L,ROW())="Seleccione…"), "", MATCH(INDEX('Calificación Pública'!L:L,ROW()), INDEX('Calificación Pública'!$H:$K,ROW(),0), 0)) ->  | D31: =IF(OR(INDEX('Calificación Pública'!M:M,ROW())="Sin información", INDEX('Calificación Pública'!M:M,ROW())="Seleccione…"), "", MATCH(INDEX('Calificación Pública'!M:M,ROW()), INDEX('Calificación Pública'!$H:$K,ROW(),0), 0)) ->  | E31: =IF(OR(INDEX('Calificación Pública'!N:N,ROW())="Sin información", INDEX('Calificación Pública'!N:N,ROW())="Seleccione…"), "", MATCH(INDEX('Calificación Pública'!N:N,ROW()), INDEX('Calificación Pública'!$H:$K,ROW(),0), 0)) ->  | F31: =IF(OR(INDEX('Calificación Pública'!O:O,ROW())="Sin información", INDEX('Calificación Pública'!O:O,ROW())="Seleccione…"), "", MATCH(INDEX('Calificación Pública'!O:O,ROW()), INDEX('Calificación Pública'!$H:$K,ROW(),0), 0)) ->  | G31: =IF(OR(INDEX('Calificación Pública'!P:P,ROW())="Sin información", INDEX('Calificación Pública'!P:P,ROW())="Seleccione…"), "", MATCH(INDEX('Calificación Pública'!P:P,ROW()), INDEX('Calificación Pública'!$H:$K,ROW(),0), 0)) ->  | H31: =IF(OR(INDEX('Calificación Pública'!Q:Q,ROW())="Sin información", INDEX('Calificación Pública'!Q:Q,ROW())="Seleccione…"), "", MATCH(INDEX('Calificación Pública'!Q:Q,ROW()), INDEX('Calificación Pública'!$H:$K,ROW(),0), 0)) ->  | I31: =IF(OR(INDEX('Calificación Pública'!R:R,ROW())="Sin información", INDEX('Calificación Pública'!R:R,ROW())="Seleccione…"), "", MATCH(INDEX('Calificación Pública'!R:R,ROW()), INDEX('Calificación Pública'!$H:$K,ROW(),0), 0)) ->  | J31: =IF(OR(INDEX('Calificación Pública'!S:S,ROW())="Sin información", INDEX('Calificación Pública'!S:S,ROW())="Seleccione…"), "", MATCH(INDEX('Calificación Pública'!S:S,ROW()), INDEX('Calificación Pública'!$H:$K,ROW(),0), 0)) ->  | K31: =IF(OR(INDEX('Calificación Pública'!T:T,ROW())="Sin información", INDEX('Calificación Pública'!T:T,ROW())="Seleccione…"), "", MATCH(INDEX('Calificación Pública'!T:T,ROW()), INDEX('Calificación Pública'!$H:$K,ROW(),0), 0)) ->  | L31: =IF(OR(INDEX('Calificación Pública'!U:U,ROW())="Sin información", INDEX('Calificación Pública'!U:U,ROW())="Seleccione…"), "", MATCH(INDEX('Calificación Pública'!U:U,ROW()), INDEX('Calificación Pública'!$H:$K,ROW(),0), 0)) -> 
A32: =INDEX('Calificación Pública'!B:B,ROW()) -> Social | B32: =INDEX('Calificación Pública'!C:C,ROW()) -> ¿Están dispuestos los miembros de la comunidad a invertir tiempo en actividades comunitarias de voluntariado? | C32: =IF(OR(INDEX('Calificación Pública'!L:L,ROW())="Sin información", INDEX('Calificación Pública'!L:L,ROW())="Seleccione…"), "", MATCH(INDEX('Calificación Pública'!L:L,ROW()), INDEX('Calificación Pública'!$H:$K,ROW(),0), 0)) ->  | D32: =IF(OR(INDEX('Calificación Pública'!M:M,ROW())="Sin información", INDEX('Calificación Pública'!M:M,ROW())="Seleccione…"), "", MATCH(INDEX('Calificación Pública'!M:M,ROW()), INDEX('Calificación Pública'!$H:$K,ROW(),0), 0)) ->  | E32: =IF(OR(INDEX('Calificación Pública'!N:N,ROW())="Sin información", INDEX('Calificación Pública'!N:N,ROW())="Seleccione…"), "", MATCH(INDEX('Calificación Pública'!N:N,ROW()), INDEX('Calificación Pública'!$H:$K,ROW(),0), 0)) ->  | F32: =IF(OR(INDEX('Calificación Pública'!O:O,ROW())="Sin información", INDEX('Calificación Pública'!O:O,ROW())="Seleccione…"), "", MATCH(INDEX('Calificación Pública'!O:O,ROW()), INDEX('Calificación Pública'!$H:$K,ROW(),0), 0)) ->  | G32: =IF(OR(INDEX('Calificación Pública'!P:P,ROW())="Sin información", INDEX('Calificación Pública'!P:P,ROW())="Seleccione…"), "", MATCH(INDEX('Calificación Pública'!P:P,ROW()), INDEX('Calificación Pública'!$H:$K,ROW(),0), 0)) ->  | H32: =IF(OR(INDEX('Calificación Pública'!Q:Q,ROW())="Sin información", INDEX('Calificación Pública'!Q:Q,ROW())="Seleccione…"), "", MATCH(INDEX('Calificación Pública'!Q:Q,ROW()), INDEX('Calificación Pública'!$H:$K,ROW(),0), 0)) ->  | I32: =IF(OR(INDEX('Calificación Pública'!R:R,ROW())="Sin información", INDEX('Calificación Pública'!R:R,ROW())="Seleccione…"), "", MATCH(INDEX('Calificación Pública'!R:R,ROW()), INDEX('Calificación Pública'!$H:$K,ROW(),0), 0)) ->  | J32: =IF(OR(INDEX('Calificación Pública'!S:S,ROW())="Sin información", INDEX('Calificación Pública'!S:S,ROW())="Seleccione…"), "", MATCH(INDEX('Calificación Pública'!S:S,ROW()), INDEX('Calificación Pública'!$H:$K,ROW(),0), 0)) ->  | K32: =IF(OR(INDEX('Calificación Pública'!T:T,ROW())="Sin información", INDEX('Calificación Pública'!T:T,ROW())="Seleccione…"), "", MATCH(INDEX('Calificación Pública'!T:T,ROW()), INDEX('Calificación Pública'!$H:$K,ROW(),0), 0)) ->  | L32: =IF(OR(INDEX('Calificación Pública'!U:U,ROW())="Sin información", INDEX('Calificación Pública'!U:U,ROW())="Seleccione…"), "", MATCH(INDEX('Calificación Pública'!U:U,ROW()), INDEX('Calificación Pública'!$H:$K,ROW(),0), 0)) -> 
A33: =INDEX('Calificación Pública'!B:B,ROW()) -> Social | B33: =INDEX('Calificación Pública'!C:C,ROW()) -> ¿Los techos o superficies de tierra potencialmente viables son propiedad de los miembros de la comunidad? | C33: =IF(OR(INDEX('Calificación Pública'!L:L,ROW())="Sin información", INDEX('Calificación Pública'!L:L,ROW())="Seleccione…"), "", MATCH(INDEX('Calificación Pública'!L:L,ROW()), INDEX('Calificación Pública'!$H:$K,ROW(),0), 0)) ->  | D33: =IF(OR(INDEX('Calificación Pública'!M:M,ROW())="Sin información", INDEX('Calificación Pública'!M:M,ROW())="Seleccione…"), "", MATCH(INDEX('Calificación Pública'!M:M,ROW()), INDEX('Calificación Pública'!$H:$K,ROW(),0), 0)) ->  | E33: =IF(OR(INDEX('Calificación Pública'!N:N,ROW())="Sin información", INDEX('Calificación Pública'!N:N,ROW())="Seleccione…"), "", MATCH(INDEX('Calificación Pública'!N:N,ROW()), INDEX('Calificación Pública'!$H:$K,ROW(),0), 0)) ->  | F33: =IF(OR(INDEX('Calificación Pública'!O:O,ROW())="Sin información", INDEX('Calificación Pública'!O:O,ROW())="Seleccione…"), "", MATCH(INDEX('Calificación Pública'!O:O,ROW()), INDEX('Calificación Pública'!$H:$K,ROW(),0), 0)) ->  | G33: =IF(OR(INDEX('Calificación Pública'!P:P,ROW())="Sin información", INDEX('Calificación Pública'!P:P,ROW())="Seleccione…"), "", MATCH(INDEX('Calificación Pública'!P:P,ROW()), INDEX('Calificación Pública'!$H:$K,ROW(),0), 0)) ->  | H33: =IF(OR(INDEX('Calificación Pública'!Q:Q,ROW())="Sin información", INDEX('Calificación Pública'!Q:Q,ROW())="Seleccione…"), "", MATCH(INDEX('Calificación Pública'!Q:Q,ROW()), INDEX('Calificación Pública'!$H:$K,ROW(),0), 0)) ->  | I33: =IF(OR(INDEX('Calificación Pública'!R:R,ROW())="Sin información", INDEX('Calificación Pública'!R:R,ROW())="Seleccione…"), "", MATCH(INDEX('Calificación Pública'!R:R,ROW()), INDEX('Calificación Pública'!$H:$K,ROW(),0), 0)) ->  | J33: =IF(OR(INDEX('Calificación Pública'!S:S,ROW())="Sin información", INDEX('Calificación Pública'!S:S,ROW())="Seleccione…"), "", MATCH(INDEX('Calificación Pública'!S:S,ROW()), INDEX('Calificación Pública'!$H:$K,ROW(),0), 0)) ->  | K33: =IF(OR(INDEX('Calificación Pública'!T:T,ROW())="Sin información", INDEX('Calificación Pública'!T:T,ROW())="Seleccione…"), "", MATCH(INDEX('Calificación Pública'!T:T,ROW()), INDEX('Calificación Pública'!$H:$K,ROW(),0), 0)) ->  | L33: =IF(OR(INDEX('Calificación Pública'!U:U,ROW())="Sin información", INDEX('Calificación Pública'!U:U,ROW())="Seleccione…"), "", MATCH(INDEX('Calificación Pública'!U:U,ROW()), INDEX('Calificación Pública'!$H:$K,ROW(),0), 0)) -> 
A34: =INDEX('Calificación Pública'!B:B,ROW()) -> Social | B34: =INDEX('Calificación Pública'!C:C,ROW()) -> Aceptación del usuario | C34: =IF(OR(INDEX('Calificación Pública'!L:L,ROW())="Sin información", INDEX('Calificación Pública'!L:L,ROW())="Seleccione…"), "", MATCH(INDEX('Calificación Pública'!L:L,ROW()), INDEX('Calificación Pública'!$H:$K,ROW(),0), 0)) ->  | D34: =IF(OR(INDEX('Calificación Pública'!M:M,ROW())="Sin información", INDEX('Calificación Pública'!M:M,ROW())="Seleccione…"), "", MATCH(INDEX('Calificación Pública'!M:M,ROW()), INDEX('Calificación Pública'!$H:$K,ROW(),0), 0)) ->  | E34: =IF(OR(INDEX('Calificación Pública'!N:N,ROW())="Sin información", INDEX('Calificación Pública'!N:N,ROW())="Seleccione…"), "", MATCH(INDEX('Calificación Pública'!N:N,ROW()), INDEX('Calificación Pública'!$H:$K,ROW(),0), 0)) ->  | F34: =IF(OR(INDEX('Calificación Pública'!O:O,ROW())="Sin información", INDEX('Calificación Pública'!O:O,ROW())="Seleccione…"), "", MATCH(INDEX('Calificación Pública'!O:O,ROW()), INDEX('Calificación Pública'!$H:$K,ROW(),0), 0)) ->  | G34: =IF(OR(INDEX('Calificación Pública'!P:P,ROW())="Sin información", INDEX('Calificación Pública'!P:P,ROW())="Seleccione…"), "", MATCH(INDEX('Calificación Pública'!P:P,ROW()), INDEX('Calificación Pública'!$H:$K,ROW(),0), 0)) ->  | H34: =IF(OR(INDEX('Calificación Pública'!Q:Q,ROW())="Sin información", INDEX('Calificación Pública'!Q:Q,ROW())="Seleccione…"), "", MATCH(INDEX('Calificación Pública'!Q:Q,ROW()), INDEX('Calificación Pública'!$H:$K,ROW(),0), 0)) ->  | I34: =IF(OR(INDEX('Calificación Pública'!R:R,ROW())="Sin información", INDEX('Calificación Pública'!R:R,ROW())="Seleccione…"), "", MATCH(INDEX('Calificación Pública'!R:R,ROW()), INDEX('Calificación Pública'!$H:$K,ROW(),0), 0)) ->  | J34: =IF(OR(INDEX('Calificación Pública'!S:S,ROW())="Sin información", INDEX('Calificación Pública'!S:S,ROW())="Seleccione…"), "", MATCH(INDEX('Calificación Pública'!S:S,ROW()), INDEX('Calificación Pública'!$H:$K,ROW(),0), 0)) ->  | K34: =IF(OR(INDEX('Calificación Pública'!T:T,ROW())="Sin información", INDEX('Calificación Pública'!T:T,ROW())="Seleccione…"), "", MATCH(INDEX('Calificación Pública'!T:T,ROW()), INDEX('Calificación Pública'!$H:$K,ROW(),0), 0)) ->  | L34: =IF(OR(INDEX('Calificación Pública'!U:U,ROW())="Sin información", INDEX('Calificación Pública'!U:U,ROW())="Seleccione…"), "", MATCH(INDEX('Calificación Pública'!U:U,ROW()), INDEX('Calificación Pública'!$H:$K,ROW(),0), 0)) -> 
A35: =INDEX('Calificación Pública'!B:B,ROW()) -> Social | B35: =INDEX('Calificación Pública'!C:C,ROW()) -> Impacto de las Iniciativas Energéticas en las Mujeres de la Comunidad | C35: =IF(OR(INDEX('Calificación Pública'!L:L,ROW())="Sin información", INDEX('Calificación Pública'!L:L,ROW())="Seleccione…"), "", MATCH(INDEX('Calificación Pública'!L:L,ROW()), INDEX('Calificación Pública'!$H:$K,ROW(),0), 0)) ->  | D35: =IF(OR(INDEX('Calificación Pública'!M:M,ROW())="Sin información", INDEX('Calificación Pública'!M:M,ROW())="Seleccione…"), "", MATCH(INDEX('Calificación Pública'!M:M,ROW()), INDEX('Calificación Pública'!$H:$K,ROW(),0), 0)) ->  | E35: =IF(OR(INDEX('Calificación Pública'!N:N,ROW())="Sin información", INDEX('Calificación Pública'!N:N,ROW())="Seleccione…"), "", MATCH(INDEX('Calificación Pública'!N:N,ROW()), INDEX('Calificación Pública'!$H:$K,ROW(),0), 0)) ->  | F35: =IF(OR(INDEX('Calificación Pública'!O:O,ROW())="Sin información", INDEX('Calificación Pública'!O:O,ROW())="Seleccione…"), "", MATCH(INDEX('Calificación Pública'!O:O,ROW()), INDEX('Calificación Pública'!$H:$K,ROW(),0), 0)) ->  | G35: =IF(OR(INDEX('Calificación Pública'!P:P,ROW())="Sin información", INDEX('Calificación Pública'!P:P,ROW())="Seleccione…"), "", MATCH(INDEX('Calificación Pública'!P:P,ROW()), INDEX('Calificación Pública'!$H:$K,ROW(),0), 0)) ->  | H35: =IF(OR(INDEX('Calificación Pública'!Q:Q,ROW())="Sin información", INDEX('Calificación Pública'!Q:Q,ROW())="Seleccione…"), "", MATCH(INDEX('Calificación Pública'!Q:Q,ROW()), INDEX('Calificación Pública'!$H:$K,ROW(),0), 0)) ->  | I35: =IF(OR(INDEX('Calificación Pública'!R:R,ROW())="Sin información", INDEX('Calificación Pública'!R:R,ROW())="Seleccione…"), "", MATCH(INDEX('Calificación Pública'!R:R,ROW()), INDEX('Calificación Pública'!$H:$K,ROW(),0), 0)) ->  | J35: =IF(OR(INDEX('Calificación Pública'!S:S,ROW())="Sin información", INDEX('Calificación Pública'!S:S,ROW())="Seleccione…"), "", MATCH(INDEX('Calificación Pública'!S:S,ROW()), INDEX('Calificación Pública'!$H:$K,ROW(),0), 0)) ->  | K35: =IF(OR(INDEX('Calificación Pública'!T:T,ROW())="Sin información", INDEX('Calificación Pública'!T:T,ROW())="Seleccione…"), "", MATCH(INDEX('Calificación Pública'!T:T,ROW()), INDEX('Calificación Pública'!$H:$K,ROW(),0), 0)) ->  | L35: =IF(OR(INDEX('Calificación Pública'!U:U,ROW())="Sin información", INDEX('Calificación Pública'!U:U,ROW())="Seleccione…"), "", MATCH(INDEX('Calificación Pública'!U:U,ROW()), INDEX('Calificación Pública'!$H:$K,ROW(),0), 0)) -> 
A36: =INDEX('Calificación Pública'!B:B,ROW()) -> Social | B36: =INDEX('Calificación Pública'!C:C,ROW()) -> Cumplimiento de consultas previas | C36: =IF(OR(INDEX('Calificación Pública'!L:L,ROW())="Sin información", INDEX('Calificación Pública'!L:L,ROW())="Seleccione…"), "", MATCH(INDEX('Calificación Pública'!L:L,ROW()), INDEX('Calificación Pública'!$H:$K,ROW(),0), 0)) ->  | D36: =IF(OR(INDEX('Calificación Pública'!M:M,ROW())="Sin información", INDEX('Calificación Pública'!M:M,ROW())="Seleccione…"), "", MATCH(INDEX('Calificación Pública'!M:M,ROW()), INDEX('Calificación Pública'!$H:$K,ROW(),0), 0)) ->  | E36: =IF(OR(INDEX('Calificación Pública'!N:N,ROW())="Sin información", INDEX('Calificación Pública'!N:N,ROW())="Seleccione…"), "", MATCH(INDEX('Calificación Pública'!N:N,ROW()), INDEX('Calificación Pública'!$H:$K,ROW(),0), 0)) ->  | F36: =IF(OR(INDEX('Calificación Pública'!O:O,ROW())="Sin información", INDEX('Calificación Pública'!O:O,ROW())="Seleccione…"), "", MATCH(INDEX('Calificación Pública'!O:O,ROW()), INDEX('Calificación Pública'!$H:$K,ROW(),0), 0)) ->  | G36: =IF(OR(INDEX('Calificación Pública'!P:P,ROW())="Sin información", INDEX('Calificación Pública'!P:P,ROW())="Seleccione…"), "", MATCH(INDEX('Calificación Pública'!P:P,ROW()), INDEX('Calificación Pública'!$H:$K,ROW(),0), 0)) ->  | H36: =IF(OR(INDEX('Calificación Pública'!Q:Q,ROW())="Sin información", INDEX('Calificación Pública'!Q:Q,ROW())="Seleccione…"), "", MATCH(INDEX('Calificación Pública'!Q:Q,ROW()), INDEX('Calificación Pública'!$H:$K,ROW(),0), 0)) ->  | I36: =IF(OR(INDEX('Calificación Pública'!R:R,ROW())="Sin información", INDEX('Calificación Pública'!R:R,ROW())="Seleccione…"), "", MATCH(INDEX('Calificación Pública'!R:R,ROW()), INDEX('Calificación Pública'!$H:$K,ROW(),0), 0)) ->  | J36: =IF(OR(INDEX('Calificación Pública'!S:S,ROW())="Sin información", INDEX('Calificación Pública'!S:S,ROW())="Seleccione…"), "", MATCH(INDEX('Calificación Pública'!S:S,ROW()), INDEX('Calificación Pública'!$H:$K,ROW(),0), 0)) ->  | K36: =IF(OR(INDEX('Calificación Pública'!T:T,ROW())="Sin información", INDEX('Calificación Pública'!T:T,ROW())="Seleccione…"), "", MATCH(INDEX('Calificación Pública'!T:T,ROW()), INDEX('Calificación Pública'!$H:$K,ROW(),0), 0)) ->  | L36: =IF(OR(INDEX('Calificación Pública'!U:U,ROW())="Sin información", INDEX('Calificación Pública'!U:U,ROW())="Seleccione…"), "", MATCH(INDEX('Calificación Pública'!U:U,ROW()), INDEX('Calificación Pública'!$H:$K,ROW(),0), 0)) -> 
A37: =INDEX('Calificación Pública'!B:B,ROW()) -> Social | B37: =INDEX('Calificación Pública'!C:C,ROW()) -> Capacitación en Energías Renovables con Enfoque de Género | C37: =IF(OR(INDEX('Calificación Pública'!L:L,ROW())="Sin información", INDEX('Calificación Pública'!L:L,ROW())="Seleccione…"), "", MATCH(INDEX('Calificación Pública'!L:L,ROW()), INDEX('Calificación Pública'!$H:$K,ROW(),0), 0)) ->  | D37: =IF(OR(INDEX('Calificación Pública'!M:M,ROW())="Sin información", INDEX('Calificación Pública'!M:M,ROW())="Seleccione…"), "", MATCH(INDEX('Calificación Pública'!M:M,ROW()), INDEX('Calificación Pública'!$H:$K,ROW(),0), 0)) ->  | E37: =IF(OR(INDEX('Calificación Pública'!N:N,ROW())="Sin información", INDEX('Calificación Pública'!N:N,ROW())="Seleccione…"), "", MATCH(INDEX('Calificación Pública'!N:N,ROW()), INDEX('Calificación Pública'!$H:$K,ROW(),0), 0)) ->  | F37: =IF(OR(INDEX('Calificación Pública'!O:O,ROW())="Sin información", INDEX('Calificación Pública'!O:O,ROW())="Seleccione…"), "", MATCH(INDEX('Calificación Pública'!O:O,ROW()), INDEX('Calificación Pública'!$H:$K,ROW(),0), 0)) ->  | G37: =IF(OR(INDEX('Calificación Pública'!P:P,ROW())="Sin información", INDEX('Calificación Pública'!P:P,ROW())="Seleccione…"), "", MATCH(INDEX('Calificación Pública'!P:P,ROW()), INDEX('Calificación Pública'!$H:$K,ROW(),0), 0)) ->  | H37: =IF(OR(INDEX('Calificación Pública'!Q:Q,ROW())="Sin información", INDEX('Calificación Pública'!Q:Q,ROW())="Seleccione…"), "", MATCH(INDEX('Calificación Pública'!Q:Q,ROW()), INDEX('Calificación Pública'!$H:$K,ROW(),0), 0)) ->  | I37: =IF(OR(INDEX('Calificación Pública'!R:R,ROW())="Sin información", INDEX('Calificación Pública'!R:R,ROW())="Seleccione…"), "", MATCH(INDEX('Calificación Pública'!R:R,ROW()), INDEX('Calificación Pública'!$H:$K,ROW(),0), 0)) ->  | J37: =IF(OR(INDEX('Calificación Pública'!S:S,ROW())="Sin información", INDEX('Calificación Pública'!S:S,ROW())="Seleccione…"), "", MATCH(INDEX('Calificación Pública'!S:S,ROW()), INDEX('Calificación Pública'!$H:$K,ROW(),0), 0)) ->  | K37: =IF(OR(INDEX('Calificación Pública'!T:T,ROW())="Sin información", INDEX('Calificación Pública'!T:T,ROW())="Seleccione…"), "", MATCH(INDEX('Calificación Pública'!T:T,ROW()), INDEX('Calificación Pública'!$H:$K,ROW(),0), 0)) ->  | L37: =IF(OR(INDEX('Calificación Pública'!U:U,ROW())="Sin información", INDEX('Calificación Pública'!U:U,ROW())="Seleccione…"), "", MATCH(INDEX('Calificación Pública'!U:U,ROW()), INDEX('Calificación Pública'!$H:$K,ROW(),0), 0)) -> 
A38: =INDEX('Calificación Pública'!B:B,ROW()) -> Técnico | B38: =INDEX('Calificación Pública'!C:C,ROW()) -> ¿Hay capacidad disponible en el circuito de distribución local para la capacidad de generación estimada? (límite del 50%) | C38: =IF(OR(INDEX('Calificación Pública'!L:L,ROW())="Sin información", INDEX('Calificación Pública'!L:L,ROW())="Seleccione…"), "", MATCH(INDEX('Calificación Pública'!L:L,ROW()), INDEX('Calificación Pública'!$H:$K,ROW(),0), 0)) ->  | D38: =IF(OR(INDEX('Calificación Pública'!M:M,ROW())="Sin información", INDEX('Calificación Pública'!M:M,ROW())="Seleccione…"), "", MATCH(INDEX('Calificación Pública'!M:M,ROW()), INDEX('Calificación Pública'!$H:$K,ROW(),0), 0)) ->  | E38: =IF(OR(INDEX('Calificación Pública'!N:N,ROW())="Sin información", INDEX('Calificación Pública'!N:N,ROW())="Seleccione…"), "", MATCH(INDEX('Calificación Pública'!N:N,ROW()), INDEX('Calificación Pública'!$H:$K,ROW(),0), 0)) ->  | F38: =IF(OR(INDEX('Calificación Pública'!O:O,ROW())="Sin información", INDEX('Calificación Pública'!O:O,ROW())="Seleccione…"), "", MATCH(INDEX('Calificación Pública'!O:O,ROW()), INDEX('Calificación Pública'!$H:$K,ROW(),0), 0)) ->  | G38: =IF(OR(INDEX('Calificación Pública'!P:P,ROW())="Sin información", INDEX('Calificación Pública'!P:P,ROW())="Seleccione…"), "", MATCH(INDEX('Calificación Pública'!P:P,ROW()), INDEX('Calificación Pública'!$H:$K,ROW(),0), 0)) ->  | H38: =IF(OR(INDEX('Calificación Pública'!Q:Q,ROW())="Sin información", INDEX('Calificación Pública'!Q:Q,ROW())="Seleccione…"), "", MATCH(INDEX('Calificación Pública'!Q:Q,ROW()), INDEX('Calificación Pública'!$H:$K,ROW(),0), 0)) ->  | I38: =IF(OR(INDEX('Calificación Pública'!R:R,ROW())="Sin información", INDEX('Calificación Pública'!R:R,ROW())="Seleccione…"), "", MATCH(INDEX('Calificación Pública'!R:R,ROW()), INDEX('Calificación Pública'!$H:$K,ROW(),0), 0)) ->  | J38: =IF(OR(INDEX('Calificación Pública'!S:S,ROW())="Sin información", INDEX('Calificación Pública'!S:S,ROW())="Seleccione…"), "", MATCH(INDEX('Calificación Pública'!S:S,ROW()), INDEX('Calificación Pública'!$H:$K,ROW(),0), 0)) ->  | K38: =IF(OR(INDEX('Calificación Pública'!T:T,ROW())="Sin información", INDEX('Calificación Pública'!T:T,ROW())="Seleccione…"), "", MATCH(INDEX('Calificación Pública'!T:T,ROW()), INDEX('Calificación Pública'!$H:$K,ROW(),0), 0)) ->  | L38: =IF(OR(INDEX('Calificación Pública'!U:U,ROW())="Sin información", INDEX('Calificación Pública'!U:U,ROW())="Seleccione…"), "", MATCH(INDEX('Calificación Pública'!U:U,ROW()), INDEX('Calificación Pública'!$H:$K,ROW(),0), 0)) -> 
A39: =INDEX('Calificación Pública'!B:B,ROW()) -> Técnico | B39: =INDEX('Calificación Pública'!C:C,ROW()) -> ¿Se trata de una comunidad ya postulada y focalizada? | C39: =IF(OR(INDEX('Calificación Pública'!L:L,ROW())="Sin información", INDEX('Calificación Pública'!L:L,ROW())="Seleccione…"), "", MATCH(INDEX('Calificación Pública'!L:L,ROW()), INDEX('Calificación Pública'!$H:$K,ROW(),0), 0)) ->  | D39: =IF(OR(INDEX('Calificación Pública'!M:M,ROW())="Sin información", INDEX('Calificación Pública'!M:M,ROW())="Seleccione…"), "", MATCH(INDEX('Calificación Pública'!M:M,ROW()), INDEX('Calificación Pública'!$H:$K,ROW(),0), 0)) ->  | E39: =IF(OR(INDEX('Calificación Pública'!N:N,ROW())="Sin información", INDEX('Calificación Pública'!N:N,ROW())="Seleccione…"), "", MATCH(INDEX('Calificación Pública'!N:N,ROW()), INDEX('Calificación Pública'!$H:$K,ROW(),0), 0)) ->  | F39: =IF(OR(INDEX('Calificación Pública'!O:O,ROW())="Sin información", INDEX('Calificación Pública'!O:O,ROW())="Seleccione…"), "", MATCH(INDEX('Calificación Pública'!O:O,ROW()), INDEX('Calificación Pública'!$H:$K,ROW(),0), 0)) ->  | G39: =IF(OR(INDEX('Calificación Pública'!P:P,ROW())="Sin información", INDEX('Calificación Pública'!P:P,ROW())="Seleccione…"), "", MATCH(INDEX('Calificación Pública'!P:P,ROW()), INDEX('Calificación Pública'!$H:$K,ROW(),0), 0)) ->  | H39: =IF(OR(INDEX('Calificación Pública'!Q:Q,ROW())="Sin información", INDEX('Calificación Pública'!Q:Q,ROW())="Seleccione…"), "", MATCH(INDEX('Calificación Pública'!Q:Q,ROW()), INDEX('Calificación Pública'!$H:$K,ROW(),0), 0)) ->  | I39: =IF(OR(INDEX('Calificación Pública'!R:R,ROW())="Sin información", INDEX('Calificación Pública'!R:R,ROW())="Seleccione…"), "", MATCH(INDEX('Calificación Pública'!R:R,ROW()), INDEX('Calificación Pública'!$H:$K,ROW(),0), 0)) ->  | J39: =IF(OR(INDEX('Calificación Pública'!S:S,ROW())="Sin información", INDEX('Calificación Pública'!S:S,ROW())="Seleccione…"), "", MATCH(INDEX('Calificación Pública'!S:S,ROW()), INDEX('Calificación Pública'!$H:$K,ROW(),0), 0)) ->  | K39: =IF(OR(INDEX('Calificación Pública'!T:T,ROW())="Sin información", INDEX('Calificación Pública'!T:T,ROW())="Seleccione…"), "", MATCH(INDEX('Calificación Pública'!T:T,ROW()), INDEX('Calificación Pública'!$H:$K,ROW(),0), 0)) ->  | L39: =IF(OR(INDEX('Calificación Pública'!U:U,ROW())="Sin información", INDEX('Calificación Pública'!U:U,ROW())="Seleccione…"), "", MATCH(INDEX('Calificación Pública'!U:U,ROW()), INDEX('Calificación Pública'!$H:$K,ROW(),0), 0)) -> 
A40: =INDEX('Calificación Pública'!B:B,ROW()) -> Técnico | B40: =INDEX('Calificación Pública'!C:C,ROW()) -> Ahorro de energía de la red | C40: =IF(OR(INDEX('Calificación Pública'!L:L,ROW())="Sin información", INDEX('Calificación Pública'!L:L,ROW())="Seleccione…"), "", MATCH(INDEX('Calificación Pública'!L:L,ROW()), INDEX('Calificación Pública'!$H:$K,ROW(),0), 0)) ->  | D40: =IF(OR(INDEX('Calificación Pública'!M:M,ROW())="Sin información", INDEX('Calificación Pública'!M:M,ROW())="Seleccione…"), "", MATCH(INDEX('Calificación Pública'!M:M,ROW()), INDEX('Calificación Pública'!$H:$K,ROW(),0), 0)) ->  | E40: =IF(OR(INDEX('Calificación Pública'!N:N,ROW())="Sin información", INDEX('Calificación Pública'!N:N,ROW())="Seleccione…"), "", MATCH(INDEX('Calificación Pública'!N:N,ROW()), INDEX('Calificación Pública'!$H:$K,ROW(),0), 0)) ->  | F40: =IF(OR(INDEX('Calificación Pública'!O:O,ROW())="Sin información", INDEX('Calificación Pública'!O:O,ROW())="Seleccione…"), "", MATCH(INDEX('Calificación Pública'!O:O,ROW()), INDEX('Calificación Pública'!$H:$K,ROW(),0), 0)) ->  | G40: =IF(OR(INDEX('Calificación Pública'!P:P,ROW())="Sin información", INDEX('Calificación Pública'!P:P,ROW())="Seleccione…"), "", MATCH(INDEX('Calificación Pública'!P:P,ROW()), INDEX('Calificación Pública'!$H:$K,ROW(),0), 0)) ->  | H40: =IF(OR(INDEX('Calificación Pública'!Q:Q,ROW())="Sin información", INDEX('Calificación Pública'!Q:Q,ROW())="Seleccione…"), "", MATCH(INDEX('Calificación Pública'!Q:Q,ROW()), INDEX('Calificación Pública'!$H:$K,ROW(),0), 0)) ->  | I40: =IF(OR(INDEX('Calificación Pública'!R:R,ROW())="Sin información", INDEX('Calificación Pública'!R:R,ROW())="Seleccione…"), "", MATCH(INDEX('Calificación Pública'!R:R,ROW()), INDEX('Calificación Pública'!$H:$K,ROW(),0), 0)) ->  | J40: =IF(OR(INDEX('Calificación Pública'!S:S,ROW())="Sin información", INDEX('Calificación Pública'!S:S,ROW())="Seleccione…"), "", MATCH(INDEX('Calificación Pública'!S:S,ROW()), INDEX('Calificación Pública'!$H:$K,ROW(),0), 0)) ->  | K40: =IF(OR(INDEX('Calificación Pública'!T:T,ROW())="Sin información", INDEX('Calificación Pública'!T:T,ROW())="Seleccione…"), "", MATCH(INDEX('Calificación Pública'!T:T,ROW()), INDEX('Calificación Pública'!$H:$K,ROW(),0), 0)) ->  | L40: =IF(OR(INDEX('Calificación Pública'!U:U,ROW())="Sin información", INDEX('Calificación Pública'!U:U,ROW())="Seleccione…"), "", MATCH(INDEX('Calificación Pública'!U:U,ROW()), INDEX('Calificación Pública'!$H:$K,ROW(),0), 0)) -> 
A41: =INDEX('Calificación Pública'!B:B,ROW()) -> Técnico | B41: =INDEX('Calificación Pública'!C:C,ROW()) -> Capacidad técnica local (no siempre es esencial, ya que la capacitación puede ser parte del proyecto.) | C41: =IF(OR(INDEX('Calificación Pública'!L:L,ROW())="Sin información", INDEX('Calificación Pública'!L:L,ROW())="Seleccione…"), "", MATCH(INDEX('Calificación Pública'!L:L,ROW()), INDEX('Calificación Pública'!$H:$K,ROW(),0), 0)) ->  | D41: =IF(OR(INDEX('Calificación Pública'!M:M,ROW())="Sin información", INDEX('Calificación Pública'!M:M,ROW())="Seleccione…"), "", MATCH(INDEX('Calificación Pública'!M:M,ROW()), INDEX('Calificación Pública'!$H:$K,ROW(),0), 0)) ->  | E41: =IF(OR(INDEX('Calificación Pública'!N:N,ROW())="Sin información", INDEX('Calificación Pública'!N:N,ROW())="Seleccione…"), "", MATCH(INDEX('Calificación Pública'!N:N,ROW()), INDEX('Calificación Pública'!$H:$K,ROW(),0), 0)) ->  | F41: =IF(OR(INDEX('Calificación Pública'!O:O,ROW())="Sin información", INDEX('Calificación Pública'!O:O,ROW())="Seleccione…"), "", MATCH(INDEX('Calificación Pública'!O:O,ROW()), INDEX('Calificación Pública'!$H:$K,ROW(),0), 0)) ->  | G41: =IF(OR(INDEX('Calificación Pública'!P:P,ROW())="Sin información", INDEX('Calificación Pública'!P:P,ROW())="Seleccione…"), "", MATCH(INDEX('Calificación Pública'!P:P,ROW()), INDEX('Calificación Pública'!$H:$K,ROW(),0), 0)) ->  | H41: =IF(OR(INDEX('Calificación Pública'!Q:Q,ROW())="Sin información", INDEX('Calificación Pública'!Q:Q,ROW())="Seleccione…"), "", MATCH(INDEX('Calificación Pública'!Q:Q,ROW()), INDEX('Calificación Pública'!$H:$K,ROW(),0), 0)) ->  | I41: =IF(OR(INDEX('Calificación Pública'!R:R,ROW())="Sin información", INDEX('Calificación Pública'!R:R,ROW())="Seleccione…"), "", MATCH(INDEX('Calificación Pública'!R:R,ROW()), INDEX('Calificación Pública'!$H:$K,ROW(),0), 0)) ->  | J41: =IF(OR(INDEX('Calificación Pública'!S:S,ROW())="Sin información", INDEX('Calificación Pública'!S:S,ROW())="Seleccione…"), "", MATCH(INDEX('Calificación Pública'!S:S,ROW()), INDEX('Calificación Pública'!$H:$K,ROW(),0), 0)) ->  | K41: =IF(OR(INDEX('Calificación Pública'!T:T,ROW())="Sin información", INDEX('Calificación Pública'!T:T,ROW())="Seleccione…"), "", MATCH(INDEX('Calificación Pública'!T:T,ROW()), INDEX('Calificación Pública'!$H:$K,ROW(),0), 0)) ->  | L41: =IF(OR(INDEX('Calificación Pública'!U:U,ROW())="Sin información", INDEX('Calificación Pública'!U:U,ROW())="Seleccione…"), "", MATCH(INDEX('Calificación Pública'!U:U,ROW()), INDEX('Calificación Pública'!$H:$K,ROW(),0), 0)) -> 
A42: =INDEX('Calificación Pública'!B:B,ROW()) -> Técnico | B42: =INDEX('Calificación Pública'!C:C,ROW()) -> Grado de avance del sistema energético que se proyecta implementar | C42: =IF(OR(INDEX('Calificación Pública'!L:L,ROW())="Sin información", INDEX('Calificación Pública'!L:L,ROW())="Seleccione…"), "", MATCH(INDEX('Calificación Pública'!L:L,ROW()), INDEX('Calificación Pública'!$H:$K,ROW(),0), 0)) ->  | D42: =IF(OR(INDEX('Calificación Pública'!M:M,ROW())="Sin información", INDEX('Calificación Pública'!M:M,ROW())="Seleccione…"), "", MATCH(INDEX('Calificación Pública'!M:M,ROW()), INDEX('Calificación Pública'!$H:$K,ROW(),0), 0)) ->  | E42: =IF(OR(INDEX('Calificación Pública'!N:N,ROW())="Sin información", INDEX('Calificación Pública'!N:N,ROW())="Seleccione…"), "", MATCH(INDEX('Calificación Pública'!N:N,ROW()), INDEX('Calificación Pública'!$H:$K,ROW(),0), 0)) ->  | F42: =IF(OR(INDEX('Calificación Pública'!O:O,ROW())="Sin información", INDEX('Calificación Pública'!O:O,ROW())="Seleccione…"), "", MATCH(INDEX('Calificación Pública'!O:O,ROW()), INDEX('Calificación Pública'!$H:$K,ROW(),0), 0)) ->  | G42: =IF(OR(INDEX('Calificación Pública'!P:P,ROW())="Sin información", INDEX('Calificación Pública'!P:P,ROW())="Seleccione…"), "", MATCH(INDEX('Calificación Pública'!P:P,ROW()), INDEX('Calificación Pública'!$H:$K,ROW(),0), 0)) ->  | H42: =IF(OR(INDEX('Calificación Pública'!Q:Q,ROW())="Sin información", INDEX('Calificación Pública'!Q:Q,ROW())="Seleccione…"), "", MATCH(INDEX('Calificación Pública'!Q:Q,ROW()), INDEX('Calificación Pública'!$H:$K,ROW(),0), 0)) ->  | I42: =IF(OR(INDEX('Calificación Pública'!R:R,ROW())="Sin información", INDEX('Calificación Pública'!R:R,ROW())="Seleccione…"), "", MATCH(INDEX('Calificación Pública'!R:R,ROW()), INDEX('Calificación Pública'!$H:$K,ROW(),0), 0)) ->  | J42: =IF(OR(INDEX('Calificación Pública'!S:S,ROW())="Sin información", INDEX('Calificación Pública'!S:S,ROW())="Seleccione…"), "", MATCH(INDEX('Calificación Pública'!S:S,ROW()), INDEX('Calificación Pública'!$H:$K,ROW(),0), 0)) ->  | K42: =IF(OR(INDEX('Calificación Pública'!T:T,ROW())="Sin información", INDEX('Calificación Pública'!T:T,ROW())="Seleccione…"), "", MATCH(INDEX('Calificación Pública'!T:T,ROW()), INDEX('Calificación Pública'!$H:$K,ROW(),0), 0)) ->  | L42: =IF(OR(INDEX('Calificación Pública'!U:U,ROW())="Sin información", INDEX('Calificación Pública'!U:U,ROW())="Seleccione…"), "", MATCH(INDEX('Calificación Pública'!U:U,ROW()), INDEX('Calificación Pública'!$H:$K,ROW(),0), 0)) -> 
A43: =INDEX('Calificación Pública'!B:B,ROW()) -> Técnico | B43: =INDEX('Calificación Pública'!C:C,ROW()) -> Pérdidas de Energía Eléctrica | C43: =IF(OR(INDEX('Calificación Pública'!L:L,ROW())="Sin información", INDEX('Calificación Pública'!L:L,ROW())="Seleccione…"), "", MATCH(INDEX('Calificación Pública'!L:L,ROW()), INDEX('Calificación Pública'!$H:$K,ROW(),0), 0)) ->  | D43: =IF(OR(INDEX('Calificación Pública'!M:M,ROW())="Sin información", INDEX('Calificación Pública'!M:M,ROW())="Seleccione…"), "", MATCH(INDEX('Calificación Pública'!M:M,ROW()), INDEX('Calificación Pública'!$H:$K,ROW(),0), 0)) ->  | E43: =IF(OR(INDEX('Calificación Pública'!N:N,ROW())="Sin información", INDEX('Calificación Pública'!N:N,ROW())="Seleccione…"), "", MATCH(INDEX('Calificación Pública'!N:N,ROW()), INDEX('Calificación Pública'!$H:$K,ROW(),0), 0)) ->  | F43: =IF(OR(INDEX('Calificación Pública'!O:O,ROW())="Sin información", INDEX('Calificación Pública'!O:O,ROW())="Seleccione…"), "", MATCH(INDEX('Calificación Pública'!O:O,ROW()), INDEX('Calificación Pública'!$H:$K,ROW(),0), 0)) ->  | G43: =IF(OR(INDEX('Calificación Pública'!P:P,ROW())="Sin información", INDEX('Calificación Pública'!P:P,ROW())="Seleccione…"), "", MATCH(INDEX('Calificación Pública'!P:P,ROW()), INDEX('Calificación Pública'!$H:$K,ROW(),0), 0)) ->  | H43: =IF(OR(INDEX('Calificación Pública'!Q:Q,ROW())="Sin información", INDEX('Calificación Pública'!Q:Q,ROW())="Seleccione…"), "", MATCH(INDEX('Calificación Pública'!Q:Q,ROW()), INDEX('Calificación Pública'!$H:$K,ROW(),0), 0)) ->  | I43: =IF(OR(INDEX('Calificación Pública'!R:R,ROW())="Sin información", INDEX('Calificación Pública'!R:R,ROW())="Seleccione…"), "", MATCH(INDEX('Calificación Pública'!R:R,ROW()), INDEX('Calificación Pública'!$H:$K,ROW(),0), 0)) ->  | J43: =IF(OR(INDEX('Calificación Pública'!S:S,ROW())="Sin información", INDEX('Calificación Pública'!S:S,ROW())="Seleccione…"), "", MATCH(INDEX('Calificación Pública'!S:S,ROW()), INDEX('Calificación Pública'!$H:$K,ROW(),0), 0)) ->  | K43: =IF(OR(INDEX('Calificación Pública'!T:T,ROW())="Sin información", INDEX('Calificación Pública'!T:T,ROW())="Seleccione…"), "", MATCH(INDEX('Calificación Pública'!T:T,ROW()), INDEX('Calificación Pública'!$H:$K,ROW(),0), 0)) ->  | L43: =IF(OR(INDEX('Calificación Pública'!U:U,ROW())="Sin información", INDEX('Calificación Pública'!U:U,ROW())="Seleccione…"), "", MATCH(INDEX('Calificación Pública'!U:U,ROW()), INDEX('Calificación Pública'!$H:$K,ROW(),0), 0)) -> 
A44: =INDEX('Calificación Pública'!B:B,ROW()) -> Técnico | B44: =INDEX('Calificación Pública'!C:C,ROW()) -> Calidad del servicio (Frecuencia y duración de interrupciones) | C44: =IF(OR(INDEX('Calificación Pública'!L:L,ROW())="Sin información", INDEX('Calificación Pública'!L:L,ROW())="Seleccione…"), "", MATCH(INDEX('Calificación Pública'!L:L,ROW()), INDEX('Calificación Pública'!$H:$K,ROW(),0), 0)) ->  | D44: =IF(OR(INDEX('Calificación Pública'!M:M,ROW())="Sin información", INDEX('Calificación Pública'!M:M,ROW())="Seleccione…"), "", MATCH(INDEX('Calificación Pública'!M:M,ROW()), INDEX('Calificación Pública'!$H:$K,ROW(),0), 0)) ->  | E44: =IF(OR(INDEX('Calificación Pública'!N:N,ROW())="Sin información", INDEX('Calificación Pública'!N:N,ROW())="Seleccione…"), "", MATCH(INDEX('Calificación Pública'!N:N,ROW()), INDEX('Calificación Pública'!$H:$K,ROW(),0), 0)) ->  | F44: =IF(OR(INDEX('Calificación Pública'!O:O,ROW())="Sin información", INDEX('Calificación Pública'!O:O,ROW())="Seleccione…"), "", MATCH(INDEX('Calificación Pública'!O:O,ROW()), INDEX('Calificación Pública'!$H:$K,ROW(),0), 0)) ->  | G44: =IF(OR(INDEX('Calificación Pública'!P:P,ROW())="Sin información", INDEX('Calificación Pública'!P:P,ROW())="Seleccione…"), "", MATCH(INDEX('Calificación Pública'!P:P,ROW()), INDEX('Calificación Pública'!$H:$K,ROW(),0), 0)) ->  | H44: =IF(OR(INDEX('Calificación Pública'!Q:Q,ROW())="Sin información", INDEX('Calificación Pública'!Q:Q,ROW())="Seleccione…"), "", MATCH(INDEX('Calificación Pública'!Q:Q,ROW()), INDEX('Calificación Pública'!$H:$K,ROW(),0), 0)) ->  | I44: =IF(OR(INDEX('Calificación Pública'!R:R,ROW())="Sin información", INDEX('Calificación Pública'!R:R,ROW())="Seleccione…"), "", MATCH(INDEX('Calificación Pública'!R:R,ROW()), INDEX('Calificación Pública'!$H:$K,ROW(),0), 0)) ->  | J44: =IF(OR(INDEX('Calificación Pública'!S:S,ROW())="Sin información", INDEX('Calificación Pública'!S:S,ROW())="Seleccione…"), "", MATCH(INDEX('Calificación Pública'!S:S,ROW()), INDEX('Calificación Pública'!$H:$K,ROW(),0), 0)) ->  | K44: =IF(OR(INDEX('Calificación Pública'!T:T,ROW())="Sin información", INDEX('Calificación Pública'!T:T,ROW())="Seleccione…"), "", MATCH(INDEX('Calificación Pública'!T:T,ROW()), INDEX('Calificación Pública'!$H:$K,ROW(),0), 0)) ->  | L44: =IF(OR(INDEX('Calificación Pública'!U:U,ROW())="Sin información", INDEX('Calificación Pública'!U:U,ROW())="Seleccione…"), "", MATCH(INDEX('Calificación Pública'!U:U,ROW()), INDEX('Calificación Pública'!$H:$K,ROW(),0), 0)) -> 
A45: =INDEX('Calificación Pública'!B:B,ROW()) -> 0 | B45: =INDEX('Calificación Pública'!C:C,ROW()) -> 0 | C45: =IF(OR(INDEX('Calificación Pública'!L:L,ROW())="Sin información", INDEX('Calificación Pública'!L:L,ROW())="Seleccione…"), "", MATCH(INDEX('Calificación Pública'!L:L,ROW()), INDEX('Calificación Pública'!$H:$K,ROW(),0), 0)) ->  | D45: =IF(OR(INDEX('Calificación Pública'!M:M,ROW())="Sin información", INDEX('Calificación Pública'!M:M,ROW())="Seleccione…"), "", MATCH(INDEX('Calificación Pública'!M:M,ROW()), INDEX('Calificación Pública'!$H:$K,ROW(),0), 0)) ->  | E45: =IF(OR(INDEX('Calificación Pública'!N:N,ROW())="Sin información", INDEX('Calificación Pública'!N:N,ROW())="Seleccione…"), "", MATCH(INDEX('Calificación Pública'!N:N,ROW()), INDEX('Calificación Pública'!$H:$K,ROW(),0), 0)) ->  | F45: =IF(OR(INDEX('Calificación Pública'!O:O,ROW())="Sin información", INDEX('Calificación Pública'!O:O,ROW())="Seleccione…"), "", MATCH(INDEX('Calificación Pública'!O:O,ROW()), INDEX('Calificación Pública'!$H:$K,ROW(),0), 0)) ->  | G45: =IF(OR(INDEX('Calificación Pública'!P:P,ROW())="Sin información", INDEX('Calificación Pública'!P:P,ROW())="Seleccione…"), "", MATCH(INDEX('Calificación Pública'!P:P,ROW()), INDEX('Calificación Pública'!$H:$K,ROW(),0), 0)) ->  | H45: =IF(OR(INDEX('Calificación Pública'!Q:Q,ROW())="Sin información", INDEX('Calificación Pública'!Q:Q,ROW())="Seleccione…"), "", MATCH(INDEX('Calificación Pública'!Q:Q,ROW()), INDEX('Calificación Pública'!$H:$K,ROW(),0), 0)) ->  | I45: =IF(OR(INDEX('Calificación Pública'!R:R,ROW())="Sin información", INDEX('Calificación Pública'!R:R,ROW())="Seleccione…"), "", MATCH(INDEX('Calificación Pública'!R:R,ROW()), INDEX('Calificación Pública'!$H:$K,ROW(),0), 0)) ->  | J45: =IF(OR(INDEX('Calificación Pública'!S:S,ROW())="Sin información", INDEX('Calificación Pública'!S:S,ROW())="Seleccione…"), "", MATCH(INDEX('Calificación Pública'!S:S,ROW()), INDEX('Calificación Pública'!$H:$K,ROW(),0), 0)) ->  | K45: =IF(OR(INDEX('Calificación Pública'!T:T,ROW())="Sin información", INDEX('Calificación Pública'!T:T,ROW())="Seleccione…"), "", MATCH(INDEX('Calificación Pública'!T:T,ROW()), INDEX('Calificación Pública'!$H:$K,ROW(),0), 0)) ->  | L45: =IF(OR(INDEX('Calificación Pública'!U:U,ROW())="Sin información", INDEX('Calificación Pública'!U:U,ROW())="Seleccione…"), "", MATCH(INDEX('Calificación Pública'!U:U,ROW()), INDEX('Calificación Pública'!$H:$K,ROW(),0), 0)) -> 

Sheet Resultados Pública
A1: Resultados de Priorización
A2: Bienvenido a la sección de resultados. A continuación, podrás consultar los valores calculados para cada categoría y el resultado final de la priorización para cada comunidad. 1. Ajusta las ponderaciones: Modifica los porcentajes de las categorías según tus necesidades o criterios específicos. 2. Consulta los resultados: La priorización actualizada se mostrará automáticamente. (Recuerda seleccionar el municipio y el tipo de energía a implementar en la Caracterización de la comunidad) El Potencial se toma directamente de los resultados del potencial energético, evaluados según lo descrito en la Sección 4 de la Hoja de Ruta para el Despliegue de Comunidades Energéticas. Quieres ver estos resultados, haz clic en "Consulta el potencial por municipio" 3. Consulta los resultados ordenados de mayor a menor, para que identifiques las mejores opciones rápidamente.
A4: Categoría de indicadores | B4: Porcentaje de ponderación
A5: Ambiental | B5: 20%
A6: Económico | B6: 15%
A7: Legislativo/ Normativo | B7: 15%
A8: Social | B8: 30%
A9: Técnico | B9: 20%
A10: Total | B10: =SUM(B5:B9) -> 100%
A12: Resultados de la calificación de la priorización para las comunidades por categoría de variables
A14: Categoría/comunidad | B14: =Caracterización!B8 -> C1 | C14: =Caracterización!C8 -> C2 | D14: =Caracterización!D8 -> C3 | E14: =Caracterización!E8 -> C4 | F14: =Caracterización!F8 -> C5 | G14: =Caracterización!G8 -> C6 | H14: =Caracterización!H8 -> C7 | I14: =Caracterización!I8 -> C8 | J14: =Caracterización!J8 -> C9 | K14: =Caracterización!K8 -> C10
A15: Ambiental | B15: =IFERROR(AVERAGEIF('ResParcial Publico'!$A$7:$A$60,'Resultados Pública'!$A$15,'ResParcial Publico'!C$7:C$60),"") -> 2.00 | C15: =IFERROR(AVERAGEIF('ResParcial Publico'!$A$7:$A$60,'Resultados Pública'!$A$15,'ResParcial Publico'!D$7:D$60),"") -> 2.33 | D15: =IFERROR(AVERAGEIF('ResParcial Publico'!$A$7:$A$60,'Resultados Pública'!$A$15,'ResParcial Publico'!E$7:E$60),"") -> 3.00 | E15: =IFERROR(AVERAGEIF('ResParcial Publico'!$A$7:$A$60,'Resultados Pública'!$A$15,'ResParcial Publico'!F$7:F$60),"") ->  | F15: =IFERROR(AVERAGEIF('ResParcial Publico'!$A$7:$A$60,'Resultados Pública'!$A$15,'ResParcial Publico'!G$7:G$60),"") ->  | G15: =IFERROR(AVERAGEIF('ResParcial Publico'!$A$7:$A$60,'Resultados Pública'!$A$15,'ResParcial Publico'!H$7:H$60),"") ->  | H15: =IFERROR(AVERAGEIF('ResParcial Publico'!$A$7:$A$60,'Resultados Pública'!$A$15,'ResParcial Publico'!I$7:I$60),"") ->  | I15: =IFERROR(AVERAGEIF('ResParcial Publico'!$A$7:$A$60,'Resultados Pública'!$A$15,'ResParcial Publico'!J$7:J$60),"") ->  | J15: =IFERROR(AVERAGEIF('ResParcial Publico'!$A$7:$A$60,'Resultados Pública'!$A$15,'ResParcial Publico'!K$7:K$60),"") ->  | K15: =IFERROR(AVERAGEIF('ResParcial Publico'!$A$7:$A$60,'Resultados Pública'!$A$15,'ResParcial Publico'!L$7:L$60),"") -> 
A16: Económico | B16: =IFERROR(AVERAGEIF('ResParcial Publico'!$A$7:$A$60,'Resultados Pública'!$A$16,'ResParcial Publico'!C$7:C$60),"") -> 4.00 | C16: =IFERROR(AVERAGEIF('ResParcial Publico'!$A$7:$A$60,'Resultados Pública'!$A$16,'ResParcial Publico'!D$7:D$60),"") -> 1.00 | D16: =IFERROR(AVERAGEIF('ResParcial Publico'!$A$7:$A$60,'Resultados Pública'!$A$16,'ResParcial Publico'!E$7:E$60),"") ->  | E16: =IFERROR(AVERAGEIF('ResParcial Publico'!$A$7:$A$60,'Resultados Pública'!$A$16,'ResParcial Publico'!F$7:F$60),"") ->  | F16: =IFERROR(AVERAGEIF('ResParcial Publico'!$A$7:$A$60,'Resultados Pública'!$A$16,'ResParcial Publico'!G$7:G$60),"") ->  | G16: =IFERROR(AVERAGEIF('ResParcial Publico'!$A$7:$A$60,'Resultados Pública'!$A$16,'ResParcial Publico'!H$7:H$60),"") ->  | H16: =IFERROR(AVERAGEIF('ResParcial Publico'!$A$7:$A$60,'Resultados Pública'!$A$16,'ResParcial Publico'!I$7:I$60),"") ->  | I16: =IFERROR(AVERAGEIF('ResParcial Publico'!$A$7:$A$60,'Resultados Pública'!$A$16,'ResParcial Publico'!J$7:J$60),"") ->  | J16: =IFERROR(AVERAGEIF('ResParcial Publico'!$A$7:$A$60,'Resultados Pública'!$A$16,'ResParcial Publico'!K$7:K$60),"") ->  | K16: =IFERROR(AVERAGEIF('ResParcial Publico'!$A$7:$A$60,'Resultados Pública'!$A$16,'ResParcial Publico'!L$7:L$60),"") -> 
A17: Legislativo/ normativo | B17: =IFERROR(AVERAGEIF('ResParcial Publico'!$A$7:$A$60,'Resultados Pública'!$A$17,'ResParcial Publico'!C$7:C$60),"") ->  | C17: =IFERROR(AVERAGEIF('ResParcial Publico'!$A$7:$A$60,'Resultados Pública'!$A$17,'ResParcial Publico'!D$7:D$60),"") ->  | D17: =IFERROR(AVERAGEIF('ResParcial Publico'!$A$7:$A$60,'Resultados Pública'!$A$17,'ResParcial Publico'!E$7:E$60),"") ->  | E17: =IFERROR(AVERAGEIF('ResParcial Publico'!$A$7:$A$60,'Resultados Pública'!$A$17,'ResParcial Publico'!F$7:F$60),"") ->  | F17: =IFERROR(AVERAGEIF('ResParcial Publico'!$A$7:$A$60,'Resultados Pública'!$A$17,'ResParcial Publico'!G$7:G$60),"") ->  | G17: =IFERROR(AVERAGEIF('ResParcial Publico'!$A$7:$A$60,'Resultados Pública'!$A$17,'ResParcial Publico'!H$7:H$60),"") ->  | H17: =IFERROR(AVERAGEIF('ResParcial Publico'!$A$7:$A$60,'Resultados Pública'!$A$17,'ResParcial Publico'!I$7:I$60),"") ->  | I17: =IFERROR(AVERAGEIF('ResParcial Publico'!$A$7:$A$60,'Resultados Pública'!$A$17,'ResParcial Publico'!J$7:J$60),"") ->  | J17: =IFERROR(AVERAGEIF('ResParcial Publico'!$A$7:$A$60,'Resultados Pública'!$A$17,'ResParcial Publico'!K$7:K$60),"") ->  | K17: =IFERROR(AVERAGEIF('ResParcial Publico'!$A$7:$A$60,'Resultados Pública'!$A$17,'ResParcial Publico'!L$7:L$60),"") -> 
A18: Social | B18: =IFERROR(AVERAGEIF('ResParcial Publico'!$A$7:$A$60,'Resultados Pública'!$A$18,'ResParcial Publico'!C$7:C$60),"") ->  | C18: =IFERROR(AVERAGEIF('ResParcial Publico'!$A$7:$A$60,'Resultados Pública'!$A$18,'ResParcial Publico'!D$7:D$60),"") ->  | D18: =IFERROR(AVERAGEIF('ResParcial Publico'!$A$7:$A$60,'Resultados Pública'!$A$18,'ResParcial Publico'!E$7:E$60),"") ->  | E18: =IFERROR(AVERAGEIF('ResParcial Publico'!$A$7:$A$60,'Resultados Pública'!$A$18,'ResParcial Publico'!F$7:F$60),"") ->  | F18: =IFERROR(AVERAGEIF('ResParcial Publico'!$A$7:$A$60,'Resultados Pública'!$A$18,'ResParcial Publico'!G$7:G$60),"") ->  | G18: =IFERROR(AVERAGEIF('ResParcial Publico'!$A$7:$A$60,'Resultados Pública'!$A$18,'ResParcial Publico'!H$7:H$60),"") ->  | H18: =IFERROR(AVERAGEIF('ResParcial Publico'!$A$7:$A$60,'Resultados Pública'!$A$18,'ResParcial Publico'!I$7:I$60),"") ->  | I18: =IFERROR(AVERAGEIF('ResParcial Publico'!$A$7:$A$60,'Resultados Pública'!$A$18,'ResParcial Publico'!J$7:J$60),"") ->  | J18: =IFERROR(AVERAGEIF('ResParcial Publico'!$A$7:$A$60,'Resultados Pública'!$A$18,'ResParcial Publico'!K$7:K$60),"") ->  | K18: =IFERROR(AVERAGEIF('ResParcial Publico'!$A$7:$A$60,'Resultados Pública'!$A$18,'ResParcial Publico'!L$7:L$60),"") -> 
A19: Técnico | B19: =IFERROR(AVERAGEIF('ResParcial Publico'!$A$7:$A$60,'Resultados Pública'!$A$19,'ResParcial Publico'!C$7:C$60),"") ->  | C19: =IFERROR(AVERAGEIF('ResParcial Publico'!$A$7:$A$60,'Resultados Pública'!$A$19,'ResParcial Publico'!D$7:D$60),"") ->  | D19: =IFERROR(AVERAGEIF('ResParcial Publico'!$A$7:$A$60,'Resultados Pública'!$A$19,'ResParcial Publico'!E$7:E$60),"") ->  | E19: =IFERROR(AVERAGEIF('ResParcial Publico'!$A$7:$A$60,'Resultados Pública'!$A$19,'ResParcial Publico'!F$7:F$60),"") ->  | F19: =IFERROR(AVERAGEIF('ResParcial Publico'!$A$7:$A$60,'Resultados Pública'!$A$19,'ResParcial Publico'!G$7:G$60),"") ->  | G19: =IFERROR(AVERAGEIF('ResParcial Publico'!$A$7:$A$60,'Resultados Pública'!$A$19,'ResParcial Publico'!H$7:H$60),"") ->  | H19: =IFERROR(AVERAGEIF('ResParcial Publico'!$A$7:$A$60,'Resultados Pública'!$A$19,'ResParcial Publico'!I$7:I$60),"") ->  | I19: =IFERROR(AVERAGEIF('ResParcial Publico'!$A$7:$A$60,'Resultados Pública'!$A$19,'ResParcial Publico'!J$7:J$60),"") ->  | J19: =IFERROR(AVERAGEIF('ResParcial Publico'!$A$7:$A$60,'Resultados Pública'!$A$19,'ResParcial Publico'!K$7:K$60),"") ->  | K19: =IFERROR(AVERAGEIF('ResParcial Publico'!$A$7:$A$60,'Resultados Pública'!$A$19,'ResParcial Publico'!L$7:L$60),"") -> 
A20: Potencial | B20: =IF(Caracterización!B20="Seleccione…","",INDEX('Consulta de Potencial'!$D$14:$H$1134, MATCH(Caracterización!B11, 'Consulta de Potencial'!$C$14:$C$1134, 0), MATCH(Caracterización!B20, 'Consulta de Potencial'!$D$13:$H$13, 0))) -> 0.28 | C20: =IF(Caracterización!C20="Seleccione…","",INDEX('Consulta de Potencial'!$D$14:$H$1134, MATCH(Caracterización!C11, 'Consulta de Potencial'!$C$14:$C$1134, 0), MATCH(Caracterización!C20, 'Consulta de Potencial'!$D$13:$H$13, 0))) -> 0.22 | D20: =IF(Caracterización!D20="Seleccione…","",INDEX('Consulta de Potencial'!$D$14:$H$1134, MATCH(Caracterización!D11, 'Consulta de Potencial'!$C$14:$C$1134, 0), MATCH(Caracterización!D20, 'Consulta de Potencial'!$D$13:$H$13, 0))) -> 0.26 | E20: =IF(Caracterización!E20="Seleccione…","",INDEX('Consulta de Potencial'!$D$14:$H$1134, MATCH(Caracterización!E11, 'Consulta de Potencial'!$C$14:$C$1134, 0), MATCH(Caracterización!E20, 'Consulta de Potencial'!$D$13:$H$13, 0))) -> 0.29 | F20: =IF(Caracterización!F20="Seleccione…","",INDEX('Consulta de Potencial'!$D$14:$H$1134, MATCH(Caracterización!F11, 'Consulta de Potencial'!$C$14:$C$1134, 0), MATCH(Caracterización!F20, 'Consulta de Potencial'!$D$13:$H$13, 0))) -> 0.27 | G20: =IF(Caracterización!G20="Seleccione…","",INDEX('Consulta de Potencial'!$D$14:$H$1134, MATCH(Caracterización!G11, 'Consulta de Potencial'!$C$14:$C$1134, 0), MATCH(Caracterización!G20, 'Consulta de Potencial'!$D$13:$H$13, 0))) -> 0.43 | H20: =IF(Caracterización!H20="Seleccione…","",INDEX('Consulta de Potencial'!$D$14:$H$1134, MATCH(Caracterización!H11, 'Consulta de Potencial'!$C$14:$C$1134, 0), MATCH(Caracterización!H20, 'Consulta de Potencial'!$D$13:$H$13, 0))) -> 0.35 | I20: =IF(Caracterización!I20="Seleccione…","",INDEX('Consulta de Potencial'!$D$14:$H$1134, MATCH(Caracterización!I11, 'Consulta de Potencial'!$C$14:$C$1134, 0), MATCH(Caracterización!I20, 'Consulta de Potencial'!$D$13:$H$13, 0))) -> 0.22 | J20: =IF(Caracterización!J20="Seleccione…","",INDEX('Consulta de Potencial'!$D$14:$H$1134, MATCH(Caracterización!J11, 'Consulta de Potencial'!$C$14:$C$1134, 0), MATCH(Caracterización!J20, 'Consulta de Potencial'!$D$13:$H$13, 0))) -> 0.21 | K20: =IF(Caracterización!K20="Seleccione…","",INDEX('Consulta de Potencial'!$D$14:$H$1134, MATCH(Caracterización!K11, 'Consulta de Potencial'!$C$14:$C$1134, 0), MATCH(Caracterización!K20, 'Consulta de Potencial'!$D$13:$H$13, 0))) -> 0.66
A21: Puntaje de Priorización | B21: =IF(SUMPRODUCT((B15:B19<>0)*(B15:B19<>""))=0,0,IF(OR(Caracterización!B11="Seleccione…",Caracterización!B20="Seleccione…"),"Debe seleccionar el municipio y el tipo de energía a implementar",(SUMPRODUCT('Calificación Pública'!$E$7:$E$9,'ResParcial Publico'!C7:C9)*'Resultados Pública'!$B$5+SUMPRODUCT('Calificación Pública'!$E$10:$E$18,'ResParcial Publico'!C10:C18)*'Resultados Pública'!$B$6+SUMPRODUCT('Calificación Pública'!$E$19:$E$21,'ResParcial Publico'!C19:C21)*'Resultados Pública'!$B$7+SUMPRODUCT('Calificación Pública'!$E$22:$E$37,'ResParcial Publico'!C22:C37)*'Resultados Pública'!$B$8+SUMPRODUCT('Calificación Pública'!$E$38:$E$44,'ResParcial Publico'!C38:C44)*'Resultados Pública'!$B$9)+B20)) -> 0.92 | C21: =IF(SUMPRODUCT((C15:C19<>0)*(C15:C19<>""))=0,0,IF(OR(Caracterización!C11="Seleccione…",Caracterización!C20="Seleccione…"),"Debe seleccionar el municipio y el tipo de energía a implementar",(SUMPRODUCT('Calificación Pública'!$E$7:$E$9,'ResParcial Publico'!D7:D9)*'Resultados Pública'!$B$5+SUMPRODUCT('Calificación Pública'!$E$10:$E$18,'ResParcial Publico'!D10:D18)*'Resultados Pública'!$B$6+SUMPRODUCT('Calificación Pública'!$E$19:$E$21,'ResParcial Publico'!D19:D21)*'Resultados Pública'!$B$7+SUMPRODUCT('Calificación Pública'!$E$22:$E$37,'ResParcial Publico'!D22:D37)*'Resultados Pública'!$B$8+SUMPRODUCT('Calificación Pública'!$E$38:$E$44,'ResParcial Publico'!D38:D44)*'Resultados Pública'!$B$9)+C20)) -> 0.75 | D21: =IF(SUMPRODUCT((D15:D19<>0)*(D15:D19<>""))=0,0,IF(OR(Caracterización!D11="Seleccione…",Caracterización!D20="Seleccione…"),"Debe seleccionar el municipio y el tipo de energía a implementar",(SUMPRODUCT('Calificación Pública'!$E$7:$E$9,'ResParcial Publico'!E7:E9)*'Resultados Pública'!$B$5+SUMPRODUCT('Calificación Pública'!$E$10:$E$18,'ResParcial Publico'!E10:E18)*'Resultados Pública'!$B$6+SUMPRODUCT('Calificación Pública'!$E$19:$E$21,'ResParcial Publico'!E19:E21)*'Resultados Pública'!$B$7+SUMPRODUCT('Calificación Pública'!$E$22:$E$37,'ResParcial Publico'!E22:E37)*'Resultados Pública'!$B$8+SUMPRODUCT('Calificación Pública'!$E$38:$E$44,'ResParcial Publico'!E38:E44)*'Resultados Pública'!$B$9)+D20)) -> 0.46 | E21: =IF(SUMPRODUCT((E15:E19<>0)*(E15:E19<>""))=0,0,IF(OR(Caracterización!E11="Seleccione…",Caracterización!E20="Seleccione…"),"Debe seleccionar el municipio y el tipo de energía a implementar",(SUMPRODUCT('Calificación Pública'!$E$7:$E$9,'ResParcial Publico'!F7:F9)*'Resultados Pública'!$B$5+SUMPRODUCT('Calificación Pública'!$E$10:$E$18,'ResParcial Publico'!F10:F18)*'Resultados Pública'!$B$6+SUMPRODUCT('Calificación Pública'!$E$19:$E$21,'ResParcial Publico'!F19:F21)*'Resultados Pública'!$B$7+SUMPRODUCT('Calificación Pública'!$E$22:$E$37,'ResParcial Publico'!F22:F37)*'Resultados Pública'!$B$8+SUMPRODUCT('Calificación Pública'!$E$38:$E$44,'ResParcial Publico'!F38:F44)*'Resultados Pública'!$B$9)+E20)) -> 0.00 | F21: =IF(SUMPRODUCT((F15:F19<>0)*(F15:F19<>""))=0,0,IF(OR(Caracterización!F11="Seleccione…",Caracterización!F20="Seleccione…"),"Debe seleccionar el municipio y el tipo de energía a implementar",(SUMPRODUCT('Calificación Pública'!$E$7:$E$9,'ResParcial Publico'!G7:G9)*'Resultados Pública'!$B$5+SUMPRODUCT('Calificación Pública'!$E$10:$E$18,'ResParcial Publico'!G10:G18)*'Resultados Pública'!$B$6+SUMPRODUCT('Calificación Pública'!$E$19:$E$21,'ResParcial Publico'!G19:G21)*'Resultados Pública'!$B$7+SUMPRODUCT('Calificación Pública'!$E$22:$E$37,'ResParcial Publico'!G22:G37)*'Resultados Pública'!$B$8+SUMPRODUCT('Calificación Pública'!$E$38:$E$44,'ResParcial Publico'!G38:G44)*'Resultados Pública'!$B$9)+F20)) -> 0.00 | G21: =IF(SUMPRODUCT((G15:G19<>0)*(G15:G19<>""))=0,0,IF(OR(Caracterización!G11="Seleccione…",Caracterización!G20="Seleccione…"),"Debe seleccionar el municipio y el tipo de energía a implementar",(SUMPRODUCT('Calificación Pública'!$E$7:$E$9,'ResParcial Publico'!H7:H9)*'Resultados Pública'!$B$5+SUMPRODUCT('Calificación Pública'!$E$10:$E$18,'ResParcial Publico'!H10:H18)*'Resultados Pública'!$B$6+SUMPRODUCT('Calificación Pública'!$E$19:$E$21,'ResParcial Publico'!H19:H21)*'Resultados Pública'!$B$7+SUMPRODUCT('Calificación Pública'!$E$22:$E$37,'ResParcial Publico'!H22:H37)*'Resultados Pública'!$B$8+SUMPRODUCT('Calificación Pública'!$E$38:$E$44,'ResParcial Publico'!H38:H44)*'Resultados Pública'!$B$9)+G20)) -> 0.00 | H21: =IF(SUMPRODUCT((H15:H19<>0)*(H15:H19<>""))=0,0,IF(OR(Caracterización!H11="Seleccione…",Caracterización!H20="Seleccione…"),"Debe seleccionar el municipio y el tipo de energía a implementar",(SUMPRODUCT('Calificación Pública'!$E$7:$E$9,'ResParcial Publico'!I7:I9)*'Resultados Pública'!$B$5+SUMPRODUCT('Calificación Pública'!$E$10:$E$18,'ResParcial Publico'!I10:I18)*'Resultados Pública'!$B$6+SUMPRODUCT('Calificación Pública'!$E$19:$E$21,'ResParcial Publico'!I19:I21)*'Resultados Pública'!$B$7+SUMPRODUCT('Calificación Pública'!$E$22:$E$37,'ResParcial Publico'!I22:I37)*'Resultados Pública'!$B$8+SUMPRODUCT('Calificación Pública'!$E$38:$E$44,'ResParcial Publico'!I38:I44)*'Resultados Pública'!$B$9)+H20)) -> 0.00 | I21: =IF(SUMPRODUCT((I15:I19<>0)*(I15:I19<>""))=0,0,IF(OR(Caracterización!I11="Seleccione…",Caracterización!I20="Seleccione…"),"Debe seleccionar el municipio y el tipo de energía a implementar",(SUMPRODUCT('Calificación Pública'!$E$7:$E$9,'ResParcial Publico'!J7:J9)*'Resultados Pública'!$B$5+SUMPRODUCT('Calificación Pública'!$E$10:$E$18,'ResParcial Publico'!J10:J18)*'Resultados Pública'!$B$6+SUMPRODUCT('Calificación Pública'!$E$19:$E$21,'ResParcial Publico'!J19:J21)*'Resultados Pública'!$B$7+SUMPRODUCT('Calificación Pública'!$E$22:$E$37,'ResParcial Publico'!J22:J37)*'Resultados Pública'!$B$8+SUMPRODUCT('Calificación Pública'!$E$38:$E$44,'ResParcial Publico'!J38:J44)*'Resultados Pública'!$B$9)+I20)) -> 0.00 | J21: =IF(SUMPRODUCT((J15:J19<>0)*(J15:J19<>""))=0,0,IF(OR(Caracterización!J11="Seleccione…",Caracterización!J20="Seleccione…"),"Debe seleccionar el municipio y el tipo de energía a implementar",(SUMPRODUCT('Calificación Pública'!$E$7:$E$9,'ResParcial Publico'!K7:K9)*'Resultados Pública'!$B$5+SUMPRODUCT('Calificación Pública'!$E$10:$E$18,'ResParcial Publico'!K10:K18)*'Resultados Pública'!$B$6+SUMPRODUCT('Calificación Pública'!$E$19:$E$21,'ResParcial Publico'!K19:K21)*'Resultados Pública'!$B$7+SUMPRODUCT('Calificación Pública'!$E$22:$E$37,'ResParcial Publico'!K22:K37)*'Resultados Pública'!$B$8+SUMPRODUCT('Calificación Pública'!$E$38:$E$44,'ResParcial Publico'!K38:K44)*'Resultados Pública'!$B$9)+J20)) -> 0.00 | K21: =IF(SUMPRODUCT((K15:K19<>0)*(K15:K19<>""))=0,0,IF(OR(Caracterización!K11="Seleccione…",Caracterización!K20="Seleccione…"),"Debe seleccionar el municipio y el tipo de energía a implementar",(SUMPRODUCT('Calificación Pública'!$E$7:$E$9,'ResParcial Publico'!L7:L9)*'Resultados Pública'!$B$5+SUMPRODUCT('Calificación Pública'!$E$10:$E$18,'ResParcial Publico'!L10:L18)*'Resultados Pública'!$B$6+SUMPRODUCT('Calificación Pública'!$E$19:$E$21,'ResParcial Publico'!L19:L21)*'Resultados Pública'!$B$7+SUMPRODUCT('Calificación Pública'!$E$22:$E$37,'ResParcial Publico'!L22:L37)*'Resultados Pública'!$B$8+SUMPRODUCT('Calificación Pública'!$E$38:$E$44,'ResParcial Publico'!L38:L44)*'Resultados Pública'!$B$9)+K20)) -> 0.00
A22: Resultados ordenados de mayor a menor Aquí puedes ver las calificaciones organizadas de forma automática para que identifiques las mejores opciones rápidamente.
A24: Comunidad | B24: Calificación Final Priorización | C24: Departamento | D24: Municipio | E24: Estado actual de la comunidad energética | F24: Tipo de energía a implementar en la comunidad | G24: Capacidad estimada de generación de energía del proyecto (kWh) | H24: No. Miembros en la comunidad | I24: Descripción del área (Ha) | J24: Zona no interconectada ZNI | K24: Costo total del proyecto (COP) | L24: % de los costos de capital que se requiere sean cubiertos | M24: % Fortalezas | N24: Alerta área protegida
A26: =_xlfn._xlws.SORT(_xlfn._xlws.FILTER(_xlfn.HSTACK(TRANSPOSE(B14:K14),TRANSPOSE(B21:K21)),(TRANSPOSE(B21:K21)<>0)*(TRANSPOSE(B21:K21)<>"Debe seleccionar el municipio y el tipo de energía a implementar")),2,-1) -> C1 | B26: 0.92 | C26: =IF(AND(A26<>0, _xlfn.XLOOKUP(A26,Caracterización!$B$8:$K$8,Caracterización!$B$10:$K$10,"")="Seleccione ..."), "Debe indicarlo en la caracterización de la comunidad", IF(A26<>0, _xlfn.XLOOKUP(A26,Caracterización!$B$8:$K$8,Caracterización!$B$10:$K$10,""), "")) -> Tolima | D26: =IF(AND(A26<>0, _xlfn.XLOOKUP(A26,Caracterización!$B$8:$K$8,Caracterización!$B$11:$K$11,"")="Seleccione ..."), "Debe indicarlo en la caracterización de la comunidad", IF(A26<>0, _xlfn.XLOOKUP(A26,Caracterización!$B$8:$K$8,Caracterización!$B$11:$K$11,""), "")) -> Casabianca | E26: =IF(AND(A26<>0, _xlfn.XLOOKUP(A26,Caracterización!$B$8:$K$8,Caracterización!$B$19:$K$19,"")="Seleccione ..."), "Debe indicarlo en la caracterización de la comunidad", IF(A26<>0, _xlfn.XLOOKUP(A26,Caracterización!$B$8:$K$8,Caracterización!$B$19:$K$19,""), "")) -> Inicial | F26: =IF(AND(A26<>0, _xlfn.XLOOKUP(A26,Caracterización!$B$8:$K$8,Caracterización!$B$20:$K$20,"")="Seleccione ..."), "Debe indicarlo en la caracterización de la comunidad", IF(A26<>0, _xlfn.XLOOKUP(A26,Caracterización!$B$8:$K$8,Caracterización!$B$20:$K$20,""), "")) -> Biomasa vegetal | G26: =IF(AND(A26<>0, _xlfn.XLOOKUP(A26,Caracterización!$B$8:$K$8,Caracterización!$B$22:$K$22,"")="Seleccione ..."), "Debe indicarlo en la caracterización de la comunidad", IF(A26<>0, _xlfn.XLOOKUP(A26,Caracterización!$B$8:$K$8,Caracterización!$B$22:$K$22,""), "")) -> 0 | H26: =IF(AND(A26<>0, _xlfn.XLOOKUP(A26,Caracterización!$B$8:$K$8,Caracterización!$B$23:$K$23,"")="Seleccione ..."), "Debe indicarlo en la caracterización de la comunidad", IF(A26<>0, _xlfn.XLOOKUP(A26,Caracterización!$B$8:$K$8,Caracterización!$B$23:$K$23,""), "")) -> 0 | I26: =IF(AND(A26<>0, _xlfn.XLOOKUP(A26,Caracterización!$B$8:$K$8,Caracterización!$B$28:$K$28,"")="Seleccione ..."), "Debe indicarlo en la caracterización de la comunidad", IF(A26<>0, _xlfn.XLOOKUP(A26,Caracterización!$B$8:$K$8,Caracterización!$B$28:$K$28,""), "")) -> 0 | J26: =IF(AND(A26<>0, _xlfn.XLOOKUP(A26,Caracterización!$B$8:$K$8,Caracterización!$B$37:$K$37,"")="Seleccione ..."), "Debe indicarlo en la caracterización de la comunidad", IF(A26<>0, _xlfn.XLOOKUP(A26,Caracterización!$B$8:$K$8,Caracterización!$B$37:$K$37,""), "")) -> 0 | K26: =IF(AND(A26<>0, _xlfn.XLOOKUP(A26,Caracterización!$B$8:$K$8,Caracterización!$B$40:$K$40,"")="Seleccione ..."), "Debe indicarlo en la caracterización de la comunidad", IF(A26<>0, _xlfn.XLOOKUP(A26,Caracterización!$B$8:$K$8,Caracterización!$B$40:$K$40,""), "")) -> 50 | L26: =IF(AND(A26<>0, _xlfn.XLOOKUP(A26,Caracterización!$B$8:$K$8,Caracterización!$B$42:$K$42,"")="Seleccione ..."), "Debe indicarlo en la caracterización de la comunidad", IF(A26<>0, _xlfn.XLOOKUP(A26,Caracterización!$B$8:$K$8,Caracterización!$B$42:$K$42,""), "")) -> 1 | M26: =IF(AND(A26<>0, _xlfn.XLOOKUP(A26,Caracterización!$B$8:$K$8,Caracterización!$B$72:$K$72,"")="Seleccione ..."), "Debe indicarlo en la caracterización de la comunidad", IF(A26<>0, _xlfn.XLOOKUP(A26,Caracterización!$B$8:$K$8,Caracterización!$B$72:$K$72,""), "")) -> 68% | N26: =IF(AND(A26<>0, _xlfn.XLOOKUP(A26,Caracterización!$B$8:$K$8,Caracterización!$B$36:$K$36,"")="Seleccione ..."), "Debe indicarlo en la caracterización de la comunidad", IF(A26<>0, _xlfn.XLOOKUP(A26,Caracterización!$B$8:$K$8,Caracterización!$B$36:$K$36,""), "")) -> Sí está en área protegida
A27: C2 | B27: 0.75 | C27: =IF(AND(A27<>0, _xlfn.XLOOKUP(A27,Caracterización!$B$8:$K$8,Caracterización!$B$10:$K$10,"")="Seleccione ..."), "Debe indicarlo en la caracterización de la comunidad", IF(A27<>0, _xlfn.XLOOKUP(A27,Caracterización!$B$8:$K$8,Caracterización!$B$10:$K$10,""), "")) -> Bogotá, D.C | D27: =IF(AND(A27<>0, _xlfn.XLOOKUP(A27,Caracterización!$B$8:$K$8,Caracterización!$B$11:$K$11,"")="Seleccione ..."), "Debe indicarlo en la caracterización de la comunidad", IF(A27<>0, _xlfn.XLOOKUP(A27,Caracterización!$B$8:$K$8,Caracterización!$B$11:$K$11,""), "")) -> Bogotá, D.C. | E27: =IF(AND(A27<>0, _xlfn.XLOOKUP(A27,Caracterización!$B$8:$K$8,Caracterización!$B$19:$K$19,"")="Seleccione ..."), "Debe indicarlo en la caracterización de la comunidad", IF(A27<>0, _xlfn.XLOOKUP(A27,Caracterización!$B$8:$K$8,Caracterización!$B$19:$K$19,""), "")) -> En operación | F27: =IF(AND(A27<>0, _xlfn.XLOOKUP(A27,Caracterización!$B$8:$K$8,Caracterización!$B$20:$K$20,"")="Seleccione ..."), "Debe indicarlo en la caracterización de la comunidad", IF(A27<>0, _xlfn.XLOOKUP(A27,Caracterización!$B$8:$K$8,Caracterización!$B$20:$K$20,""), "")) -> Biomasa vegetal | G27: =IF(AND(A27<>0, _xlfn.XLOOKUP(A27,Caracterización!$B$8:$K$8,Caracterización!$B$22:$K$22,"")="Seleccione ..."), "Debe indicarlo en la caracterización de la comunidad", IF(A27<>0, _xlfn.XLOOKUP(A27,Caracterización!$B$8:$K$8,Caracterización!$B$22:$K$22,""), "")) -> 0 | H27: =IF(AND(A27<>0, _xlfn.XLOOKUP(A27,Caracterización!$B$8:$K$8,Caracterización!$B$23:$K$23,"")="Seleccione ..."), "Debe indicarlo en la caracterización de la comunidad", IF(A27<>0, _xlfn.XLOOKUP(A27,Caracterización!$B$8:$K$8,Caracterización!$B$23:$K$23,""), "")) -> 0 | I27: =IF(AND(A27<>0, _xlfn.XLOOKUP(A27,Caracterización!$B$8:$K$8,Caracterización!$B$28:$K$28,"")="Seleccione ..."), "Debe indicarlo en la caracterización de la comunidad", IF(A27<>0, _xlfn.XLOOKUP(A27,Caracterización!$B$8:$K$8,Caracterización!$B$28:$K$28,""), "")) -> 0 | J27: =IF(AND(A27<>0, _xlfn.XLOOKUP(A27,Caracterización!$B$8:$K$8,Caracterización!$B$37:$K$37,"")="Seleccione ..."), "Debe indicarlo en la caracterización de la comunidad", IF(A27<>0, _xlfn.XLOOKUP(A27,Caracterización!$B$8:$K$8,Caracterización!$B$37:$K$37,""), "")) -> 0 | K27: =IF(AND(A27<>0, _xlfn.XLOOKUP(A27,Caracterización!$B$8:$K$8,Caracterización!$B$40:$K$40,"")="Seleccione ..."), "Debe indicarlo en la caracterización de la comunidad", IF(A27<>0, _xlfn.XLOOKUP(A27,Caracterización!$B$8:$K$8,Caracterización!$B$40:$K$40,""), "")) -> 0 | L27: =IF(AND(A27<>0, _xlfn.XLOOKUP(A27,Caracterización!$B$8:$K$8,Caracterización!$B$42:$K$42,"")="Seleccione ..."), "Debe indicarlo en la caracterización de la comunidad", IF(A27<>0, _xlfn.XLOOKUP(A27,Caracterización!$B$8:$K$8,Caracterización!$B$42:$K$42,""), "")) -> 0 | M27: =IF(AND(A27<>0, _xlfn.XLOOKUP(A27,Caracterización!$B$8:$K$8,Caracterización!$B$72:$K$72,"")="Seleccione ..."), "Debe indicarlo en la caracterización de la comunidad", IF(A27<>0, _xlfn.XLOOKUP(A27,Caracterización!$B$8:$K$8,Caracterización!$B$72:$K$72,""), "")) -> 72% | N27: =IF(AND(A27<>0, _xlfn.XLOOKUP(A27,Caracterización!$B$8:$K$8,Caracterización!$B$36:$K$36,"")="Seleccione ..."), "Debe indicarlo en la caracterización de la comunidad", IF(A27<>0, _xlfn.XLOOKUP(A27,Caracterización!$B$8:$K$8,Caracterización!$B$36:$K$36,""), "")) -> No está en área protegida
A28: C3 | B28: 0.46 | C28: =IF(AND(A28<>0, _xlfn.XLOOKUP(A28,Caracterización!$B$8:$K$8,Caracterización!$B$10:$K$10,"")="Seleccione ..."), "Debe indicarlo en la caracterización de la comunidad", IF(A28<>0, _xlfn.XLOOKUP(A28,Caracterización!$B$8:$K$8,Caracterización!$B$10:$K$10,""), "")) -> Caldas | D28: =IF(AND(A28<>0, _xlfn.XLOOKUP(A28,Caracterización!$B$8:$K$8,Caracterización!$B$11:$K$11,"")="Seleccione ..."), "Debe indicarlo en la caracterización de la comunidad", IF(A28<>0, _xlfn.XLOOKUP(A28,Caracterización!$B$8:$K$8,Caracterización!$B$11:$K$11,""), "")) -> La Dorada | E28: =IF(AND(A28<>0, _xlfn.XLOOKUP(A28,Caracterización!$B$8:$K$8,Caracterización!$B$19:$K$19,"")="Seleccione ..."), "Debe indicarlo en la caracterización de la comunidad", IF(A28<>0, _xlfn.XLOOKUP(A28,Caracterización!$B$8:$K$8,Caracterización!$B$19:$K$19,""), "")) -> Seleccione... | F28: =IF(AND(A28<>0, _xlfn.XLOOKUP(A28,Caracterización!$B$8:$K$8,Caracterización!$B$20:$K$20,"")="Seleccione ..."), "Debe indicarlo en la caracterización de la comunidad", IF(A28<>0, _xlfn.XLOOKUP(A28,Caracterización!$B$8:$K$8,Caracterización!$B$20:$K$20,""), "")) -> Biomasa vegetal | G28: =IF(AND(A28<>0, _xlfn.XLOOKUP(A28,Caracterización!$B$8:$K$8,Caracterización!$B$22:$K$22,"")="Seleccione ..."), "Debe indicarlo en la caracterización de la comunidad", IF(A28<>0, _xlfn.XLOOKUP(A28,Caracterización!$B$8:$K$8,Caracterización!$B$22:$K$22,""), "")) -> 0 | H28: =IF(AND(A28<>0, _xlfn.XLOOKUP(A28,Caracterización!$B$8:$K$8,Caracterización!$B$23:$K$23,"")="Seleccione ..."), "Debe indicarlo en la caracterización de la comunidad", IF(A28<>0, _xlfn.XLOOKUP(A28,Caracterización!$B$8:$K$8,Caracterización!$B$23:$K$23,""), "")) -> 0 | I28: =IF(AND(A28<>0, _xlfn.XLOOKUP(A28,Caracterización!$B$8:$K$8,Caracterización!$B$28:$K$28,"")="Seleccione ..."), "Debe indicarlo en la caracterización de la comunidad", IF(A28<>0, _xlfn.XLOOKUP(A28,Caracterización!$B$8:$K$8,Caracterización!$B$28:$K$28,""), "")) -> 0 | J28: =IF(AND(A28<>0, _xlfn.XLOOKUP(A28,Caracterización!$B$8:$K$8,Caracterización!$B$37:$K$37,"")="Seleccione ..."), "Debe indicarlo en la caracterización de la comunidad", IF(A28<>0, _xlfn.XLOOKUP(A28,Caracterización!$B$8:$K$8,Caracterización!$B$37:$K$37,""), "")) -> 0 | K28: =IF(AND(A28<>0, _xlfn.XLOOKUP(A28,Caracterización!$B$8:$K$8,Caracterización!$B$40:$K$40,"")="Seleccione ..."), "Debe indicarlo en la caracterización de la comunidad", IF(A28<>0, _xlfn.XLOOKUP(A28,Caracterización!$B$8:$K$8,Caracterización!$B$40:$K$40,""), "")) -> 0 | L28: =IF(AND(A28<>0, _xlfn.XLOOKUP(A28,Caracterización!$B$8:$K$8,Caracterización!$B$42:$K$42,"")="Seleccione ..."), "Debe indicarlo en la caracterización de la comunidad", IF(A28<>0, _xlfn.XLOOKUP(A28,Caracterización!$B$8:$K$8,Caracterización!$B$42:$K$42,""), "")) -> 0 | M28: =IF(AND(A28<>0, _xlfn.XLOOKUP(A28,Caracterización!$B$8:$K$8,Caracterización!$B$72:$K$72,"")="Seleccione ..."), "Debe indicarlo en la caracterización de la comunidad", IF(A28<>0, _xlfn.XLOOKUP(A28,Caracterización!$B$8:$K$8,Caracterización!$B$72:$K$72,""), "")) -> 72% | N28: =IF(AND(A28<>0, _xlfn.XLOOKUP(A28,Caracterización!$B$8:$K$8,Caracterización!$B$36:$K$36,"")="Seleccione ..."), "Debe indicarlo en la caracterización de la comunidad", IF(A28<>0, _xlfn.XLOOKUP(A28,Caracterización!$B$8:$K$8,Caracterización!$B$36:$K$36,""), "")) -> Debe indicarlo en la caracterización de la comunidad
C29: =IF(AND(A29<>0, _xlfn.XLOOKUP(A29,Caracterización!$B$8:$K$8,Caracterización!$B$10:$K$10,"")="Seleccione ..."), "Debe indicarlo en la caracterización de la comunidad", IF(A29<>0, _xlfn.XLOOKUP(A29,Caracterización!$B$8:$K$8,Caracterización!$B$10:$K$10,""), "")) ->  | D29: =IF(AND(A29<>0, _xlfn.XLOOKUP(A29,Caracterización!$B$8:$K$8,Caracterización!$B$11:$K$11,"")="Seleccione ..."), "Debe indicarlo en la caracterización de la comunidad", IF(A29<>0, _xlfn.XLOOKUP(A29,Caracterización!$B$8:$K$8,Caracterización!$B$11:$K$11,""), "")) ->  | E29: =IF(AND(A29<>0, _xlfn.XLOOKUP(A29,Caracterización!$B$8:$K$8,Caracterización!$B$19:$K$19,"")="Seleccione ..."), "Debe indicarlo en la caracterización de la comunidad", IF(A29<>0, _xlfn.XLOOKUP(A29,Caracterización!$B$8:$K$8,Caracterización!$B$19:$K$19,""), "")) ->  | F29: =IF(AND(A29<>0, _xlfn.XLOOKUP(A29,Caracterización!$B$8:$K$8,Caracterización!$B$20:$K$20,"")="Seleccione ..."), "Debe indicarlo en la caracterización de la comunidad", IF(A29<>0, _xlfn.XLOOKUP(A29,Caracterización!$B$8:$K$8,Caracterización!$B$20:$K$20,""), "")) ->  | G29: =IF(AND(A29<>0, _xlfn.XLOOKUP(A29,Caracterización!$B$8:$K$8,Caracterización!$B$22:$K$22,"")="Seleccione ..."), "Debe indicarlo en la caracterización de la comunidad", IF(A29<>0, _xlfn.XLOOKUP(A29,Caracterización!$B$8:$K$8,Caracterización!$B$22:$K$22,""), "")) ->  | H29: =IF(AND(A29<>0, _xlfn.XLOOKUP(A29,Caracterización!$B$8:$K$8,Caracterización!$B$23:$K$23,"")="Seleccione ..."), "Debe indicarlo en la caracterización de la comunidad", IF(A29<>0, _xlfn.XLOOKUP(A29,Caracterización!$B$8:$K$8,Caracterización!$B$23:$K$23,""), "")) ->  | I29: =IF(AND(A29<>0, _xlfn.XLOOKUP(A29,Caracterización!$B$8:$K$8,Caracterización!$B$28:$K$28,"")="Seleccione ..."), "Debe indicarlo en la caracterización de la comunidad", IF(A29<>0, _xlfn.XLOOKUP(A29,Caracterización!$B$8:$K$8,Caracterización!$B$28:$K$28,""), "")) ->  | J29: =IF(AND(A29<>0, _xlfn.XLOOKUP(A29,Caracterización!$B$8:$K$8,Caracterización!$B$37:$K$37,"")="Seleccione ..."), "Debe indicarlo en la caracterización de la comunidad", IF(A29<>0, _xlfn.XLOOKUP(A29,Caracterización!$B$8:$K$8,Caracterización!$B$37:$K$37,""), "")) ->  | K29: =IF(AND(A29<>0, _xlfn.XLOOKUP(A29,Caracterización!$B$8:$K$8,Caracterización!$B$40:$K$40,"")="Seleccione ..."), "Debe indicarlo en la caracterización de la comunidad", IF(A29<>0, _xlfn.XLOOKUP(A29,Caracterización!$B$8:$K$8,Caracterización!$B$40:$K$40,""), "")) ->  | L29: =IF(AND(A29<>0, _xlfn.XLOOKUP(A29,Caracterización!$B$8:$K$8,Caracterización!$B$42:$K$42,"")="Seleccione ..."), "Debe indicarlo en la caracterización de la comunidad", IF(A29<>0, _xlfn.XLOOKUP(A29,Caracterización!$B$8:$K$8,Caracterización!$B$42:$K$42,""), "")) ->  | M29: =IF(AND(A29<>0, _xlfn.XLOOKUP(A29,Caracterización!$B$8:$K$8,Caracterización!$B$72:$K$72,"")="Seleccione ..."), "Debe indicarlo en la caracterización de la comunidad", IF(A29<>0, _xlfn.XLOOKUP(A29,Caracterización!$B$8:$K$8,Caracterización!$B$72:$K$72,""), "")) ->  | N29: =IF(AND(A29<>0, _xlfn.XLOOKUP(A29,Caracterización!$B$8:$K$8,Caracterización!$B$36:$K$36,"")="Seleccione ..."), "Debe indicarlo en la caracterización de la comunidad", IF(A29<>0, _xlfn.XLOOKUP(A29,Caracterización!$B$8:$K$8,Caracterización!$B$36:$K$36,""), "")) -> 
C30: =IF(AND(A30<>0, _xlfn.XLOOKUP(A30,Caracterización!$B$8:$K$8,Caracterización!$B$10:$K$10,"")="Seleccione ..."), "Debe indicarlo en la caracterización de la comunidad", IF(A30<>0, _xlfn.XLOOKUP(A30,Caracterización!$B$8:$K$8,Caracterización!$B$10:$K$10,""), "")) ->  | D30: =IF(AND(A30<>0, _xlfn.XLOOKUP(A30,Caracterización!$B$8:$K$8,Caracterización!$B$11:$K$11,"")="Seleccione ..."), "Debe indicarlo en la caracterización de la comunidad", IF(A30<>0, _xlfn.XLOOKUP(A30,Caracterización!$B$8:$K$8,Caracterización!$B$11:$K$11,""), "")) ->  | E30: =IF(AND(A30<>0, _xlfn.XLOOKUP(A30,Caracterización!$B$8:$K$8,Caracterización!$B$19:$K$19,"")="Seleccione ..."), "Debe indicarlo en la caracterización de la comunidad", IF(A30<>0, _xlfn.XLOOKUP(A30,Caracterización!$B$8:$K$8,Caracterización!$B$19:$K$19,""), "")) ->  | F30: =IF(AND(A30<>0, _xlfn.XLOOKUP(A30,Caracterización!$B$8:$K$8,Caracterización!$B$20:$K$20,"")="Seleccione ..."), "Debe indicarlo en la caracterización de la comunidad", IF(A30<>0, _xlfn.XLOOKUP(A30,Caracterización!$B$8:$K$8,Caracterización!$B$20:$K$20,""), "")) ->  | G30: =IF(AND(A30<>0, _xlfn.XLOOKUP(A30,Caracterización!$B$8:$K$8,Caracterización!$B$22:$K$22,"")="Seleccione ..."), "Debe indicarlo en la caracterización de la comunidad", IF(A30<>0, _xlfn.XLOOKUP(A30,Caracterización!$B$8:$K$8,Caracterización!$B$22:$K$22,""), "")) ->  | H30: =IF(AND(A30<>0, _xlfn.XLOOKUP(A30,Caracterización!$B$8:$K$8,Caracterización!$B$23:$K$23,"")="Seleccione ..."), "Debe indicarlo en la caracterización de la comunidad", IF(A30<>0, _xlfn.XLOOKUP(A30,Caracterización!$B$8:$K$8,Caracterización!$B$23:$K$23,""), "")) ->  | I30: =IF(AND(A30<>0, _xlfn.XLOOKUP(A30,Caracterización!$B$8:$K$8,Caracterización!$B$28:$K$28,"")="Seleccione ..."), "Debe indicarlo en la caracterización de la comunidad", IF(A30<>0, _xlfn.XLOOKUP(A30,Caracterización!$B$8:$K$8,Caracterización!$B$28:$K$28,""), "")) ->  | J30: =IF(AND(A30<>0, _xlfn.XLOOKUP(A30,Caracterización!$B$8:$K$8,Caracterización!$B$37:$K$37,"")="Seleccione ..."), "Debe indicarlo en la caracterización de la comunidad", IF(A30<>0, _xlfn.XLOOKUP(A30,Caracterización!$B$8:$K$8,Caracterización!$B$37:$K$37,""), "")) ->  | K30: =IF(AND(A30<>0, _xlfn.XLOOKUP(A30,Caracterización!$B$8:$K$8,Caracterización!$B$40:$K$40,"")="Seleccione ..."), "Debe indicarlo en la caracterización de la comunidad", IF(A30<>0, _xlfn.XLOOKUP(A30,Caracterización!$B$8:$K$8,Caracterización!$B$40:$K$40,""), "")) ->  | L30: =IF(AND(A30<>0, _xlfn.XLOOKUP(A30,Caracterización!$B$8:$K$8,Caracterización!$B$42:$K$42,"")="Seleccione ..."), "Debe indicarlo en la caracterización de la comunidad", IF(A30<>0, _xlfn.XLOOKUP(A30,Caracterización!$B$8:$K$8,Caracterización!$B$42:$K$42,""), "")) ->  | M30: =IF(AND(A30<>0, _xlfn.XLOOKUP(A30,Caracterización!$B$8:$K$8,Caracterización!$B$72:$K$72,"")="Seleccione ..."), "Debe indicarlo en la caracterización de la comunidad", IF(A30<>0, _xlfn.XLOOKUP(A30,Caracterización!$B$8:$K$8,Caracterización!$B$72:$K$72,""), "")) ->  | N30: =IF(AND(A30<>0, _xlfn.XLOOKUP(A30,Caracterización!$B$8:$K$8,Caracterización!$B$36:$K$36,"")="Seleccione ..."), "Debe indicarlo en la caracterización de la comunidad", IF(A30<>0, _xlfn.XLOOKUP(A30,Caracterización!$B$8:$K$8,Caracterización!$B$36:$K$36,""), "")) -> 
C31: =IF(AND(A31<>0, _xlfn.XLOOKUP(A31,Caracterización!$B$8:$K$8,Caracterización!$B$10:$K$10,"")="Seleccione ..."), "Debe indicarlo en la caracterización de la comunidad", IF(A31<>0, _xlfn.XLOOKUP(A31,Caracterización!$B$8:$K$8,Caracterización!$B$10:$K$10,""), "")) ->  | D31: =IF(AND(A31<>0, _xlfn.XLOOKUP(A31,Caracterización!$B$8:$K$8,Caracterización!$B$11:$K$11,"")="Seleccione ..."), "Debe indicarlo en la caracterización de la comunidad", IF(A31<>0, _xlfn.XLOOKUP(A31,Caracterización!$B$8:$K$8,Caracterización!$B$11:$K$11,""), "")) ->  | E31: =IF(AND(A31<>0, _xlfn.XLOOKUP(A31,Caracterización!$B$8:$K$8,Caracterización!$B$19:$K$19,"")="Seleccione ..."), "Debe indicarlo en la caracterización de la comunidad", IF(A31<>0, _xlfn.XLOOKUP(A31,Caracterización!$B$8:$K$8,Caracterización!$B$19:$K$19,""), "")) ->  | F31: =IF(AND(A31<>0, _xlfn.XLOOKUP(A31,Caracterización!$B$8:$K$8,Caracterización!$B$20:$K$20,"")="Seleccione ..."), "Debe indicarlo en la caracterización de la comunidad", IF(A31<>0, _xlfn.XLOOKUP(A31,Caracterización!$B$8:$K$8,Caracterización!$B$20:$K$20,""), "")) ->  | G31: =IF(AND(A31<>0, _xlfn.XLOOKUP(A31,Caracterización!$B$8:$K$8,Caracterización!$B$22:$K$22,"")="Seleccione ..."), "Debe indicarlo en la caracterización de la comunidad", IF(A31<>0, _xlfn.XLOOKUP(A31,Caracterización!$B$8:$K$8,Caracterización!$B$22:$K$22,""), "")) ->  | H31: =IF(AND(A31<>0, _xlfn.XLOOKUP(A31,Caracterización!$B$8:$K$8,Caracterización!$B$23:$K$23,"")="Seleccione ..."), "Debe indicarlo en la caracterización de la comunidad", IF(A31<>0, _xlfn.XLOOKUP(A31,Caracterización!$B$8:$K$8,Caracterización!$B$23:$K$23,""), "")) ->  | I31: =IF(AND(A31<>0, _xlfn.XLOOKUP(A31,Caracterización!$B$8:$K$8,Caracterización!$B$28:$K$28,"")="Seleccione ..."), "Debe indicarlo en la caracterización de la comunidad", IF(A31<>0, _xlfn.XLOOKUP(A31,Caracterización!$B$8:$K$8,Caracterización!$B$28:$K$28,""), "")) ->  | J31: =IF(AND(A31<>0, _xlfn.XLOOKUP(A31,Caracterización!$B$8:$K$8,Caracterización!$B$37:$K$37,"")="Seleccione ..."), "Debe indicarlo en la caracterización de la comunidad", IF(A31<>0, _xlfn.XLOOKUP(A31,Caracterización!$B$8:$K$8,Caracterización!$B$37:$K$37,""), "")) ->  | K31: =IF(AND(A31<>0, _xlfn.XLOOKUP(A31,Caracterización!$B$8:$K$8,Caracterización!$B$40:$K$40,"")="Seleccione ..."), "Debe indicarlo en la caracterización de la comunidad", IF(A31<>0, _xlfn.XLOOKUP(A31,Caracterización!$B$8:$K$8,Caracterización!$B$40:$K$40,""), "")) ->  | L31: =IF(AND(A31<>0, _xlfn.XLOOKUP(A31,Caracterización!$B$8:$K$8,Caracterización!$B$42:$K$42,"")="Seleccione ..."), "Debe indicarlo en la caracterización de la comunidad", IF(A31<>0, _xlfn.XLOOKUP(A31,Caracterización!$B$8:$K$8,Caracterización!$B$42:$K$42,""), "")) ->  | M31: =IF(AND(A31<>0, _xlfn.XLOOKUP(A31,Caracterización!$B$8:$K$8,Caracterización!$B$72:$K$72,"")="Seleccione ..."), "Debe indicarlo en la caracterización de la comunidad", IF(A31<>0, _xlfn.XLOOKUP(A31,Caracterización!$B$8:$K$8,Caracterización!$B$72:$K$72,""), "")) ->  | N31: =IF(AND(A31<>0, _xlfn.XLOOKUP(A31,Caracterización!$B$8:$K$8,Caracterización!$B$36:$K$36,"")="Seleccione ..."), "Debe indicarlo en la caracterización de la comunidad", IF(A31<>0, _xlfn.XLOOKUP(A31,Caracterización!$B$8:$K$8,Caracterización!$B$36:$K$36,""), "")) -> 
C32: =IF(AND(A32<>0, _xlfn.XLOOKUP(A32,Caracterización!$B$8:$K$8,Caracterización!$B$10:$K$10,"")="Seleccione ..."), "Debe indicarlo en la caracterización de la comunidad", IF(A32<>0, _xlfn.XLOOKUP(A32,Caracterización!$B$8:$K$8,Caracterización!$B$10:$K$10,""), "")) ->  | D32: =IF(AND(A32<>0, _xlfn.XLOOKUP(A32,Caracterización!$B$8:$K$8,Caracterización!$B$11:$K$11,"")="Seleccione ..."), "Debe indicarlo en la caracterización de la comunidad", IF(A32<>0, _xlfn.XLOOKUP(A32,Caracterización!$B$8:$K$8,Caracterización!$B$11:$K$11,""), "")) ->  | E32: =IF(AND(A32<>0, _xlfn.XLOOKUP(A32,Caracterización!$B$8:$K$8,Caracterización!$B$19:$K$19,"")="Seleccione ..."), "Debe indicarlo en la caracterización de la comunidad", IF(A32<>0, _xlfn.XLOOKUP(A32,Caracterización!$B$8:$K$8,Caracterización!$B$19:$K$19,""), "")) ->  | F32: =IF(AND(A32<>0, _xlfn.XLOOKUP(A32,Caracterización!$B$8:$K$8,Caracterización!$B$20:$K$20,"")="Seleccione ..."), "Debe indicarlo en la caracterización de la comunidad", IF(A32<>0, _xlfn.XLOOKUP(A32,Caracterización!$B$8:$K$8,Caracterización!$B$20:$K$20,""), "")) ->  | G32: =IF(AND(A32<>0, _xlfn.XLOOKUP(A32,Caracterización!$B$8:$K$8,Caracterización!$B$22:$K$22,"")="Seleccione ..."), "Debe indicarlo en la caracterización de la comunidad", IF(A32<>0, _xlfn.XLOOKUP(A32,Caracterización!$B$8:$K$8,Caracterización!$B$22:$K$22,""), "")) ->  | H32: =IF(AND(A32<>0, _xlfn.XLOOKUP(A32,Caracterización!$B$8:$K$8,Caracterización!$B$23:$K$23,"")="Seleccione ..."), "Debe indicarlo en la caracterización de la comunidad", IF(A32<>0, _xlfn.XLOOKUP(A32,Caracterización!$B$8:$K$8,Caracterización!$B$23:$K$23,""), "")) ->  | I32: =IF(AND(A32<>0, _xlfn.XLOOKUP(A32,Caracterización!$B$8:$K$8,Caracterización!$B$28:$K$28,"")="Seleccione ..."), "Debe indicarlo en la caracterización de la comunidad", IF(A32<>0, _xlfn.XLOOKUP(A32,Caracterización!$B$8:$K$8,Caracterización!$B$28:$K$28,""), "")) ->  | J32: =IF(AND(A32<>0, _xlfn.XLOOKUP(A32,Caracterización!$B$8:$K$8,Caracterización!$B$37:$K$37,"")="Seleccione ..."), "Debe indicarlo en la caracterización de la comunidad", IF(A32<>0, _xlfn.XLOOKUP(A32,Caracterización!$B$8:$K$8,Caracterización!$B$37:$K$37,""), "")) ->  | K32: =IF(AND(A32<>0, _xlfn.XLOOKUP(A32,Caracterización!$B$8:$K$8,Caracterización!$B$40:$K$40,"")="Seleccione ..."), "Debe indicarlo en la caracterización de la comunidad", IF(A32<>0, _xlfn.XLOOKUP(A32,Caracterización!$B$8:$K$8,Caracterización!$B$40:$K$40,""), "")) ->  | L32: =IF(AND(A32<>0, _xlfn.XLOOKUP(A32,Caracterización!$B$8:$K$8,Caracterización!$B$42:$K$42,"")="Seleccione ..."), "Debe indicarlo en la caracterización de la comunidad", IF(A32<>0, _xlfn.XLOOKUP(A32,Caracterización!$B$8:$K$8,Caracterización!$B$42:$K$42,""), "")) ->  | M32: =IF(AND(A32<>0, _xlfn.XLOOKUP(A32,Caracterización!$B$8:$K$8,Caracterización!$B$72:$K$72,"")="Seleccione ..."), "Debe indicarlo en la caracterización de la comunidad", IF(A32<>0, _xlfn.XLOOKUP(A32,Caracterización!$B$8:$K$8,Caracterización!$B$72:$K$72,""), "")) ->  | N32: =IF(AND(A32<>0, _xlfn.XLOOKUP(A32,Caracterización!$B$8:$K$8,Caracterización!$B$36:$K$36,"")="Seleccione ..."), "Debe indicarlo en la caracterización de la comunidad", IF(A32<>0, _xlfn.XLOOKUP(A32,Caracterización!$B$8:$K$8,Caracterización!$B$36:$K$36,""), "")) -> 
C33: =IF(AND(A33<>0, _xlfn.XLOOKUP(A33,Caracterización!$B$8:$K$8,Caracterización!$B$10:$K$10,"")="Seleccione ..."), "Debe indicarlo en la caracterización de la comunidad", IF(A33<>0, _xlfn.XLOOKUP(A33,Caracterización!$B$8:$K$8,Caracterización!$B$10:$K$10,""), "")) ->  | D33: =IF(AND(A33<>0, _xlfn.XLOOKUP(A33,Caracterización!$B$8:$K$8,Caracterización!$B$11:$K$11,"")="Seleccione ..."), "Debe indicarlo en la caracterización de la comunidad", IF(A33<>0, _xlfn.XLOOKUP(A33,Caracterización!$B$8:$K$8,Caracterización!$B$11:$K$11,""), "")) ->  | E33: =IF(AND(A33<>0, _xlfn.XLOOKUP(A33,Caracterización!$B$8:$K$8,Caracterización!$B$19:$K$19,"")="Seleccione ..."), "Debe indicarlo en la caracterización de la comunidad", IF(A33<>0, _xlfn.XLOOKUP(A33,Caracterización!$B$8:$K$8,Caracterización!$B$19:$K$19,""), "")) ->  | F33: =IF(AND(A33<>0, _xlfn.XLOOKUP(A33,Caracterización!$B$8:$K$8,Caracterización!$B$20:$K$20,"")="Seleccione ..."), "Debe indicarlo en la caracterización de la comunidad", IF(A33<>0, _xlfn.XLOOKUP(A33,Caracterización!$B$8:$K$8,Caracterización!$B$20:$K$20,""), "")) ->  | G33: =IF(AND(A33<>0, _xlfn.XLOOKUP(A33,Caracterización!$B$8:$K$8,Caracterización!$B$22:$K$22,"")="Seleccione ..."), "Debe indicarlo en la caracterización de la comunidad", IF(A33<>0, _xlfn.XLOOKUP(A33,Caracterización!$B$8:$K$8,Caracterización!$B$22:$K$22,""), "")) ->  | H33: =IF(AND(A33<>0, _xlfn.XLOOKUP(A33,Caracterización!$B$8:$K$8,Caracterización!$B$23:$K$23,"")="Seleccione ..."), "Debe indicarlo en la caracterización de la comunidad", IF(A33<>0, _xlfn.XLOOKUP(A33,Caracterización!$B$8:$K$8,Caracterización!$B$23:$K$23,""), "")) ->  | I33: =IF(AND(A33<>0, _xlfn.XLOOKUP(A33,Caracterización!$B$8:$K$8,Caracterización!$B$28:$K$28,"")="Seleccione ..."), "Debe indicarlo en la caracterización de la comunidad", IF(A33<>0, _xlfn.XLOOKUP(A33,Caracterización!$B$8:$K$8,Caracterización!$B$28:$K$28,""), "")) ->  | J33: =IF(AND(A33<>0, _xlfn.XLOOKUP(A33,Caracterización!$B$8:$K$8,Caracterización!$B$37:$K$37,"")="Seleccione ..."), "Debe indicarlo en la caracterización de la comunidad", IF(A33<>0, _xlfn.XLOOKUP(A33,Caracterización!$B$8:$K$8,Caracterización!$B$37:$K$37,""), "")) ->  | K33: =IF(AND(A33<>0, _xlfn.XLOOKUP(A33,Caracterización!$B$8:$K$8,Caracterización!$B$40:$K$40,"")="Seleccione ..."), "Debe indicarlo en la caracterización de la comunidad", IF(A33<>0, _xlfn.XLOOKUP(A33,Caracterización!$B$8:$K$8,Caracterización!$B$40:$K$40,""), "")) ->  | L33: =IF(AND(A33<>0, _xlfn.XLOOKUP(A33,Caracterización!$B$8:$K$8,Caracterización!$B$42:$K$42,"")="Seleccione ..."), "Debe indicarlo en la caracterización de la comunidad", IF(A33<>0, _xlfn.XLOOKUP(A33,Caracterización!$B$8:$K$8,Caracterización!$B$42:$K$42,""), "")) ->  | M33: =IF(AND(A33<>0, _xlfn.XLOOKUP(A33,Caracterización!$B$8:$K$8,Caracterización!$B$72:$K$72,"")="Seleccione ..."), "Debe indicarlo en la caracterización de la comunidad", IF(A33<>0, _xlfn.XLOOKUP(A33,Caracterización!$B$8:$K$8,Caracterización!$B$72:$K$72,""), "")) ->  | N33: =IF(AND(A33<>0, _xlfn.XLOOKUP(A33,Caracterización!$B$8:$K$8,Caracterización!$B$36:$K$36,"")="Seleccione ..."), "Debe indicarlo en la caracterización de la comunidad", IF(A33<>0, _xlfn.XLOOKUP(A33,Caracterización!$B$8:$K$8,Caracterización!$B$36:$K$36,""), "")) -> 
C34: =IF(AND(A34<>0, _xlfn.XLOOKUP(A34,Caracterización!$B$8:$K$8,Caracterización!$B$10:$K$10,"")="Seleccione ..."), "Debe indicarlo en la caracterización de la comunidad", IF(A34<>0, _xlfn.XLOOKUP(A34,Caracterización!$B$8:$K$8,Caracterización!$B$10:$K$10,""), "")) ->  | D34: =IF(AND(A34<>0, _xlfn.XLOOKUP(A34,Caracterización!$B$8:$K$8,Caracterización!$B$11:$K$11,"")="Seleccione ..."), "Debe indicarlo en la caracterización de la comunidad", IF(A34<>0, _xlfn.XLOOKUP(A34,Caracterización!$B$8:$K$8,Caracterización!$B$11:$K$11,""), "")) ->  | E34: =IF(AND(A34<>0, _xlfn.XLOOKUP(A34,Caracterización!$B$8:$K$8,Caracterización!$B$19:$K$19,"")="Seleccione ..."), "Debe indicarlo en la caracterización de la comunidad", IF(A34<>0, _xlfn.XLOOKUP(A34,Caracterización!$B$8:$K$8,Caracterización!$B$19:$K$19,""), "")) ->  | F34: =IF(AND(A34<>0, _xlfn.XLOOKUP(A34,Caracterización!$B$8:$K$8,Caracterización!$B$20:$K$20,"")="Seleccione ..."), "Debe indicarlo en la caracterización de la comunidad", IF(A34<>0, _xlfn.XLOOKUP(A34,Caracterización!$B$8:$K$8,Caracterización!$B$20:$K$20,""), "")) ->  | G34: =IF(AND(A34<>0, _xlfn.XLOOKUP(A34,Caracterización!$B$8:$K$8,Caracterización!$B$22:$K$22,"")="Seleccione ..."), "Debe indicarlo en la caracterización de la comunidad", IF(A34<>0, _xlfn.XLOOKUP(A34,Caracterización!$B$8:$K$8,Caracterización!$B$22:$K$22,""), "")) ->  | H34: =IF(AND(A34<>0, _xlfn.XLOOKUP(A34,Caracterización!$B$8:$K$8,Caracterización!$B$23:$K$23,"")="Seleccione ..."), "Debe indicarlo en la caracterización de la comunidad", IF(A34<>0, _xlfn.XLOOKUP(A34,Caracterización!$B$8:$K$8,Caracterización!$B$23:$K$23,""), "")) ->  | I34: =IF(AND(A34<>0, _xlfn.XLOOKUP(A34,Caracterización!$B$8:$K$8,Caracterización!$B$28:$K$28,"")="Seleccione ..."), "Debe indicarlo en la caracterización de la comunidad", IF(A34<>0, _xlfn.XLOOKUP(A34,Caracterización!$B$8:$K$8,Caracterización!$B$28:$K$28,""), "")) ->  | J34: =IF(AND(A34<>0, _xlfn.XLOOKUP(A34,Caracterización!$B$8:$K$8,Caracterización!$B$37:$K$37,"")="Seleccione ..."), "Debe indicarlo en la caracterización de la comunidad", IF(A34<>0, _xlfn.XLOOKUP(A34,Caracterización!$B$8:$K$8,Caracterización!$B$37:$K$37,""), "")) ->  | K34: =IF(AND(A34<>0, _xlfn.XLOOKUP(A34,Caracterización!$B$8:$K$8,Caracterización!$B$40:$K$40,"")="Seleccione ..."), "Debe indicarlo en la caracterización de la comunidad", IF(A34<>0, _xlfn.XLOOKUP(A34,Caracterización!$B$8:$K$8,Caracterización!$B$40:$K$40,""), "")) ->  | L34: =IF(AND(A34<>0, _xlfn.XLOOKUP(A34,Caracterización!$B$8:$K$8,Caracterización!$B$42:$K$42,"")="Seleccione ..."), "Debe indicarlo en la caracterización de la comunidad", IF(A34<>0, _xlfn.XLOOKUP(A34,Caracterización!$B$8:$K$8,Caracterización!$B$42:$K$42,""), "")) ->  | M34: =IF(AND(A34<>0, _xlfn.XLOOKUP(A34,Caracterización!$B$8:$K$8,Caracterización!$B$72:$K$72,"")="Seleccione ..."), "Debe indicarlo en la caracterización de la comunidad", IF(A34<>0, _xlfn.XLOOKUP(A34,Caracterización!$B$8:$K$8,Caracterización!$B$72:$K$72,""), "")) ->  | N34: =IF(AND(A34<>0, _xlfn.XLOOKUP(A34,Caracterización!$B$8:$K$8,Caracterización!$B$36:$K$36,"")="Seleccione ..."), "Debe indicarlo en la caracterización de la comunidad", IF(A34<>0, _xlfn.XLOOKUP(A34,Caracterización!$B$8:$K$8,Caracterización!$B$36:$K$36,""), "")) -> 
C35: =IF(AND(A35<>0, _xlfn.XLOOKUP(A35,Caracterización!$B$8:$K$8,Caracterización!$B$10:$K$10,"")="Seleccione ..."), "Debe indicarlo en la caracterización de la comunidad", IF(A35<>0, _xlfn.XLOOKUP(A35,Caracterización!$B$8:$K$8,Caracterización!$B$10:$K$10,""), "")) ->  | D35: =IF(AND(A35<>0, _xlfn.XLOOKUP(A35,Caracterización!$B$8:$K$8,Caracterización!$B$11:$K$11,"")="Seleccione ..."), "Debe indicarlo en la caracterización de la comunidad", IF(A35<>0, _xlfn.XLOOKUP(A35,Caracterización!$B$8:$K$8,Caracterización!$B$11:$K$11,""), "")) ->  | E35: =IF(AND(A35<>0, _xlfn.XLOOKUP(A35,Caracterización!$B$8:$K$8,Caracterización!$B$19:$K$19,"")="Seleccione ..."), "Debe indicarlo en la caracterización de la comunidad", IF(A35<>0, _xlfn.XLOOKUP(A35,Caracterización!$B$8:$K$8,Caracterización!$B$19:$K$19,""), "")) ->  | F35: =IF(AND(A35<>0, _xlfn.XLOOKUP(A35,Caracterización!$B$8:$K$8,Caracterización!$B$20:$K$20,"")="Seleccione ..."), "Debe indicarlo en la caracterización de la comunidad", IF(A35<>0, _xlfn.XLOOKUP(A35,Caracterización!$B$8:$K$8,Caracterización!$B$20:$K$20,""), "")) ->  | G35: =IF(AND(A35<>0, _xlfn.XLOOKUP(A35,Caracterización!$B$8:$K$8,Caracterización!$B$22:$K$22,"")="Seleccione ..."), "Debe indicarlo en la caracterización de la comunidad", IF(A35<>0, _xlfn.XLOOKUP(A35,Caracterización!$B$8:$K$8,Caracterización!$B$22:$K$22,""), "")) ->  | H35: =IF(AND(A35<>0, _xlfn.XLOOKUP(A35,Caracterización!$B$8:$K$8,Caracterización!$B$23:$K$23,"")="Seleccione ..."), "Debe indicarlo en la caracterización de la comunidad", IF(A35<>0, _xlfn.XLOOKUP(A35,Caracterización!$B$8:$K$8,Caracterización!$B$23:$K$23,""), "")) ->  | I35: =IF(AND(A35<>0, _xlfn.XLOOKUP(A35,Caracterización!$B$8:$K$8,Caracterización!$B$28:$K$28,"")="Seleccione ..."), "Debe indicarlo en la caracterización de la comunidad", IF(A35<>0, _xlfn.XLOOKUP(A35,Caracterización!$B$8:$K$8,Caracterización!$B$28:$K$28,""), "")) ->  | J35: =IF(AND(A35<>0, _xlfn.XLOOKUP(A35,Caracterización!$B$8:$K$8,Caracterización!$B$37:$K$37,"")="Seleccione ..."), "Debe indicarlo en la caracterización de la comunidad", IF(A35<>0, _xlfn.XLOOKUP(A35,Caracterización!$B$8:$K$8,Caracterización!$B$37:$K$37,""), "")) ->  | K35: =IF(AND(A35<>0, _xlfn.XLOOKUP(A35,Caracterización!$B$8:$K$8,Caracterización!$B$40:$K$40,"")="Seleccione ..."), "Debe indicarlo en la caracterización de la comunidad", IF(A35<>0, _xlfn.XLOOKUP(A35,Caracterización!$B$8:$K$8,Caracterización!$B$40:$K$40,""), "")) ->  | L35: =IF(AND(A35<>0, _xlfn.XLOOKUP(A35,Caracterización!$B$8:$K$8,Caracterización!$B$42:$K$42,"")="Seleccione ..."), "Debe indicarlo en la caracterización de la comunidad", IF(A35<>0, _xlfn.XLOOKUP(A35,Caracterización!$B$8:$K$8,Caracterización!$B$42:$K$42,""), "")) ->  | M35: =IF(AND(A35<>0, _xlfn.XLOOKUP(A35,Caracterización!$B$8:$K$8,Caracterización!$B$72:$K$72,"")="Seleccione ..."), "Debe indicarlo en la caracterización de la comunidad", IF(A35<>0, _xlfn.XLOOKUP(A35,Caracterización!$B$8:$K$8,Caracterización!$B$72:$K$72,""), "")) ->  | N35: =IF(AND(A35<>0, _xlfn.XLOOKUP(A35,Caracterización!$B$8:$K$8,Caracterización!$B$36:$K$36,"")="Seleccione ..."), "Debe indicarlo en la caracterización de la comunidad", IF(A35<>0, _xlfn.XLOOKUP(A35,Caracterización!$B$8:$K$8,Caracterización!$B$36:$K$36,""), "")) -> 
C36: =IF(AND(A36<>0, _xlfn.XLOOKUP(A36,Caracterización!$B$8:$K$8,Caracterización!$B$10:$K$10,"")="Seleccione ..."), "Debe indicarlo en la caracterización de la comunidad", IF(A36<>0, _xlfn.XLOOKUP(A36,Caracterización!$B$8:$K$8,Caracterización!$B$10:$K$10,""), "")) ->  | D36: =IF(AND(A36<>0, _xlfn.XLOOKUP(A36,Caracterización!$B$8:$K$8,Caracterización!$B$11:$K$11,"")="Seleccione ..."), "Debe indicarlo en la caracterización de la comunidad", IF(A36<>0, _xlfn.XLOOKUP(A36,Caracterización!$B$8:$K$8,Caracterización!$B$11:$K$11,""), "")) ->  | E36: =IF(AND(A36<>0, _xlfn.XLOOKUP(A36,Caracterización!$B$8:$K$8,Caracterización!$B$19:$K$19,"")="Seleccione ..."), "Debe indicarlo en la caracterización de la comunidad", IF(A36<>0, _xlfn.XLOOKUP(A36,Caracterización!$B$8:$K$8,Caracterización!$B$19:$K$19,""), "")) ->  | F36: =IF(AND(A36<>0, _xlfn.XLOOKUP(A36,Caracterización!$B$8:$K$8,Caracterización!$B$20:$K$20,"")="Seleccione ..."), "Debe indicarlo en la caracterización de la comunidad", IF(A36<>0, _xlfn.XLOOKUP(A36,Caracterización!$B$8:$K$8,Caracterización!$B$20:$K$20,""), "")) ->  | G36: =IF(AND(A36<>0, _xlfn.XLOOKUP(A36,Caracterización!$B$8:$K$8,Caracterización!$B$22:$K$22,"")="Seleccione ..."), "Debe indicarlo en la caracterización de la comunidad", IF(A36<>0, _xlfn.XLOOKUP(A36,Caracterización!$B$8:$K$8,Caracterización!$B$22:$K$22,""), "")) ->  | H36: =IF(AND(A36<>0, _xlfn.XLOOKUP(A36,Caracterización!$B$8:$K$8,Caracterización!$B$23:$K$23,"")="Seleccione ..."), "Debe indicarlo en la caracterización de la comunidad", IF(A36<>0, _xlfn.XLOOKUP(A36,Caracterización!$B$8:$K$8,Caracterización!$B$23:$K$23,""), "")) ->  | I36: =IF(AND(A36<>0, _xlfn.XLOOKUP(A36,Caracterización!$B$8:$K$8,Caracterización!$B$28:$K$28,"")="Seleccione ..."), "Debe indicarlo en la caracterización de la comunidad", IF(A36<>0, _xlfn.XLOOKUP(A36,Caracterización!$B$8:$K$8,Caracterización!$B$28:$K$28,""), "")) ->  | J36: =IF(AND(A36<>0, _xlfn.XLOOKUP(A36,Caracterización!$B$8:$K$8,Caracterización!$B$37:$K$37,"")="Seleccione ..."), "Debe indicarlo en la caracterización de la comunidad", IF(A36<>0, _xlfn.XLOOKUP(A36,Caracterización!$B$8:$K$8,Caracterización!$B$37:$K$37,""), "")) ->  | K36: =IF(AND(A36<>0, _xlfn.XLOOKUP(A36,Caracterización!$B$8:$K$8,Caracterización!$B$40:$K$40,"")="Seleccione ..."), "Debe indicarlo en la caracterización de la comunidad", IF(A36<>0, _xlfn.XLOOKUP(A36,Caracterización!$B$8:$K$8,Caracterización!$B$40:$K$40,""), "")) ->  | L36: =IF(AND(A36<>0, _xlfn.XLOOKUP(A36,Caracterización!$B$8:$K$8,Caracterización!$B$42:$K$42,"")="Seleccione ..."), "Debe indicarlo en la caracterización de la comunidad", IF(A36<>0, _xlfn.XLOOKUP(A36,Caracterización!$B$8:$K$8,Caracterización!$B$42:$K$42,""), "")) ->  | M36: =IF(AND(A36<>0, _xlfn.XLOOKUP(A36,Caracterización!$B$8:$K$8,Caracterización!$B$72:$K$72,"")="Seleccione ..."), "Debe indicarlo en la caracterización de la comunidad", IF(A36<>0, _xlfn.XLOOKUP(A36,Caracterización!$B$8:$K$8,Caracterización!$B$72:$K$72,""), "")) ->  | N36: =IF(AND(A36<>0, _xlfn.XLOOKUP(A36,Caracterización!$B$8:$K$8,Caracterización!$B$36:$K$36,"")="Seleccione ..."), "Debe indicarlo en la caracterización de la comunidad", IF(A36<>0, _xlfn.XLOOKUP(A36,Caracterización!$B$8:$K$8,Caracterización!$B$36:$K$36,""), "")) -> 
C37: =IF(AND(A37<>0, _xlfn.XLOOKUP(A37,Caracterización!$B$8:$K$8,Caracterización!$B$10:$K$10,"")="Seleccione ..."), "Debe indicarlo en la caracterización de la comunidad", IF(A37<>0, _xlfn.XLOOKUP(A37,Caracterización!$B$8:$K$8,Caracterización!$B$10:$K$10,""), "")) ->  | D37: =IF(AND(A37<>0, _xlfn.XLOOKUP(A37,Caracterización!$B$8:$K$8,Caracterización!$B$11:$K$11,"")="Seleccione ..."), "Debe indicarlo en la caracterización de la comunidad", IF(A37<>0, _xlfn.XLOOKUP(A37,Caracterización!$B$8:$K$8,Caracterización!$B$11:$K$11,""), "")) ->  | E37: =IF(AND(A37<>0, _xlfn.XLOOKUP(A37,Caracterización!$B$8:$K$8,Caracterización!$B$19:$K$19,"")="Seleccione ..."), "Debe indicarlo en la caracterización de la comunidad", IF(A37<>0, _xlfn.XLOOKUP(A37,Caracterización!$B$8:$K$8,Caracterización!$B$19:$K$19,""), "")) ->  | F37: =IF(AND(A37<>0, _xlfn.XLOOKUP(A37,Caracterización!$B$8:$K$8,Caracterización!$B$20:$K$20,"")="Seleccione ..."), "Debe indicarlo en la caracterización de la comunidad", IF(A37<>0, _xlfn.XLOOKUP(A37,Caracterización!$B$8:$K$8,Caracterización!$B$20:$K$20,""), "")) ->  | G37: =IF(AND(A37<>0, _xlfn.XLOOKUP(A37,Caracterización!$B$8:$K$8,Caracterización!$B$22:$K$22,"")="Seleccione ..."), "Debe indicarlo en la caracterización de la comunidad", IF(A37<>0, _xlfn.XLOOKUP(A37,Caracterización!$B$8:$K$8,Caracterización!$B$22:$K$22,""), "")) ->  | H37: =IF(AND(A37<>0, _xlfn.XLOOKUP(A37,Caracterización!$B$8:$K$8,Caracterización!$B$23:$K$23,"")="Seleccione ..."), "Debe indicarlo en la caracterización de la comunidad", IF(A37<>0, _xlfn.XLOOKUP(A37,Caracterización!$B$8:$K$8,Caracterización!$B$23:$K$23,""), "")) ->  | I37: =IF(AND(A37<>0, _xlfn.XLOOKUP(A37,Caracterización!$B$8:$K$8,Caracterización!$B$28:$K$28,"")="Seleccione ..."), "Debe indicarlo en la caracterización de la comunidad", IF(A37<>0, _xlfn.XLOOKUP(A37,Caracterización!$B$8:$K$8,Caracterización!$B$28:$K$28,""), "")) ->  | J37: =IF(AND(A37<>0, _xlfn.XLOOKUP(A37,Caracterización!$B$8:$K$8,Caracterización!$B$37:$K$37,"")="Seleccione ..."), "Debe indicarlo en la caracterización de la comunidad", IF(A37<>0, _xlfn.XLOOKUP(A37,Caracterización!$B$8:$K$8,Caracterización!$B$37:$K$37,""), "")) ->  | K37: =IF(AND(A37<>0, _xlfn.XLOOKUP(A37,Caracterización!$B$8:$K$8,Caracterización!$B$40:$K$40,"")="Seleccione ..."), "Debe indicarlo en la caracterización de la comunidad", IF(A37<>0, _xlfn.XLOOKUP(A37,Caracterización!$B$8:$K$8,Caracterización!$B$40:$K$40,""), "")) ->  | L37: =IF(AND(A37<>0, _xlfn.XLOOKUP(A37,Caracterización!$B$8:$K$8,Caracterización!$B$42:$K$42,"")="Seleccione ..."), "Debe indicarlo en la caracterización de la comunidad", IF(A37<>0, _xlfn.XLOOKUP(A37,Caracterización!$B$8:$K$8,Caracterización!$B$42:$K$42,""), "")) ->  | M37: =IF(AND(A37<>0, _xlfn.XLOOKUP(A37,Caracterización!$B$8:$K$8,Caracterización!$B$72:$K$72,"")="Seleccione ..."), "Debe indicarlo en la caracterización de la comunidad", IF(A37<>0, _xlfn.XLOOKUP(A37,Caracterización!$B$8:$K$8,Caracterización!$B$72:$K$72,""), "")) ->  | N37: =IF(AND(A37<>0, _xlfn.XLOOKUP(A37,Caracterización!$B$8:$K$8,Caracterización!$B$36:$K$36,"")="Seleccione ..."), "Debe indicarlo en la caracterización de la comunidad", IF(A37<>0, _xlfn.XLOOKUP(A37,Caracterización!$B$8:$K$8,Caracterización!$B$36:$K$36,""), "")) -> 
C38: =IF(AND(A38<>0, _xlfn.XLOOKUP(A38,Caracterización!$B$8:$K$8,Caracterización!$B$10:$K$10,"")="Seleccione ..."), "Debe indicarlo en la caracterización de la comunidad", IF(A38<>0, _xlfn.XLOOKUP(A38,Caracterización!$B$8:$K$8,Caracterización!$B$10:$K$10,""), "")) ->  | D38: =IF(AND(A38<>0, _xlfn.XLOOKUP(A38,Caracterización!$B$8:$K$8,Caracterización!$B$11:$K$11,"")="Seleccione ..."), "Debe indicarlo en la caracterización de la comunidad", IF(A38<>0, _xlfn.XLOOKUP(A38,Caracterización!$B$8:$K$8,Caracterización!$B$11:$K$11,""), "")) ->  | E38: =IF(AND(A38<>0, _xlfn.XLOOKUP(A38,Caracterización!$B$8:$K$8,Caracterización!$B$19:$K$19,"")="Seleccione ..."), "Debe indicarlo en la caracterización de la comunidad", IF(A38<>0, _xlfn.XLOOKUP(A38,Caracterización!$B$8:$K$8,Caracterización!$B$19:$K$19,""), "")) ->  | F38: =IF(AND(A38<>0, _xlfn.XLOOKUP(A38,Caracterización!$B$8:$K$8,Caracterización!$B$20:$K$20,"")="Seleccione ..."), "Debe indicarlo en la caracterización de la comunidad", IF(A38<>0, _xlfn.XLOOKUP(A38,Caracterización!$B$8:$K$8,Caracterización!$B$20:$K$20,""), "")) ->  | G38: =IF(AND(A38<>0, _xlfn.XLOOKUP(A38,Caracterización!$B$8:$K$8,Caracterización!$B$22:$K$22,"")="Seleccione ..."), "Debe indicarlo en la caracterización de la comunidad", IF(A38<>0, _xlfn.XLOOKUP(A38,Caracterización!$B$8:$K$8,Caracterización!$B$22:$K$22,""), "")) ->  | H38: =IF(AND(A38<>0, _xlfn.XLOOKUP(A38,Caracterización!$B$8:$K$8,Caracterización!$B$23:$K$23,"")="Seleccione ..."), "Debe indicarlo en la caracterización de la comunidad", IF(A38<>0, _xlfn.XLOOKUP(A38,Caracterización!$B$8:$K$8,Caracterización!$B$23:$K$23,""), "")) ->  | I38: =IF(AND(A38<>0, _xlfn.XLOOKUP(A38,Caracterización!$B$8:$K$8,Caracterización!$B$28:$K$28,"")="Seleccione ..."), "Debe indicarlo en la caracterización de la comunidad", IF(A38<>0, _xlfn.XLOOKUP(A38,Caracterización!$B$8:$K$8,Caracterización!$B$28:$K$28,""), "")) ->  | J38: =IF(AND(A38<>0, _xlfn.XLOOKUP(A38,Caracterización!$B$8:$K$8,Caracterización!$B$37:$K$37,"")="Seleccione ..."), "Debe indicarlo en la caracterización de la comunidad", IF(A38<>0, _xlfn.XLOOKUP(A38,Caracterización!$B$8:$K$8,Caracterización!$B$37:$K$37,""), "")) ->  | K38: =IF(AND(A38<>0, _xlfn.XLOOKUP(A38,Caracterización!$B$8:$K$8,Caracterización!$B$40:$K$40,"")="Seleccione ..."), "Debe indicarlo en la caracterización de la comunidad", IF(A38<>0, _xlfn.XLOOKUP(A38,Caracterización!$B$8:$K$8,Caracterización!$B$40:$K$40,""), "")) ->  | L38: =IF(AND(A38<>0, _xlfn.XLOOKUP(A38,Caracterización!$B$8:$K$8,Caracterización!$B$42:$K$42,"")="Seleccione ..."), "Debe indicarlo en la caracterización de la comunidad", IF(A38<>0, _xlfn.XLOOKUP(A38,Caracterización!$B$8:$K$8,Caracterización!$B$42:$K$42,""), "")) ->  | M38: =IF(AND(A38<>0, _xlfn.XLOOKUP(A38,Caracterización!$B$8:$K$8,Caracterización!$B$72:$K$72,"")="Seleccione ..."), "Debe indicarlo en la caracterización de la comunidad", IF(A38<>0, _xlfn.XLOOKUP(A38,Caracterización!$B$8:$K$8,Caracterización!$B$72:$K$72,""), "")) ->  | N38: =IF(AND(A38<>0, _xlfn.XLOOKUP(A38,Caracterización!$B$8:$K$8,Caracterización!$B$36:$K$36,"")="Seleccione ..."), "Debe indicarlo en la caracterización de la comunidad", IF(A38<>0, _xlfn.XLOOKUP(A38,Caracterización!$B$8:$K$8,Caracterización!$B$36:$K$36,""), "")) -> 
C39: =IF(AND(A39<>0, _xlfn.XLOOKUP(A39,Caracterización!$B$8:$K$8,Caracterización!$B$10:$K$10,"")="Seleccione ..."), "Debe indicarlo en la caracterización de la comunidad", IF(A39<>0, _xlfn.XLOOKUP(A39,Caracterización!$B$8:$K$8,Caracterización!$B$10:$K$10,""), "")) ->  | D39: =IF(AND(A39<>0, _xlfn.XLOOKUP(A39,Caracterización!$B$8:$K$8,Caracterización!$B$11:$K$11,"")="Seleccione ..."), "Debe indicarlo en la caracterización de la comunidad", IF(A39<>0, _xlfn.XLOOKUP(A39,Caracterización!$B$8:$K$8,Caracterización!$B$11:$K$11,""), "")) ->  | E39: =IF(AND(A39<>0, _xlfn.XLOOKUP(A39,Caracterización!$B$8:$K$8,Caracterización!$B$19:$K$19,"")="Seleccione ..."), "Debe indicarlo en la caracterización de la comunidad", IF(A39<>0, _xlfn.XLOOKUP(A39,Caracterización!$B$8:$K$8,Caracterización!$B$19:$K$19,""), "")) ->  | F39: =IF(AND(A39<>0, _xlfn.XLOOKUP(A39,Caracterización!$B$8:$K$8,Caracterización!$B$20:$K$20,"")="Seleccione ..."), "Debe indicarlo en la caracterización de la comunidad", IF(A39<>0, _xlfn.XLOOKUP(A39,Caracterización!$B$8:$K$8,Caracterización!$B$20:$K$20,""), "")) ->  | G39: =IF(AND(A39<>0, _xlfn.XLOOKUP(A39,Caracterización!$B$8:$K$8,Caracterización!$B$22:$K$22,"")="Seleccione ..."), "Debe indicarlo en la caracterización de la comunidad", IF(A39<>0, _xlfn.XLOOKUP(A39,Caracterización!$B$8:$K$8,Caracterización!$B$22:$K$22,""), "")) ->  | H39: =IF(AND(A39<>0, _xlfn.XLOOKUP(A39,Caracterización!$B$8:$K$8,Caracterización!$B$23:$K$23,"")="Seleccione ..."), "Debe indicarlo en la caracterización de la comunidad", IF(A39<>0, _xlfn.XLOOKUP(A39,Caracterización!$B$8:$K$8,Caracterización!$B$23:$K$23,""), "")) ->  | I39: =IF(AND(A39<>0, _xlfn.XLOOKUP(A39,Caracterización!$B$8:$K$8,Caracterización!$B$28:$K$28,"")="Seleccione ..."), "Debe indicarlo en la caracterización de la comunidad", IF(A39<>0, _xlfn.XLOOKUP(A39,Caracterización!$B$8:$K$8,Caracterización!$B$28:$K$28,""), "")) ->  | J39: =IF(AND(A39<>0, _xlfn.XLOOKUP(A39,Caracterización!$B$8:$K$8,Caracterización!$B$37:$K$37,"")="Seleccione ..."), "Debe indicarlo en la caracterización de la comunidad", IF(A39<>0, _xlfn.XLOOKUP(A39,Caracterización!$B$8:$K$8,Caracterización!$B$37:$K$37,""), "")) ->  | K39: =IF(AND(A39<>0, _xlfn.XLOOKUP(A39,Caracterización!$B$8:$K$8,Caracterización!$B$40:$K$40,"")="Seleccione ..."), "Debe indicarlo en la caracterización de la comunidad", IF(A39<>0, _xlfn.XLOOKUP(A39,Caracterización!$B$8:$K$8,Caracterización!$B$40:$K$40,""), "")) ->  | L39: =IF(AND(A39<>0, _xlfn.XLOOKUP(A39,Caracterización!$B$8:$K$8,Caracterización!$B$42:$K$42,"")="Seleccione ..."), "Debe indicarlo en la caracterización de la comunidad", IF(A39<>0, _xlfn.XLOOKUP(A39,Caracterización!$B$8:$K$8,Caracterización!$B$42:$K$42,""), "")) ->  | M39: =IF(AND(A39<>0, _xlfn.XLOOKUP(A39,Caracterización!$B$8:$K$8,Caracterización!$B$72:$K$72,"")="Seleccione ..."), "Debe indicarlo en la caracterización de la comunidad", IF(A39<>0, _xlfn.XLOOKUP(A39,Caracterización!$B$8:$K$8,Caracterización!$B$72:$K$72,""), "")) ->  | N39: =IF(AND(A39<>0, _xlfn.XLOOKUP(A39,Caracterización!$B$8:$K$8,Caracterización!$B$36:$K$36,"")="Seleccione ..."), "Debe indicarlo en la caracterización de la comunidad", IF(A39<>0, _xlfn.XLOOKUP(A39,Caracterización!$B$8:$K$8,Caracterización!$B$36:$K$36,""), "")) -> 
C40: =IF(AND(A40<>0, _xlfn.XLOOKUP(A40,Caracterización!$B$8:$K$8,Caracterización!$B$10:$K$10,"")="Seleccione ..."), "Debe indicarlo en la caracterización de la comunidad", IF(A40<>0, _xlfn.XLOOKUP(A40,Caracterización!$B$8:$K$8,Caracterización!$B$10:$K$10,""), "")) ->  | D40: =IF(AND(A40<>0, _xlfn.XLOOKUP(A40,Caracterización!$B$8:$K$8,Caracterización!$B$11:$K$11,"")="Seleccione ..."), "Debe indicarlo en la caracterización de la comunidad", IF(A40<>0, _xlfn.XLOOKUP(A40,Caracterización!$B$8:$K$8,Caracterización!$B$11:$K$11,""), "")) ->  | E40: =IF(AND(A40<>0, _xlfn.XLOOKUP(A40,Caracterización!$B$8:$K$8,Caracterización!$B$19:$K$19,"")="Seleccione ..."), "Debe indicarlo en la caracterización de la comunidad", IF(A40<>0, _xlfn.XLOOKUP(A40,Caracterización!$B$8:$K$8,Caracterización!$B$19:$K$19,""), "")) ->  | F40: =IF(AND(A40<>0, _xlfn.XLOOKUP(A40,Caracterización!$B$8:$K$8,Caracterización!$B$20:$K$20,"")="Seleccione ..."), "Debe indicarlo en la caracterización de la comunidad", IF(A40<>0, _xlfn.XLOOKUP(A40,Caracterización!$B$8:$K$8,Caracterización!$B$20:$K$20,""), "")) ->  | G40: =IF(AND(A40<>0, _xlfn.XLOOKUP(A40,Caracterización!$B$8:$K$8,Caracterización!$B$22:$K$22,"")="Seleccione ..."), "Debe indicarlo en la caracterización de la comunidad", IF(A40<>0, _xlfn.XLOOKUP(A40,Caracterización!$B$8:$K$8,Caracterización!$B$22:$K$22,""), "")) ->  | H40: =IF(AND(A40<>0, _xlfn.XLOOKUP(A40,Caracterización!$B$8:$K$8,Caracterización!$B$23:$K$23,"")="Seleccione ..."), "Debe indicarlo en la caracterización de la comunidad", IF(A40<>0, _xlfn.XLOOKUP(A40,Caracterización!$B$8:$K$8,Caracterización!$B$23:$K$23,""), "")) ->  | I40: =IF(AND(A40<>0, _xlfn.XLOOKUP(A40,Caracterización!$B$8:$K$8,Caracterización!$B$28:$K$28,"")="Seleccione ..."), "Debe indicarlo en la caracterización de la comunidad", IF(A40<>0, _xlfn.XLOOKUP(A40,Caracterización!$B$8:$K$8,Caracterización!$B$28:$K$28,""), "")) ->  | J40: =IF(AND(A40<>0, _xlfn.XLOOKUP(A40,Caracterización!$B$8:$K$8,Caracterización!$B$37:$K$37,"")="Seleccione ..."), "Debe indicarlo en la caracterización de la comunidad", IF(A40<>0, _xlfn.XLOOKUP(A40,Caracterización!$B$8:$K$8,Caracterización!$B$37:$K$37,""), "")) ->  | K40: =IF(AND(A40<>0, _xlfn.XLOOKUP(A40,Caracterización!$B$8:$K$8,Caracterización!$B$40:$K$40,"")="Seleccione ..."), "Debe indicarlo en la caracterización de la comunidad", IF(A40<>0, _xlfn.XLOOKUP(A40,Caracterización!$B$8:$K$8,Caracterización!$B$40:$K$40,""), "")) ->  | L40: =IF(AND(A40<>0, _xlfn.XLOOKUP(A40,Caracterización!$B$8:$K$8,Caracterización!$B$42:$K$42,"")="Seleccione ..."), "Debe indicarlo en la caracterización de la comunidad", IF(A40<>0, _xlfn.XLOOKUP(A40,Caracterización!$B$8:$K$8,Caracterización!$B$42:$K$42,""), "")) ->  | M40: =IF(AND(A40<>0, _xlfn.XLOOKUP(A40,Caracterización!$B$8:$K$8,Caracterización!$B$72:$K$72,"")="Seleccione ..."), "Debe indicarlo en la caracterización de la comunidad", IF(A40<>0, _xlfn.XLOOKUP(A40,Caracterización!$B$8:$K$8,Caracterización!$B$72:$K$72,""), "")) ->  | N40: =IF(AND(A40<>0, _xlfn.XLOOKUP(A40,Caracterización!$B$8:$K$8,Caracterización!$B$36:$K$36,"")="Seleccione ..."), "Debe indicarlo en la caracterización de la comunidad", IF(A40<>0, _xlfn.XLOOKUP(A40,Caracterización!$B$8:$K$8,Caracterización!$B$36:$K$36,""), "")) -> 
C41: =IF(AND(A41<>0, _xlfn.XLOOKUP(A41,Caracterización!$B$8:$K$8,Caracterización!$B$10:$K$10,"")="Seleccione ..."), "Debe indicarlo en la caracterización de la comunidad", IF(A41<>0, _xlfn.XLOOKUP(A41,Caracterización!$B$8:$K$8,Caracterización!$B$10:$K$10,""), "")) ->  | D41: =IF(AND(A41<>0, _xlfn.XLOOKUP(A41,Caracterización!$B$8:$K$8,Caracterización!$B$11:$K$11,"")="Seleccione ..."), "Debe indicarlo en la caracterización de la comunidad", IF(A41<>0, _xlfn.XLOOKUP(A41,Caracterización!$B$8:$K$8,Caracterización!$B$11:$K$11,""), "")) ->  | E41: =IF(AND(A41<>0, _xlfn.XLOOKUP(A41,Caracterización!$B$8:$K$8,Caracterización!$B$19:$K$19,"")="Seleccione ..."), "Debe indicarlo en la caracterización de la comunidad", IF(A41<>0, _xlfn.XLOOKUP(A41,Caracterización!$B$8:$K$8,Caracterización!$B$19:$K$19,""), "")) ->  | F41: =IF(AND(A41<>0, _xlfn.XLOOKUP(A41,Caracterización!$B$8:$K$8,Caracterización!$B$20:$K$20,"")="Seleccione ..."), "Debe indicarlo en la caracterización de la comunidad", IF(A41<>0, _xlfn.XLOOKUP(A41,Caracterización!$B$8:$K$8,Caracterización!$B$20:$K$20,""), "")) ->  | G41: =IF(AND(A41<>0, _xlfn.XLOOKUP(A41,Caracterización!$B$8:$K$8,Caracterización!$B$22:$K$22,"")="Seleccione ..."), "Debe indicarlo en la caracterización de la comunidad", IF(A41<>0, _xlfn.XLOOKUP(A41,Caracterización!$B$8:$K$8,Caracterización!$B$22:$K$22,""), "")) ->  | H41: =IF(AND(A41<>0, _xlfn.XLOOKUP(A41,Caracterización!$B$8:$K$8,Caracterización!$B$23:$K$23,"")="Seleccione ..."), "Debe indicarlo en la caracterización de la comunidad", IF(A41<>0, _xlfn.XLOOKUP(A41,Caracterización!$B$8:$K$8,Caracterización!$B$23:$K$23,""), "")) ->  | I41: =IF(AND(A41<>0, _xlfn.XLOOKUP(A41,Caracterización!$B$8:$K$8,Caracterización!$B$28:$K$28,"")="Seleccione ..."), "Debe indicarlo en la caracterización de la comunidad", IF(A41<>0, _xlfn.XLOOKUP(A41,Caracterización!$B$8:$K$8,Caracterización!$B$28:$K$28,""), "")) ->  | J41: =IF(AND(A41<>0, _xlfn.XLOOKUP(A41,Caracterización!$B$8:$K$8,Caracterización!$B$37:$K$37,"")="Seleccione ..."), "Debe indicarlo en la caracterización de la comunidad", IF(A41<>0, _xlfn.XLOOKUP(A41,Caracterización!$B$8:$K$8,Caracterización!$B$37:$K$37,""), "")) ->  | K41: =IF(AND(A41<>0, _xlfn.XLOOKUP(A41,Caracterización!$B$8:$K$8,Caracterización!$B$40:$K$40,"")="Seleccione ..."), "Debe indicarlo en la caracterización de la comunidad", IF(A41<>0, _xlfn.XLOOKUP(A41,Caracterización!$B$8:$K$8,Caracterización!$B$40:$K$40,""), "")) ->  | L41: =IF(AND(A41<>0, _xlfn.XLOOKUP(A41,Caracterización!$B$8:$K$8,Caracterización!$B$42:$K$42,"")="Seleccione ..."), "Debe indicarlo en la caracterización de la comunidad", IF(A41<>0, _xlfn.XLOOKUP(A41,Caracterización!$B$8:$K$8,Caracterización!$B$42:$K$42,""), "")) ->  | M41: =IF(AND(A41<>0, _xlfn.XLOOKUP(A41,Caracterización!$B$8:$K$8,Caracterización!$B$72:$K$72,"")="Seleccione ..."), "Debe indicarlo en la caracterización de la comunidad", IF(A41<>0, _xlfn.XLOOKUP(A41,Caracterización!$B$8:$K$8,Caracterización!$B$72:$K$72,""), "")) ->  | N41: =IF(AND(A41<>0, _xlfn.XLOOKUP(A41,Caracterización!$B$8:$K$8,Caracterización!$B$36:$K$36,"")="Seleccione ..."), "Debe indicarlo en la caracterización de la comunidad", IF(A41<>0, _xlfn.XLOOKUP(A41,Caracterización!$B$8:$K$8,Caracterización!$B$36:$K$36,""), "")) -> 
C42: =IF(AND(A42<>0, _xlfn.XLOOKUP(A42,Caracterización!$B$8:$K$8,Caracterización!$B$10:$K$10,"")="Seleccione ..."), "Debe indicarlo en la caracterización de la comunidad", IF(A42<>0, _xlfn.XLOOKUP(A42,Caracterización!$B$8:$K$8,Caracterización!$B$10:$K$10,""), "")) ->  | D42: =IF(AND(A42<>0, _xlfn.XLOOKUP(A42,Caracterización!$B$8:$K$8,Caracterización!$B$11:$K$11,"")="Seleccione ..."), "Debe indicarlo en la caracterización de la comunidad", IF(A42<>0, _xlfn.XLOOKUP(A42,Caracterización!$B$8:$K$8,Caracterización!$B$11:$K$11,""), "")) ->  | E42: =IF(AND(A42<>0, _xlfn.XLOOKUP(A42,Caracterización!$B$8:$K$8,Caracterización!$B$19:$K$19,"")="Seleccione ..."), "Debe indicarlo en la caracterización de la comunidad", IF(A42<>0, _xlfn.XLOOKUP(A42,Caracterización!$B$8:$K$8,Caracterización!$B$19:$K$19,""), "")) ->  | F42: =IF(AND(A42<>0, _xlfn.XLOOKUP(A42,Caracterización!$B$8:$K$8,Caracterización!$B$20:$K$20,"")="Seleccione ..."), "Debe indicarlo en la caracterización de la comunidad", IF(A42<>0, _xlfn.XLOOKUP(A42,Caracterización!$B$8:$K$8,Caracterización!$B$20:$K$20,""), "")) ->  | G42: =IF(AND(A42<>0, _xlfn.XLOOKUP(A42,Caracterización!$B$8:$K$8,Caracterización!$B$22:$K$22,"")="Seleccione ..."), "Debe indicarlo en la caracterización de la comunidad", IF(A42<>0, _xlfn.XLOOKUP(A42,Caracterización!$B$8:$K$8,Caracterización!$B$22:$K$22,""), "")) ->  | H42: =IF(AND(A42<>0, _xlfn.XLOOKUP(A42,Caracterización!$B$8:$K$8,Caracterización!$B$23:$K$23,"")="Seleccione ..."), "Debe indicarlo en la caracterización de la comunidad", IF(A42<>0, _xlfn.XLOOKUP(A42,Caracterización!$B$8:$K$8,Caracterización!$B$23:$K$23,""), "")) ->  | I42: =IF(AND(A42<>0, _xlfn.XLOOKUP(A42,Caracterización!$B$8:$K$8,Caracterización!$B$28:$K$28,"")="Seleccione ..."), "Debe indicarlo en la caracterización de la comunidad", IF(A42<>0, _xlfn.XLOOKUP(A42,Caracterización!$B$8:$K$8,Caracterización!$B$28:$K$28,""), "")) ->  | J42: =IF(AND(A42<>0, _xlfn.XLOOKUP(A42,Caracterización!$B$8:$K$8,Caracterización!$B$37:$K$37,"")="Seleccione ..."), "Debe indicarlo en la caracterización de la comunidad", IF(A42<>0, _xlfn.XLOOKUP(A42,Caracterización!$B$8:$K$8,Caracterización!$B$37:$K$37,""), "")) ->  | K42: =IF(AND(A42<>0, _xlfn.XLOOKUP(A42,Caracterización!$B$8:$K$8,Caracterización!$B$40:$K$40,"")="Seleccione ..."), "Debe indicarlo en la caracterización de la comunidad", IF(A42<>0, _xlfn.XLOOKUP(A42,Caracterización!$B$8:$K$8,Caracterización!$B$40:$K$40,""), "")) ->  | L42: =IF(AND(A42<>0, _xlfn.XLOOKUP(A42,Caracterización!$B$8:$K$8,Caracterización!$B$42:$K$42,"")="Seleccione ..."), "Debe indicarlo en la caracterización de la comunidad", IF(A42<>0, _xlfn.XLOOKUP(A42,Caracterización!$B$8:$K$8,Caracterización!$B$42:$K$42,""), "")) ->  | M42: =IF(AND(A42<>0, _xlfn.XLOOKUP(A42,Caracterización!$B$8:$K$8,Caracterización!$B$72:$K$72,"")="Seleccione ..."), "Debe indicarlo en la caracterización de la comunidad", IF(A42<>0, _xlfn.XLOOKUP(A42,Caracterización!$B$8:$K$8,Caracterización!$B$72:$K$72,""), "")) ->  | N42: =IF(AND(A42<>0, _xlfn.XLOOKUP(A42,Caracterización!$B$8:$K$8,Caracterización!$B$36:$K$36,"")="Seleccione ..."), "Debe indicarlo en la caracterización de la comunidad", IF(A42<>0, _xlfn.XLOOKUP(A42,Caracterización!$B$8:$K$8,Caracterización!$B$36:$K$36,""), "")) -> 
C43: =IF(AND(A43<>0, _xlfn.XLOOKUP(A43,Caracterización!$B$8:$K$8,Caracterización!$B$10:$K$10,"")="Seleccione ..."), "Debe indicarlo en la caracterización de la comunidad", IF(A43<>0, _xlfn.XLOOKUP(A43,Caracterización!$B$8:$K$8,Caracterización!$B$10:$K$10,""), "")) ->  | D43: =IF(AND(A43<>0, _xlfn.XLOOKUP(A43,Caracterización!$B$8:$K$8,Caracterización!$B$11:$K$11,"")="Seleccione ..."), "Debe indicarlo en la caracterización de la comunidad", IF(A43<>0, _xlfn.XLOOKUP(A43,Caracterización!$B$8:$K$8,Caracterización!$B$11:$K$11,""), "")) ->  | E43: =IF(AND(A43<>0, _xlfn.XLOOKUP(A43,Caracterización!$B$8:$K$8,Caracterización!$B$19:$K$19,"")="Seleccione ..."), "Debe indicarlo en la caracterización de la comunidad", IF(A43<>0, _xlfn.XLOOKUP(A43,Caracterización!$B$8:$K$8,Caracterización!$B$19:$K$19,""), "")) ->  | F43: =IF(AND(A43<>0, _xlfn.XLOOKUP(A43,Caracterización!$B$8:$K$8,Caracterización!$B$20:$K$20,"")="Seleccione ..."), "Debe indicarlo en la caracterización de la comunidad", IF(A43<>0, _xlfn.XLOOKUP(A43,Caracterización!$B$8:$K$8,Caracterización!$B$20:$K$20,""), "")) ->  | G43: =IF(AND(A43<>0, _xlfn.XLOOKUP(A43,Caracterización!$B$8:$K$8,Caracterización!$B$22:$K$22,"")="Seleccione ..."), "Debe indicarlo en la caracterización de la comunidad", IF(A43<>0, _xlfn.XLOOKUP(A43,Caracterización!$B$8:$K$8,Caracterización!$B$22:$K$22,""), "")) ->  | H43: =IF(AND(A43<>0, _xlfn.XLOOKUP(A43,Caracterización!$B$8:$K$8,Caracterización!$B$23:$K$23,"")="Seleccione ..."), "Debe indicarlo en la caracterización de la comunidad", IF(A43<>0, _xlfn.XLOOKUP(A43,Caracterización!$B$8:$K$8,Caracterización!$B$23:$K$23,""), "")) ->  | I43: =IF(AND(A43<>0, _xlfn.XLOOKUP(A43,Caracterización!$B$8:$K$8,Caracterización!$B$28:$K$28,"")="Seleccione ..."), "Debe indicarlo en la caracterización de la comunidad", IF(A43<>0, _xlfn.XLOOKUP(A43,Caracterización!$B$8:$K$8,Caracterización!$B$28:$K$28,""), "")) ->  | J43: =IF(AND(A43<>0, _xlfn.XLOOKUP(A43,Caracterización!$B$8:$K$8,Caracterización!$B$37:$K$37,"")="Seleccione ..."), "Debe indicarlo en la caracterización de la comunidad", IF(A43<>0, _xlfn.XLOOKUP(A43,Caracterización!$B$8:$K$8,Caracterización!$B$37:$K$37,""), "")) ->  | K43: =IF(AND(A43<>0, _xlfn.XLOOKUP(A43,Caracterización!$B$8:$K$8,Caracterización!$B$40:$K$40,"")="Seleccione ..."), "Debe indicarlo en la caracterización de la comunidad", IF(A43<>0, _xlfn.XLOOKUP(A43,Caracterización!$B$8:$K$8,Caracterización!$B$40:$K$40,""), "")) ->  | L43: =IF(AND(A43<>0, _xlfn.XLOOKUP(A43,Caracterización!$B$8:$K$8,Caracterización!$B$42:$K$42,"")="Seleccione ..."), "Debe indicarlo en la caracterización de la comunidad", IF(A43<>0, _xlfn.XLOOKUP(A43,Caracterización!$B$8:$K$8,Caracterización!$B$42:$K$42,""), "")) ->  | M43: =IF(AND(A43<>0, _xlfn.XLOOKUP(A43,Caracterización!$B$8:$K$8,Caracterización!$B$72:$K$72,"")="Seleccione ..."), "Debe indicarlo en la caracterización de la comunidad", IF(A43<>0, _xlfn.XLOOKUP(A43,Caracterización!$B$8:$K$8,Caracterización!$B$72:$K$72,""), "")) -> 

Sheet Calificación Privada
B1: ¡Califica las Comunidades!"
B2: 💡 ¿Qué hacer? Selecciona un nivel de calificación a cada comunidad según las diferentes variables. Si necesitas más detalles de los indicadores, haz clic en el botón CONSULTA INFORMACIÓN SOBRE LOS INDICADORES. 🚨 Nota Importante: Si seleccionas "Sin información" para una comunidad, asegúrate de mantener igual las calificaciones de las demás comunidades. Esto permite que la herramienta calcule de manera equitativa.
B3: ¿Deseas darle tu propia ponderación a cada indicador?
B4: Por defecto cada indicador tiene el mismo valor (%) por categoría… puedes cambiarlo, pero la valoración total por categoría debe ser 100% Si deseas calificar por categoria sin cambiar las valoraciones individuales ve directamente a RESULTADOS
B5: ✅ ¡Último paso! Cuando hayas terminado de calificar, haz clic en el botón RESULTADOS para continuar.
A6: Categoría | B6: Categoría | C6: Indicador / Criterios | D6: Definición | E6: Porcentaje de valoración del indicador | H6: Nivel Rojo | I6: Nivel Naranja | J6: Nivel Amarillo | K6: Nivel Verde | L6: =Caracterización!B8 -> C1 | M6: =Caracterización!C8 -> C2 | N6: =Caracterización!D8 -> C3 | O6: =Caracterización!E8 -> C4 | P6: =Caracterización!F8 -> C5 | Q6: =Caracterización!G8 -> C6 | R6: =Caracterización!H8 -> C7 | S6: =Caracterización!I8 -> C8 | T6: =Caracterización!J8 -> C9 | U6: =Caracterización!K8 -> C10
A7: =SUM(E7:E9) -> 100.0% | B7: ='Consulta de Rangos'!A8 -> Ambiental | C7: ='Consulta de Rangos'!B8 -> EROI (tasa de retorno energético) | D7: ='Consulta de Rangos'!C8 -> Mide la relación entre la energía obtenida de un proyecto y la energía invertida para producirla. Un valor mayor indica mayor eficiencia energética. (Relación de energía generada/energía invertida) | E7: 33.3% | F7: Seleccione… | G7: Sin información | H7: ='Consulta de Rangos'!G8 -> < 3 | I7: ='Consulta de Rangos'!H8 -> 3-5 | J7: ='Consulta de Rangos'!I8 -> 5-10 | K7: ='Consulta de Rangos'!J8 -> > 10 | L7: 3-5 | M7: 5-10 | N7: Seleccione… | O7: Seleccione… | P7: Seleccione… | Q7: Seleccione… | R7: Seleccione… | S7: Seleccione… | T7: Seleccione… | U7: Seleccione…
B8: ='Consulta de Rangos'!A9 -> Ambiental | C8: ='Consulta de Rangos'!B9 -> Reducción anual de gases de efecto invernadero | D8: ='Consulta de Rangos'!C9 -> Reducción estimada de gases de efecto invernadero (CO2e) que se espera reducir cada año debido al cambio en la fuene de energía. | E8: 33.3% | F8: Seleccione… | G8: Sin información | H8: ='Consulta de Rangos'!G9 -> < 10% reducción | I8: ='Consulta de Rangos'!H9 -> 10%-20% reducción | J8: ='Consulta de Rangos'!I9 -> 20%-30% reducción | K8: ='Consulta de Rangos'!J9 -> > 30% reducción | L8: Seleccione… | M8: Seleccione… | N8: Seleccione… | O8: Seleccione… | P8: Seleccione… | Q8: Seleccione… | R8: Seleccione… | S8: Seleccione… | T8: Seleccione… | U8: Seleccione…
B9: ='Consulta de Rangos'!A10 -> Ambiental | C9: ='Consulta de Rangos'!B10 -> Territorios de alta dependencia de carbón térmico | D9: ='Consulta de Rangos'!C10 -> Variable incluida para focalizar aquellas comunidades ubicadas en entes territoriales cuya estructura económica muestre altos grados de dependencia de la explotación de carbón térmico, bien sea para la exportación de este mineral o para su uso interno en el país, conforme lo informado por la Unidad de Planeación Minero-Energética (UPME) en el portal del Sistema de Información Minero Colombiano (SIMCO). | E9: 33.3% | F9: Seleccione… | G9: Sin información | H9: ='Consulta de Rangos'!G10 -> < 10% dependencia | I9: ='Consulta de Rangos'!H10 -> 10%-20% dependencia | J9: ='Consulta de Rangos'!I10 -> 20%-30% dependencia | K9: ='Consulta de Rangos'!J10 -> > 30% dependencia | L9: Seleccione… | M9: Seleccione… | N9: Seleccione… | O9: Seleccione… | P9: Seleccione… | Q9: Seleccione… | R9: Seleccione… | S9: Seleccione… | T9: Seleccione… | U9: Seleccione…
A10: =SUM(E10:E18) -> 100.0% | B10: ='Consulta de Rangos'!A11 -> Económico | C10: ='Consulta de Rangos'!B11 -> Ahorro monetario del usuario en la factura eléctrica | D10: ='Consulta de Rangos'!C11 -> Ahorros monetarios que experimenta el usuario final al formar parte de la Comunidad Energética (CEC) y consumir energía renovable. | E10: 40.0% | F10: Seleccione… | G10: Sin información | H10: ='Consulta de Rangos'!G11 -> < 10% ahorro | I10: ='Consulta de Rangos'!H11 -> 10%-20% ahorro | J10: ='Consulta de Rangos'!I11 -> 20%-30% ahorro | K10: ='Consulta de Rangos'!J11 -> > 30% ahorro | L10: Seleccione… | M10: Seleccione… | N10: Seleccione… | O10: Seleccione… | P10: Seleccione… | Q10: Seleccione… | R10: Seleccione… | S10: Seleccione… | T10: Seleccione… | U10: Seleccione…
B11: ='Consulta de Rangos'!A12 -> Económico | C11: ='Consulta de Rangos'!B12 -> Coste de generación de energía ($/MWh) | D11: ='Consulta de Rangos'!C12 -> Mide el costo promedio de producir energía eléctrica desde el Sistema Interconectado Nacional (SIN). Este costo incluye los gastos de inversión inicial, operación, mantenimiento y combustibles asociados a la generación de un megavatio-hora (MWh). | E11: 48.3% | F11: Seleccione… | G11: Sin información | H11: ='Consulta de Rangos'!G12 -> < 230 USD/MWh | I11: ='Consulta de Rangos'!H12 -> 230-250 USD/MWh | J11: ='Consulta de Rangos'!I12 -> 250-280 USD/MWh | K11: ='Consulta de Rangos'!J12 -> > 280 USD/MWh | L11: Seleccione… | M11: Seleccione… | N11: Seleccione… | O11: Seleccione… | P11: Seleccione… | Q11: Seleccione… | R11: Seleccione… | S11: Seleccione… | T11: Seleccione… | U11: Seleccione…
B12: ='Consulta de Rangos'!A13 -> Económico | C12: ='Consulta de Rangos'!B13 -> La comunidad realiza el pago por servicio de energía de manera cumplida | D12: ='Consulta de Rangos'!C13 -> Porcentaje de usuarios de la comunidad energética que realizan el pago del servicio energético de manera regular y dentro de los plazos establecidos. | E12: 1.7% | F12: Seleccione… | G12: Sin información | H12: ='Consulta de Rangos'!G13 -> > 60% | I12: ='Consulta de Rangos'!H13 -> 40%-60% | J12: ='Consulta de Rangos'!I13 -> 20%-40% | K12: ='Consulta de Rangos'!J13 -> < 20% | L12: Seleccione… | M12: Seleccione… | N12: Seleccione… | O12: Seleccione… | P12: Seleccione… | Q12: Seleccione… | R12: Seleccione… | S12: Seleccione… | T12: Seleccione… | U12: Seleccione…
B13: ='Consulta de Rangos'!A14 -> Económico | C13: ='Consulta de Rangos'!B14 -> Tiempo de retorno de la inversión | D13: ='Consulta de Rangos'!C14 -> El periodo de tiempo necesario para que las ganancias acumuladas de un proyecto igualen el costo total de la inversión. | E13: 1.7% | F13: Seleccione… | G13: Sin información | H13: ='Consulta de Rangos'!G14 -> > 15 años | I13: ='Consulta de Rangos'!H14 -> 10-15 años | J13: ='Consulta de Rangos'!I14 -> 6-10 años | K13: ='Consulta de Rangos'!J14 -> < 6 años | L13: Seleccione… | M13: Seleccione… | N13: Seleccione… | O13: Seleccione… | P13: Seleccione… | Q13: Seleccione… | R13: Seleccione… | S13: Seleccione… | T13: Seleccione… | U13: Seleccione…
B14: ='Consulta de Rangos'!A15 -> Económico | C14: ='Consulta de Rangos'!B15 -> Tasa interna de rentabilidad (TIR) | D14: ='Consulta de Rangos'!C15 -> Medida de la rentabilidad de una inversión. | E14: 1.7% | F14: Seleccione… | G14: Sin información | H14: ='Consulta de Rangos'!G15 -> < 5% | I14: ='Consulta de Rangos'!H15 -> 5%-7% | J14: ='Consulta de Rangos'!I15 -> 7%-10% | K14: ='Consulta de Rangos'!J15 -> > 10% | L14: Seleccione… | M14: Seleccione… | N14: Seleccione… | O14: Seleccione… | P14: Seleccione… | Q14: Seleccione… | R14: Seleccione… | S14: Seleccione… | T14: Seleccione… | U14: Seleccione…
B15: ='Consulta de Rangos'!A16 -> Económico | C15: ='Consulta de Rangos'!B16 -> Identificación de fuentes de financiación alternativas viables | D15: ='Consulta de Rangos'!C16 -> Mide la existencia y diversidad de fuentes de financiación alternativas (subsidios, donaciones, préstamos) para el proyecto. | E15: 1.7% | F15: Seleccione… | G15: Sin información | H15: ='Consulta de Rangos'!G16 -> No se han identificado fuentes alternativas viables. | I15: ='Consulta de Rangos'!H16 -> Identificación limitada con alta dependencia de una fuente. | J15: ='Consulta de Rangos'!I16 -> Identificación moderada con al menos dos fuentes viables. | K15: ='Consulta de Rangos'!J16 -> Identificación robusta con múltiples fuentes viables y diversificadas. | L15: Seleccione… | M15: Seleccione… | N15: Seleccione… | O15: Seleccione… | P15: Seleccione… | Q15: Seleccione… | R15: Seleccione… | S15: Seleccione… | T15: Seleccione… | U15: Seleccione…
B16: ='Consulta de Rangos'!A17 -> Económico | C16: ='Consulta de Rangos'!B17 -> Capacidad de cofinanciación local | D16: ='Consulta de Rangos'!C17 -> Evalúa el porcentaje de recursos que la comunidad puede aportar para financiar el proyecto. | E16: 1.7% | F16: Seleccione… | G16: Sin información | H16: ='Consulta de Rangos'!G17 -> < 10% | I16: ='Consulta de Rangos'!H17 -> 10%-30% | J16: ='Consulta de Rangos'!I17 -> 30%-50% | K16: ='Consulta de Rangos'!J17 -> > 50% | L16: Seleccione… | M16: Seleccione… | N16: Seleccione… | O16: Seleccione… | P16: Seleccione… | Q16: Seleccione… | R16: Seleccione… | S16: Seleccione… | T16: Seleccione… | U16: Seleccione…
B17: ='Consulta de Rangos'!A18 -> Económico | C17: ='Consulta de Rangos'!B18 -> Capacidad y voluntad de los miembros de la comunidad para financiar el proyecto | D17: ='Consulta de Rangos'!C18 -> Grado en que los miembros de la comunidad pueden y desean contribuir financieramente al proyecto. | E17: 1.7% | F17: Seleccione… | G17: Sin información | H17: ='Consulta de Rangos'!G18 -> < 15% | I17: ='Consulta de Rangos'!H18 -> 15%-30% | J17: ='Consulta de Rangos'!I18 -> 30%-50% | K17: ='Consulta de Rangos'!J18 -> > 50% | L17: Seleccione… | M17: Seleccione… | N17: Seleccione… | O17: Seleccione… | P17: Seleccione… | Q17: Seleccione… | R17: Seleccione… | S17: Seleccione… | T17: Seleccione… | U17: Seleccione…
B18: ='Consulta de Rangos'!A19 -> Económico | C18: ='Consulta de Rangos'!B19 -> Costos energéticos promedio por usuario | D18: ='Consulta de Rangos'!C19 -> Promedio de gastos en energía por hogar en la comunidad evaluada. | E18: 1.7% | F18: Seleccione… | G18: Sin información | H18: ='Consulta de Rangos'!G19 -> < 40.000 COP | I18: ='Consulta de Rangos'!H19 -> 40.000-80.000 COP | J18: ='Consulta de Rangos'!I19 -> 80.000-120.000 | K18: ='Consulta de Rangos'!J19 -> > 120.000 COP | L18: Seleccione… | M18: Seleccione… | N18: Seleccione… | O18: Seleccione… | P18: Seleccione… | Q18: Seleccione… | R18: Seleccione… | S18: Seleccione… | T18: Seleccione… | U18: Seleccione…
A19: =SUM(E19:E21) -> 100.0% | B19: ='Consulta de Rangos'!A20 -> Legislativo/ normativo | C19: ='Consulta de Rangos'!B20 -> Disposición de instituciones externas para representar a la comunidad energética | D19: ='Consulta de Rangos'!C20 -> Evalúa cualitativamente la disposición de instituciones externas para representar formalmente a una comunidad energética en aspectos legales, técnicos, financieros o de gobernanza. | E19: 33.3% | F19: Seleccione… | G19: Sin información | H19: ='Consulta de Rangos'!G20 -> Baja disposición | I19: ='Consulta de Rangos'!H20 -> Media disposición | J19: ='Consulta de Rangos'!I20 -> Alta disposición | K19: ='Consulta de Rangos'!J20 -> Muy alta disposición | L19: Seleccione… | M19: Seleccione… | N19: Seleccione… | O19: Seleccione… | P19: Seleccione… | Q19: Seleccione… | R19: Seleccione… | S19: Seleccione… | T19: Seleccione… | U19: Seleccione…
B20: ='Consulta de Rangos'!A21 -> Legislativo/ normativo | C20: ='Consulta de Rangos'!B21 -> ¿Se cuenta con avances en lineamientos para la distribución y almacenamiento de energía? Autoconsumo | D20: ='Consulta de Rangos'!C21 -> Existencia de lineamiento que faciliten el autoconsumo y el almacenamiento energético en la comunidad. | E20: 33.3% | F20: Seleccione… | G20: Sin información | H20: ='Consulta de Rangos'!G21 -> Sin avances regulatorios | I20: ='Consulta de Rangos'!H21 -> Avances iniciales | J20: ='Consulta de Rangos'!I21 -> Avances moderados | K20: ='Consulta de Rangos'!J21 -> Lineamientos establecidos | L20: Seleccione… | M20: Seleccione… | N20: Seleccione… | O20: Seleccione… | P20: Seleccione… | Q20: Seleccione… | R20: Seleccione… | S20: Seleccione… | T20: Seleccione… | U20: Seleccione…
B21: ='Consulta de Rangos'!A22 -> Legislativo/ normativo | C21: ='Consulta de Rangos'!B22 -> Políticas de Inclusión de Género en la Gobernanza de las Comunidades Energéticas | D21: ='Consulta de Rangos'!C22 -> Evalúa la existencia, alcance y efectividad de medidas específicas orientadas a promover la inclusión de género en la gobernanza de las comunidades energéticas. | E21: 33.3% | F21: Seleccione… | G21: Sin información | H21: ='Consulta de Rangos'!G22 -> Sin medidas de inclusión | I21: ='Consulta de Rangos'!H22 -> Avances iniciales en medidas | J21: ='Consulta de Rangos'!I22 -> Medidas parcialmente implementadas | K21: ='Consulta de Rangos'!J22 -> Medidas plenamente implementadas | L21: Seleccione… | M21: Seleccione… | N21: Seleccione… | O21: Seleccione… | P21: Seleccione… | Q21: Seleccione… | R21: Seleccione… | S21: Seleccione… | T21: Seleccione… | U21: Seleccione…
A22: =SUM(E22:E37) -> 100.0% | B22: ='Consulta de Rangos'!A24 -> Social | C22: ='Consulta de Rangos'!B24 -> Participación Femenina en la Comunidad Energética | D22: ='Consulta de Rangos'!C24 -> Nivel de involucramiento de las mujeres en las actividades y decisiones de la comunidad energética. | E22: 6.3% | F22: Seleccione… | G22: Sin información | H22: ='Consulta de Rangos'!G24 -> < 20% | I22: ='Consulta de Rangos'!H24 -> 20%-35% | J22: ='Consulta de Rangos'!I24 -> 35%-50% | K22: ='Consulta de Rangos'!J24 -> > 50% | L22: Seleccione… | M22: Seleccione… | N22: Seleccione… | O22: Seleccione… | P22: Seleccione… | Q22: Seleccione… | R22: Seleccione… | S22: Seleccione… | T22: Seleccione… | U22: Seleccione…
B23: ='Consulta de Rangos'!A25 -> Social | C23: ='Consulta de Rangos'!B25 -> Población de especial protección constitucional del sector Paz (víctimas, personas en proceso de reincorporación) | D23: ='Consulta de Rangos'!C25 -> Variable incluida para focalizar poblacionalmente a aquellas comunidades que en su constitución cuente con personas registradas en el Registro Único de Víctimas (RUV), conforme a los parámetros establecidos en la Ley 1448 de 2011, o que hayan sido reconocidas como sujetos de reparación colectiva, así como personas que se encuentren activas en el proceso de reincorporación de acuerdo con el Acto Legislativo 001 del 2017 y su normatividad regulatoria. | E23: 6.3% | F23: Seleccione… | G23: Sin información | H23: ='Consulta de Rangos'!G25 -> < 30% | I23: ='Consulta de Rangos'!H25 -> 30%-40% | J23: ='Consulta de Rangos'!I25 -> 40%-60% | K23: ='Consulta de Rangos'!J25 -> > 60% | L23: Seleccione… | M23: Seleccione… | N23: Seleccione… | O23: Seleccione… | P23: Seleccione… | Q23: Seleccione… | R23: Seleccione… | S23: Seleccione… | T23: Seleccione… | U23: Seleccione…
B24: ='Consulta de Rangos'!A26 -> Social | C24: ='Consulta de Rangos'!B26 -> Presencia de comunidades étnicas | D24: ='Consulta de Rangos'!C26 -> Variable incluida para focalizar poblacionalmente a aquellas comunidades que en su constitución cuenten con personas o comunidades autorreconocidas como étnicas según el Censo Nacional de Población y Vivienda, y/o el último registro que dé cuenta de la población étnica con fuente DANE, y lo que en la materia haya dispuesto el Ministerio del Interior. | E24: 6.3% | F24: Seleccione… | G24: Sin información | H24: ='Consulta de Rangos'!G26 -> Sin presencia de comunidades étnicas | I24: ='Consulta de Rangos'!H26 -> Moderada presencia de comunidades étnicas | J24: ='Consulta de Rangos'!I26 -> Alta presencia de comunidades étnicas | K24: ='Consulta de Rangos'!J26 -> Corresponde a una comunidad étnica | L24: Seleccione… | M24: Seleccione… | N24: Seleccione… | O24: Seleccione… | P24: Seleccione… | Q24: Seleccione… | R24: Seleccione… | S24: Seleccione… | T24: Seleccione… | U24: Seleccione…
